Workbook

Sheet CFO review
C2: Agencies finance demonstration
C4: Selected case | E4: ='Assumptions'!$G$4 -> Base | H4: EUR. Entirely fictional.
C6: 31 August 2026. Jan–Aug actuals; Sep–Dec forecast.
Q8: Month | R8: Revenue | S8: EBITDA
C9: August revenue | F9: ='P&L'!L12 -> €156,000 | Q9: Jan | R9: ='P&L'!E12 -> 131,000.0 | S9: ='P&L'!E22 -> 15,650.0
C10: August gross margin | F10: ='P&L'!L20 -> 42.2% | Q10: Feb | R10: ='P&L'!F12 -> 134,375.0 | S10: ='P&L'!F22 -> 18,175.0
C11: August EBITDA | F11: ='P&L'!L22 -> €15,400 | Q11: Mar | R11: ='P&L'!G12 -> 140,730.0 | S11: ='P&L'!G22 -> 16,520.0
C12: August cash | F12: ='Balance sheet'!L8 -> €127,767 | Q12: Apr | R12: ='P&L'!H12 -> 146,510.0 | S12: ='P&L'!H22 -> 21,540.0
C13: August receivables | F13: ='Balance sheet'!L9 -> €220,000 | Q13: May | R13: ='P&L'!I12 -> 150,800.0 | S13: ='P&L'!I22 -> 23,120.0
C14: August unbilled work | F14: ='Balance sheet'!L10 -> €19,500 | Q14: Jun | R14: ='P&L'!J12 -> 153,600.0 | S14: ='P&L'!J22 -> 18,680.0
C15: December cash / (funding gap) | F15: ='Balance sheet'!P8 -> €200,006 | Q15: Jul | R15: ='P&L'!K12 -> 160,800.0 | S15: ='P&L'!K22 -> 20,575.0
Q16: Aug | R16: ='P&L'!L12 -> 156,000.0 | S16: ='P&L'!L22 -> 15,400.0
Q17: Sep | R17: ='P&L'!M12 -> 175,200.0 | S17: ='P&L'!M22 -> 36,540.0
C18: Lowest daily available cash in 13 weeks | F18: ='13 week cash'!F25 -> €70,747 | Q18: Oct | R18: ='P&L'!N12 -> 180,850.0 | S18: ='P&L'!N22 -> 40,100.0
Q19: Nov | R19: ='P&L'!O12 -> 193,900.0 | S19: ='P&L'!O22 -> 44,250.0
C20: Review retainer scope and write-off risk in unbilled projects before adding delivery headcount. | Q20: Dec | R20: ='P&L'!P12 -> 184,300.0 | S20: ='P&L'!P22 -> 36,500.0
C25: Review topic | D25: Owner | E25: Due date | F25: Status | G25: Next action
C26: Receivables | D26: Finance lead | E26: 2026-09-04 | F26: Open | G26: Confirm invoice-specific payment commitments.
C27: Contract economics | D27: CFO | E27: 2026-09-08 | F27: Open | G27: Review retained scope and unbilled hours.
C28: Capacity | D28: Delivery lead | E28: 2026-09-09 | F28: Open | G28: Compare committed delivery with staffed hours.
C29: Cash reserve | D29: CEO / CFO | E29: 2026-09-07 | F29: Open | G29: Review capital commitments before payment.
C30: Invoice approval | D30: Operations | E30: 2026-09-04 | F30: Awaiting review | G30: Resolve approval, review and hold separately.

Sheet Assumptions
C2: Assumptions
C4: Selected case | E4: 1 | G4: =CHOOSE($E$4,"Base","Downside") -> Base | H4: EUR. Entirely fictional.
C5: 1 = Base. 2 = Downside.
E6: Actual | F6: Actual | G6: Actual | H6: Actual | I6: Actual | J6: Actual | K6: Actual | L6: Actual | M6: Forecast | N6: Forecast | O6: Forecast | P6: Forecast
E7: 2026-01-01 | F7: 2026-02-01 | G7: 2026-03-01 | H7: 2026-04-01 | I7: 2026-05-01 | J7: 2026-06-01 | K7: 2026-07-01 | L7: 2026-08-01 | M7: 2026-09-01 | N7: 2026-10-01 | O7: 2026-11-01 | P7: 2026-12-01
C8: Retainer accounts — active | E8: ='Source inputs'!E8 -> 10.0 | F8: ='Source inputs'!F8 -> 10.0 | G8: ='Source inputs'!G8 -> 11.0 | H8: ='Source inputs'!H8 -> 11.0 | I8: ='Source inputs'!I8 -> 11.0 | J8: ='Source inputs'!J8 -> 12.0 | K8: ='Source inputs'!K8 -> 12.0 | L8: ='Source inputs'!L8 -> 12.0 | M8: =IF($E$4=1,IF(ISNUMBER(M9),M9,NA()),IF($E$4=2,IF(ISNUMBER(M10),M10,NA()),NA())) -> 13.0 | N8: =IF($E$4=1,IF(ISNUMBER(N9),N9,NA()),IF($E$4=2,IF(ISNUMBER(N10),N10,NA()),NA())) -> 13.0 | O8: =IF($E$4=1,IF(ISNUMBER(O9),O9,NA()),IF($E$4=2,IF(ISNUMBER(O10),O10,NA()),NA())) -> 14.0 | P8: =IF($E$4=1,IF(ISNUMBER(P9),P9,NA()),IF($E$4=2,IF(ISNUMBER(P10),P10,NA()),NA())) -> 14.0
C9: Base | M9: 13.0 | N9: 13.0 | O9: 14.0 | P9: 14.0
C10: Downside | M10: 12.0 | N10: 11.0 | O10: 11.0 | P10: 11.0
C11: Monthly retainer fee — active | E11: ='Source inputs'!E9 -> €6,200 | F11: ='Source inputs'!F9 -> €6,250 | G11: ='Source inputs'!G9 -> €6,250 | H11: ='Source inputs'!H9 -> €6,400 | I11: ='Source inputs'!I9 -> €6,400 | J11: ='Source inputs'!J9 -> €6,500 | K11: ='Source inputs'!K9 -> €6,500 | L11: ='Source inputs'!L9 -> €6,500 | M11: =IF($E$4=1,IF(ISNUMBER(M12),M12,NA()),IF($E$4=2,IF(ISNUMBER(M13),M13,NA()),NA())) -> €6,650 | N11: =IF($E$4=1,IF(ISNUMBER(N12),N12,NA()),IF($E$4=2,IF(ISNUMBER(N13),N13,NA()),NA())) -> €6,700 | O11: =IF($E$4=1,IF(ISNUMBER(O12),O12,NA()),IF($E$4=2,IF(ISNUMBER(O13),O13,NA()),NA())) -> €6,700 | P11: =IF($E$4=1,IF(ISNUMBER(P12),P12,NA()),IF($E$4=2,IF(ISNUMBER(P13),P13,NA()),NA())) -> €6,850
C12: Base | M12: €6,650 | N12: €6,700 | O12: €6,700 | P12: €6,850
C13: Downside | M13: €6,500 | N13: €6,500 | O13: €6,450 | P13: €6,450
C14: Delivered project hours — active | E14: ='Source inputs'!E10 -> 600.0 | F14: ='Source inputs'!F10 -> 625.0 | G14: ='Source inputs'!G10 -> 610.0 | H14: ='Source inputs'!H10 -> 645.0 | I14: ='Source inputs'!I10 -> 670.0 | J14: ='Source inputs'!J10 -> 630.0 | K14: ='Source inputs'!K10 -> 690.0 | L14: ='Source inputs'!L10 -> 650.0 | M14: =IF($E$4=1,IF(ISNUMBER(M15),M15,NA()),IF($E$4=2,IF(ISNUMBER(M16),M16,NA()),NA())) -> 710.0 | N14: =IF($E$4=1,IF(ISNUMBER(N15),N15,NA()),IF($E$4=2,IF(ISNUMBER(N16),N16,NA()),NA())) -> 750.0 | O14: =IF($E$4=1,IF(ISNUMBER(O15),O15,NA()),IF($E$4=2,IF(ISNUMBER(O16),O16,NA()),NA())) -> 770.0 | P14: =IF($E$4=1,IF(ISNUMBER(P15),P15,NA()),IF($E$4=2,IF(ISNUMBER(P16),P16,NA()),NA())) -> 680.0
C15: Base | M15: 710.0 | N15: 750.0 | O15: 770.0 | P15: 680.0
C16: Downside | M16: 630.0 | N16: 590.0 | O16: 590.0 | P16: 550.0
C17: Project hourly rate — active | E17: ='Source inputs'!E11 -> €115 | F17: ='Source inputs'!F11 -> €115 | G17: ='Source inputs'!G11 -> €118 | H17: ='Source inputs'!H11 -> €118 | I17: ='Source inputs'!I11 -> €120 | J17: ='Source inputs'!J11 -> €120 | K17: ='Source inputs'!K11 -> €120 | L17: ='Source inputs'!L11 -> €120 | M17: =IF($E$4=1,IF(ISNUMBER(M18),M18,NA()),IF($E$4=2,IF(ISNUMBER(M19),M19,NA()),NA())) -> €125 | N17: =IF($E$4=1,IF(ISNUMBER(N18),N18,NA()),IF($E$4=2,IF(ISNUMBER(N19),N19,NA()),NA())) -> €125 | O17: =IF($E$4=1,IF(ISNUMBER(O18),O18,NA()),IF($E$4=2,IF(ISNUMBER(O19),O19,NA()),NA())) -> €130 | P17: =IF($E$4=1,IF(ISNUMBER(P18),P18,NA()),IF($E$4=2,IF(ISNUMBER(P19),P19,NA()),NA())) -> €130
C18: Base | M18: €125 | N18: €125 | O18: €130 | P18: €130
C19: Downside | M19: €120 | N19: €120 | O19: €118 | P19: €118
C20: Monthly hours per retainer — active | E20: ='Source inputs'!E12 -> 82.0 | F20: ='Source inputs'!F12 -> 84.0 | G20: ='Source inputs'!G12 -> 84.0 | H20: ='Source inputs'!H12 -> 85.0 | I20: ='Source inputs'!I12 -> 86.0 | J20: ='Source inputs'!J12 -> 88.0 | K20: ='Source inputs'!K12 -> 90.0 | L20: ='Source inputs'!L12 -> 90.0 | M20: =IF($E$4=1,IF(ISNUMBER(M21),M21,NA()),IF($E$4=2,IF(ISNUMBER(M22),M22,NA()),NA())) -> 85.0 | N20: =IF($E$4=1,IF(ISNUMBER(N21),N21,NA()),IF($E$4=2,IF(ISNUMBER(N22),N22,NA()),NA())) -> 85.0 | O20: =IF($E$4=1,IF(ISNUMBER(O21),O21,NA()),IF($E$4=2,IF(ISNUMBER(O22),O22,NA()),NA())) -> 84.0 | P20: =IF($E$4=1,IF(ISNUMBER(P21),P21,NA()),IF($E$4=2,IF(ISNUMBER(P22),P22,NA()),NA())) -> 84.0
C21: Base | M21: 85.0 | N21: 85.0 | O21: 84.0 | P21: 84.0
C22: Downside | M22: 90.0 | N22: 92.0 | O22: 92.0 | P22: 94.0
C23: Client media spend administered — active | E23: ='Source inputs'!E13 -> €180,000 | F23: ='Source inputs'!F13 -> €190,000 | G23: ='Source inputs'!G13 -> €195,000 | H23: ='Source inputs'!H13 -> €205,000 | I23: ='Source inputs'!I13 -> €210,000 | J23: ='Source inputs'!J13 -> €235,000 | K23: ='Source inputs'!K13 -> €245,000 | L23: ='Source inputs'!L13 -> €265,000 | M23: =IF($E$4=1,IF(ISNUMBER(M24),M24,NA()),IF($E$4=2,IF(ISNUMBER(M25),M25,NA()),NA())) -> €285,000 | N23: =IF($E$4=1,IF(ISNUMBER(N24),N24,NA()),IF($E$4=2,IF(ISNUMBER(N25),N25,NA()),NA())) -> €300,000 | O23: =IF($E$4=1,IF(ISNUMBER(O24),O24,NA()),IF($E$4=2,IF(ISNUMBER(O25),O25,NA()),NA())) -> €335,000 | P23: =IF($E$4=1,IF(ISNUMBER(P24),P24,NA()),IF($E$4=2,IF(ISNUMBER(P25),P25,NA()),NA())) -> €320,000
C24: Base | M24: €285,000 | N24: €300,000 | O24: €335,000 | P24: €320,000
C25: Downside | M25: €250,000 | N25: €240,000 | O25: €240,000 | P25: €225,000
C26: Paid delivery FTE — active | E26: ='Source inputs'!E14 -> 12.0 | F26: ='Source inputs'!F14 -> 12.0 | G26: ='Source inputs'!G14 -> 13.0 | H26: ='Source inputs'!H14 -> 13.0 | I26: ='Source inputs'!I14 -> 13.0 | J26: ='Source inputs'!J14 -> 14.0 | K26: ='Source inputs'!K14 -> 14.0 | L26: ='Source inputs'!L14 -> 14.0 | M26: =IF($E$4=1,IF(ISNUMBER(M27),M27,NA()),IF($E$4=2,IF(ISNUMBER(M28),M28,NA()),NA())) -> 14.0 | N26: =IF($E$4=1,IF(ISNUMBER(N27),N27,NA()),IF($E$4=2,IF(ISNUMBER(N28),N28,NA()),NA())) -> 14.0 | O26: =IF($E$4=1,IF(ISNUMBER(O27),O27,NA()),IF($E$4=2,IF(ISNUMBER(O28),O28,NA()),NA())) -> 15.0 | P26: =IF($E$4=1,IF(ISNUMBER(P27),P27,NA()),IF($E$4=2,IF(ISNUMBER(P28),P28,NA()),NA())) -> 15.0
C27: Base | M27: 14.0 | N27: 14.0 | O27: 15.0 | P27: 15.0
C28: Downside | M28: 14.0 | N28: 14.0 | O28: 14.0 | P28: 14.0
C29: Loaded monthly pay per FTE — active | E29: ='Source inputs'!E15 -> €4,700 | F29: ='Source inputs'!F15 -> €4,700 | G29: ='Source inputs'!G15 -> €4,750 | H29: ='Source inputs'!H15 -> €4,750 | I29: ='Source inputs'!I15 -> €4,800 | J29: ='Source inputs'!J15 -> €4,800 | K29: ='Source inputs'!K15 -> €4,900 | L29: ='Source inputs'!L15 -> €4,900 | M29: =IF($E$4=1,IF(ISNUMBER(M30),M30,NA()),IF($E$4=2,IF(ISNUMBER(M31),M31,NA()),NA())) -> €4,900 | N29: =IF($E$4=1,IF(ISNUMBER(N30),N30,NA()),IF($E$4=2,IF(ISNUMBER(N31),N31,NA()),NA())) -> €4,950 | O29: =IF($E$4=1,IF(ISNUMBER(O30),O30,NA()),IF($E$4=2,IF(ISNUMBER(O31),O31,NA()),NA())) -> €4,950 | P29: =IF($E$4=1,IF(ISNUMBER(P30),P30,NA()),IF($E$4=2,IF(ISNUMBER(P31),P31,NA()),NA())) -> €5,000
C30: Base | M30: €4,900 | N30: €4,950 | O30: €4,950 | P30: €5,000
C31: Downside | M31: €4,900 | N31: €4,950 | O31: €4,950 | P31: €5,000
C32: Subcontractor hours — active | E32: ='Source inputs'!E16 -> 135.0 | F32: ='Source inputs'!F16 -> 140.0 | G32: ='Source inputs'!G16 -> 155.0 | H32: ='Source inputs'!H16 -> 160.0 | I32: ='Source inputs'!I16 -> 170.0 | J32: ='Source inputs'!J16 -> 180.0 | K32: ='Source inputs'!K16 -> 195.0 | L32: ='Source inputs'!L16 -> 200.0 | M32: =IF($E$4=1,IF(ISNUMBER(M33),M33,NA()),IF($E$4=2,IF(ISNUMBER(M34),M34,NA()),NA())) -> 170.0 | N32: =IF($E$4=1,IF(ISNUMBER(N33),N33,NA()),IF($E$4=2,IF(ISNUMBER(N34),N34,NA()),NA())) -> 175.0 | O32: =IF($E$4=1,IF(ISNUMBER(O33),O33,NA()),IF($E$4=2,IF(ISNUMBER(O34),O34,NA()),NA())) -> 180.0 | P32: =IF($E$4=1,IF(ISNUMBER(P33),P33,NA()),IF($E$4=2,IF(ISNUMBER(P34),P34,NA()),NA())) -> 160.0
C33: Base | M33: 170.0 | N33: 175.0 | O33: 180.0 | P33: 160.0
C34: Downside | M34: 210.0 | N34: 200.0 | O34: 190.0 | P34: 185.0
C35: Subcontractor hourly rate — active | E35: ='Source inputs'!E17 -> €70 | F35: ='Source inputs'!F17 -> €70 | G35: ='Source inputs'!G17 -> €72 | H35: ='Source inputs'!H17 -> €72 | I35: ='Source inputs'!I17 -> €74 | J35: ='Source inputs'!J17 -> €74 | K35: ='Source inputs'!K17 -> €75 | L35: ='Source inputs'!L17 -> €75 | M35: =IF($E$4=1,IF(ISNUMBER(M36),M36,NA()),IF($E$4=2,IF(ISNUMBER(M37),M37,NA()),NA())) -> €78 | N35: =IF($E$4=1,IF(ISNUMBER(N36),N36,NA()),IF($E$4=2,IF(ISNUMBER(N37),N37,NA()),NA())) -> €78 | O35: =IF($E$4=1,IF(ISNUMBER(O36),O36,NA()),IF($E$4=2,IF(ISNUMBER(O37),O37,NA()),NA())) -> €80 | P35: =IF($E$4=1,IF(ISNUMBER(P36),P36,NA()),IF($E$4=2,IF(ISNUMBER(P37),P37,NA()),NA())) -> €80
C36: Base | M36: €78 | N36: €78 | O36: €80 | P36: €80
C37: Downside | M37: €82 | N37: €82 | O37: €85 | P37: €85
C38: Direct delivery software — active | E38: ='Source inputs'!E18 -> €5,500 | F38: ='Source inputs'!F18 -> €5,500 | G38: ='Source inputs'!G18 -> €5,800 | H38: ='Source inputs'!H18 -> €5,800 | I38: ='Source inputs'!I18 -> €6,000 | J38: ='Source inputs'!J18 -> €6,200 | K38: ='Source inputs'!K18 -> €6,500 | L38: ='Source inputs'!L18 -> €6,500 | M38: =IF($E$4=1,IF(ISNUMBER(M39),M39,NA()),IF($E$4=2,IF(ISNUMBER(M40),M40,NA()),NA())) -> €6,800 | N38: =IF($E$4=1,IF(ISNUMBER(N39),N39,NA()),IF($E$4=2,IF(ISNUMBER(N40),N40,NA()),NA())) -> €6,800 | O38: =IF($E$4=1,IF(ISNUMBER(O39),O39,NA()),IF($E$4=2,IF(ISNUMBER(O40),O40,NA()),NA())) -> €7,200 | P38: =IF($E$4=1,IF(ISNUMBER(P39),P39,NA()),IF($E$4=2,IF(ISNUMBER(P40),P40,NA()),NA())) -> €7,200
C39: Base | M39: €6,800 | N39: €6,800 | O39: €7,200 | P39: €7,200
C40: Downside | M40: €6,800 | N40: €6,800 | O40: €6,800 | P40: €6,800
C41: Management and admin payroll — active | E41: ='Source inputs'!E19 -> €25,000 | F41: ='Source inputs'!F19 -> €25,000 | G41: ='Source inputs'!G19 -> €25,500 | H41: ='Source inputs'!H19 -> €25,500 | I41: ='Source inputs'!I19 -> €26,000 | J41: ='Source inputs'!J19 -> €27,000 | K41: ='Source inputs'!K19 -> €28,000 | L41: ='Source inputs'!L19 -> €28,000 | M41: =IF($E$4=1,IF(ISNUMBER(M42),M42,NA()),IF($E$4=2,IF(ISNUMBER(M43),M43,NA()),NA())) -> €28,000 | N41: =IF($E$4=1,IF(ISNUMBER(N42),N42,NA()),IF($E$4=2,IF(ISNUMBER(N43),N43,NA()),NA())) -> €28,000 | O41: =IF($E$4=1,IF(ISNUMBER(O42),O42,NA()),IF($E$4=2,IF(ISNUMBER(O43),O43,NA()),NA())) -> €29,500 | P41: =IF($E$4=1,IF(ISNUMBER(P42),P42,NA()),IF($E$4=2,IF(ISNUMBER(P43),P43,NA()),NA())) -> €29,500
C42: Base | M42: €28,000 | N42: €28,000 | O42: €29,500 | P42: €29,500
C43: Downside | M43: €28,000 | N43: €28,000 | O43: €28,000 | P43: €28,000
C44: Sales and marketing — active | E44: ='Source inputs'!E20 -> €8,000 | F44: ='Source inputs'!F20 -> €8,500 | G44: ='Source inputs'!G20 -> €8,500 | H44: ='Source inputs'!H20 -> €9,000 | I44: ='Source inputs'!I20 -> €9,000 | J44: ='Source inputs'!J20 -> €9,500 | K44: ='Source inputs'!K20 -> €10,000 | L44: ='Source inputs'!L20 -> €10,000 | M44: =IF($E$4=1,IF(ISNUMBER(M45),M45,NA()),IF($E$4=2,IF(ISNUMBER(M46),M46,NA()),NA())) -> €10,000 | N44: =IF($E$4=1,IF(ISNUMBER(N45),N45,NA()),IF($E$4=2,IF(ISNUMBER(N46),N46,NA()),NA())) -> €11,000 | O44: =IF($E$4=1,IF(ISNUMBER(O45),O45,NA()),IF($E$4=2,IF(ISNUMBER(O46),O46,NA()),NA())) -> €11,500 | P44: =IF($E$4=1,IF(ISNUMBER(P45),P45,NA()),IF($E$4=2,IF(ISNUMBER(P46),P46,NA()),NA())) -> €10,500
C45: Base | M45: €10,000 | N45: €11,000 | O45: €11,500 | P45: €10,500
C46: Downside | M46: €10,000 | N46: €10,000 | O46: €10,000 | P46: €9,500
C47: Office and general costs — active | E47: ='Source inputs'!E21 -> €7,000 | F47: ='Source inputs'!F21 -> €7,000 | G47: ='Source inputs'!G21 -> €7,000 | H47: ='Source inputs'!H21 -> €7,200 | I47: ='Source inputs'!I21 -> €7,200 | J47: ='Source inputs'!J21 -> €7,200 | K47: ='Source inputs'!K21 -> €7,500 | L47: ='Source inputs'!L21 -> €7,500 | M47: =IF($E$4=1,IF(ISNUMBER(M48),M48,NA()),IF($E$4=2,IF(ISNUMBER(M49),M49,NA()),NA())) -> €7,500 | N47: =IF($E$4=1,IF(ISNUMBER(N48),N48,NA()),IF($E$4=2,IF(ISNUMBER(N49),N49,NA()),NA())) -> €7,500 | O47: =IF($E$4=1,IF(ISNUMBER(O48),O48,NA()),IF($E$4=2,IF(ISNUMBER(O49),O49,NA()),NA())) -> €7,800 | P47: =IF($E$4=1,IF(ISNUMBER(P48),P48,NA()),IF($E$4=2,IF(ISNUMBER(P49),P49,NA()),NA())) -> €7,800
C48: Base | M48: €7,500 | N48: €7,500 | O48: €7,800 | P48: €7,800
C49: Downside | M49: €7,500 | N49: €7,500 | O49: €7,500 | P49: €7,500
C50: Professional fees — active | E50: ='Source inputs'!E22 -> €4,000 | F50: ='Source inputs'!F22 -> €4,000 | G50: ='Source inputs'!G22 -> €4,500 | H50: ='Source inputs'!H22 -> €4,200 | I50: ='Source inputs'!I22 -> €4,500 | J50: ='Source inputs'!J22 -> €4,500 | K50: ='Source inputs'!K22 -> €5,000 | L50: ='Source inputs'!L22 -> €5,000 | M50: =IF($E$4=1,IF(ISNUMBER(M51),M51,NA()),IF($E$4=2,IF(ISNUMBER(M52),M52,NA()),NA())) -> €4,500 | N50: =IF($E$4=1,IF(ISNUMBER(N51),N51,NA()),IF($E$4=2,IF(ISNUMBER(N52),N52,NA()),NA())) -> €4,500 | O50: =IF($E$4=1,IF(ISNUMBER(O51),O51,NA()),IF($E$4=2,IF(ISNUMBER(O52),O52,NA()),NA())) -> €5,000 | P50: =IF($E$4=1,IF(ISNUMBER(P51),P51,NA()),IF($E$4=2,IF(ISNUMBER(P52),P52,NA()),NA())) -> €5,000
C51: Base | M51: €4,500 | N51: €4,500 | O51: €5,000 | P51: €5,000
C52: Downside | M52: €5,000 | N52: €5,000 | O52: €5,000 | P52: €5,000
C53: Target closing AR days — active | E53: ='Source inputs'!E23 -> 38.0 | F53: ='Source inputs'!F23 -> 38.0 | G53: ='Source inputs'!G23 -> 38.0 | H53: ='Source inputs'!H23 -> 38.0 | I53: ='Source inputs'!I23 -> 38.0 | J53: ='Source inputs'!J23 -> 38.0 | K53: ='Source inputs'!K23 -> 38.0 | L53: ='Source inputs'!L23 -> 38.0 | M53: =IF($E$4=1,IF(ISNUMBER(M54),M54,NA()),IF($E$4=2,IF(ISNUMBER(M55),M55,NA()),NA())) -> 37.0 | N53: =IF($E$4=1,IF(ISNUMBER(N54),N54,NA()),IF($E$4=2,IF(ISNUMBER(N55),N55,NA()),NA())) -> 35.0 | O53: =IF($E$4=1,IF(ISNUMBER(O54),O54,NA()),IF($E$4=2,IF(ISNUMBER(O55),O55,NA()),NA())) -> 34.0 | P53: =IF($E$4=1,IF(ISNUMBER(P54),P54,NA()),IF($E$4=2,IF(ISNUMBER(P55),P55,NA()),NA())) -> 34.0
C54: Base | M54: 37.0 | N54: 35.0 | O54: 34.0 | P54: 34.0
C55: Downside | M55: 49.0 | N55: 52.0 | O55: 55.0 | P55: 55.0
C56: New supplier payable days — active | E56: ='Source inputs'!E24 -> 25.0 | F56: ='Source inputs'!F24 -> 25.0 | G56: ='Source inputs'!G24 -> 25.0 | H56: ='Source inputs'!H24 -> 25.0 | I56: ='Source inputs'!I24 -> 25.0 | J56: ='Source inputs'!J24 -> 25.0 | K56: ='Source inputs'!K24 -> 25.0 | L56: ='Source inputs'!L24 -> 25.0 | M56: =IF($E$4=1,IF(ISNUMBER(M57),M57,NA()),IF($E$4=2,IF(ISNUMBER(M58),M58,NA()),NA())) -> 25.0 | N56: =IF($E$4=1,IF(ISNUMBER(N57),N57,NA()),IF($E$4=2,IF(ISNUMBER(N58),N58,NA()),NA())) -> 25.0 | O56: =IF($E$4=1,IF(ISNUMBER(O57),O57,NA()),IF($E$4=2,IF(ISNUMBER(O58),O58,NA()),NA())) -> 25.0 | P56: =IF($E$4=1,IF(ISNUMBER(P57),P57,NA()),IF($E$4=2,IF(ISNUMBER(P58),P58,NA()),NA())) -> 25.0
C57: Base | M57: 25.0 | N57: 25.0 | O57: 25.0 | P57: 25.0
C58: Downside | M58: 25.0 | N58: 25.0 | O58: 25.0 | P58: 25.0
C59: Unbilled project revenue share — active | E59: ='Source inputs'!E25 -> 14.0% | F59: ='Source inputs'!F25 -> 15.0% | G59: ='Source inputs'!G25 -> 16.0% | H59: ='Source inputs'!H25 -> 16.0% | I59: ='Source inputs'!I25 -> 18.0% | J59: ='Source inputs'!J25 -> 20.0% | K59: ='Source inputs'!K25 -> 23.0% | L59: ='Source inputs'!L25 -> 25.0% | M59: =IF($E$4=1,IF(ISNUMBER(M60),M60,NA()),IF($E$4=2,IF(ISNUMBER(M61),M61,NA()),NA())) -> 16.0% | N59: =IF($E$4=1,IF(ISNUMBER(N60),N60,NA()),IF($E$4=2,IF(ISNUMBER(N61),N61,NA()),NA())) -> 15.0% | O59: =IF($E$4=1,IF(ISNUMBER(O60),O60,NA()),IF($E$4=2,IF(ISNUMBER(O61),O61,NA()),NA())) -> 14.0% | P59: =IF($E$4=1,IF(ISNUMBER(P60),P60,NA()),IF($E$4=2,IF(ISNUMBER(P61),P61,NA()),NA())) -> 12.0%
C60: Base | M60: 16.0% | N60: 15.0% | O60: 14.0% | P60: 12.0%
C61: Downside | M61: 24.0% | N61: 28.0% | O61: 30.0% | P61: 30.0%
C62: Advance contract billing share — active | E62: ='Source inputs'!E26 -> 40.0% | F62: ='Source inputs'!F26 -> 40.0% | G62: ='Source inputs'!G26 -> 40.0% | H62: ='Source inputs'!H26 -> 40.0% | I62: ='Source inputs'!I26 -> 40.0% | J62: ='Source inputs'!J26 -> 40.0% | K62: ='Source inputs'!K26 -> 40.0% | L62: ='Source inputs'!L26 -> 40.0% | M62: =IF($E$4=1,IF(ISNUMBER(M63),M63,NA()),IF($E$4=2,IF(ISNUMBER(M64),M64,NA()),NA())) -> 40.0% | N62: =IF($E$4=1,IF(ISNUMBER(N63),N63,NA()),IF($E$4=2,IF(ISNUMBER(N64),N64,NA()),NA())) -> 40.0% | O62: =IF($E$4=1,IF(ISNUMBER(O63),O63,NA()),IF($E$4=2,IF(ISNUMBER(O64),O64,NA()),NA())) -> 40.0% | P62: =IF($E$4=1,IF(ISNUMBER(P63),P63,NA()),IF($E$4=2,IF(ISNUMBER(P64),P64,NA()),NA())) -> 40.0%
C63: Base | M63: 40.0% | N63: 40.0% | O63: 40.0% | P63: 40.0%
C64: Downside | M64: 35.0% | N64: 35.0% | O64: 35.0% | P64: 35.0%
C65: Capital purchases — active | E65: ='Source inputs'!E27 -> €6,000 | F65: ='Source inputs'!F27 -> 0 | G65: ='Source inputs'!G27 -> €12,000 | H65: ='Source inputs'!H27 -> 0 | I65: ='Source inputs'!I27 -> €6,000 | J65: ='Source inputs'!J27 -> 0 | K65: ='Source inputs'!K27 -> €14,000 | L65: ='Source inputs'!L27 -> 0 | M65: =IF($E$4=1,IF(ISNUMBER(M66),M66,NA()),IF($E$4=2,IF(ISNUMBER(M67),M67,NA()),NA())) -> €32,000 | N65: =IF($E$4=1,IF(ISNUMBER(N66),N66,NA()),IF($E$4=2,IF(ISNUMBER(N67),N67,NA()),NA())) -> €8,000 | O65: =IF($E$4=1,IF(ISNUMBER(O66),O66,NA()),IF($E$4=2,IF(ISNUMBER(O67),O67,NA()),NA())) -> €6,000 | P65: =IF($E$4=1,IF(ISNUMBER(P66),P66,NA()),IF($E$4=2,IF(ISNUMBER(P67),P67,NA()),NA())) -> €6,000
C66: Base | M66: €32,000 | N66: €8,000 | O66: €6,000 | P66: €6,000
C67: Downside | M67: €32,000 | N67: €8,000 | O67: €6,000 | P67: €6,000
C68: Cash tax paid — active | E68: ='Source inputs'!E28 -> 0 | F68: ='Source inputs'!F28 -> 0 | G68: ='Source inputs'!G28 -> €12,000 | H68: ='Source inputs'!H28 -> 0 | I68: ='Source inputs'!I28 -> 0 | J68: ='Source inputs'!J28 -> €10,000 | K68: ='Source inputs'!K28 -> 0 | L68: ='Source inputs'!L28 -> 0 | M68: =IF($E$4=1,IF(ISNUMBER(M69),M69,NA()),IF($E$4=2,IF(ISNUMBER(M70),M70,NA()),NA())) -> €18,000 | N68: =IF($E$4=1,IF(ISNUMBER(N69),N69,NA()),IF($E$4=2,IF(ISNUMBER(N70),N70,NA()),NA())) -> 0 | O68: =IF($E$4=1,IF(ISNUMBER(O69),O69,NA()),IF($E$4=2,IF(ISNUMBER(O70),O70,NA()),NA())) -> 0 | P68: =IF($E$4=1,IF(ISNUMBER(P69),P69,NA()),IF($E$4=2,IF(ISNUMBER(P70),P70,NA()),NA())) -> €12,000
C69: Base | M69: €18,000 | N69: 0 | O69: 0 | P69: €12,000
C70: Downside | M70: €18,000 | N70: 0 | O70: 0 | P70: €8,000
C71: Opening AR collection delay days — active | E71: ='Source inputs'!E29 -> 0 | F71: ='Source inputs'!F29 -> 0 | G71: ='Source inputs'!G29 -> 0 | H71: ='Source inputs'!H29 -> 0 | I71: ='Source inputs'!I29 -> 0 | J71: ='Source inputs'!J29 -> 0 | K71: ='Source inputs'!K29 -> 0 | L71: ='Source inputs'!L29 -> 0 | M71: =IF($E$4=1,IF(ISNUMBER(M72),M72,NA()),IF($E$4=2,IF(ISNUMBER(M73),M73,NA()),NA())) -> 0 | N71: =IF($E$4=1,IF(ISNUMBER(N72),N72,NA()),IF($E$4=2,IF(ISNUMBER(N73),N73,NA()),NA())) -> 0 | O71: =IF($E$4=1,IF(ISNUMBER(O72),O72,NA()),IF($E$4=2,IF(ISNUMBER(O73),O73,NA()),NA())) -> 0 | P71: =IF($E$4=1,IF(ISNUMBER(P72),P72,NA()),IF($E$4=2,IF(ISNUMBER(P73),P73,NA()),NA())) -> 0
C72: Base | M72: 0 | N72: 0 | O72: 0 | P72: 0
C73: Downside | M73: 14.0 | N73: 14.0 | O73: 14.0 | P73: 14.0

Sheet P&L
C2: P&L
C4: Selected case | E4: ='Assumptions'!$G$4 -> Base | H4: EUR. Entirely fictional.
E6: Actual | F6: Actual | G6: Actual | H6: Actual | I6: Actual | J6: Actual | K6: Actual | L6: Actual | M6: Forecast | N6: Forecast | O6: Forecast | P6: Forecast
E7: 2026-01-01 | F7: 2026-02-01 | G7: 2026-03-01 | H7: 2026-04-01 | I7: 2026-05-01 | J7: 2026-06-01 | K7: 2026-07-01 | L7: 2026-08-01 | M7: 2026-09-01 | N7: 2026-10-01 | O7: 2026-11-01 | P7: 2026-12-01
C8: Recurring fees | E8: ='Operating model'!E8 -> €62,000 | F8: ='Operating model'!F8 -> €62,500 | G8: ='Operating model'!G8 -> €68,750 | H8: ='Operating model'!H8 -> €70,400 | I8: ='Operating model'!I8 -> €70,400 | J8: ='Operating model'!J8 -> €78,000 | K8: ='Operating model'!K8 -> €78,000 | L8: ='Operating model'!L8 -> €78,000 | M8: ='Operating model'!M8 -> €86,450 | N8: ='Operating model'!N8 -> €87,100 | O8: ='Operating model'!O8 -> €93,800 | P8: ='Operating model'!P8 -> €95,900
C9: Project fees | E9: ='Operating model'!E9 -> €69,000 | F9: ='Operating model'!F9 -> €71,875 | G9: ='Operating model'!G9 -> €71,980 | H9: ='Operating model'!H9 -> €76,110 | I9: ='Operating model'!I9 -> €80,400 | J9: ='Operating model'!J9 -> €75,600 | K9: ='Operating model'!K9 -> €82,800 | L9: ='Operating model'!L9 -> €78,000 | M9: ='Operating model'!M9 -> €88,750 | N9: ='Operating model'!N9 -> €93,750 | O9: ='Operating model'!O9 -> €100,100 | P9: ='Operating model'!P9 -> €88,400
C10: Hardware resale revenue | E10: ='Operating model'!E10 -> 0 | F10: ='Operating model'!F10 -> 0 | G10: ='Operating model'!G10 -> 0 | H10: ='Operating model'!H10 -> 0 | I10: ='Operating model'!I10 -> 0 | J10: ='Operating model'!J10 -> 0 | K10: ='Operating model'!K10 -> 0 | L10: ='Operating model'!L10 -> 0 | M10: ='Operating model'!M10 -> 0 | N10: ='Operating model'!N10 -> 0 | O10: ='Operating model'!O10 -> 0 | P10: ='Operating model'!P10 -> 0
C11: Licence resale revenue | E11: ='Operating model'!E11 -> 0 | F11: ='Operating model'!F11 -> 0 | G11: ='Operating model'!G11 -> 0 | H11: ='Operating model'!H11 -> 0 | I11: ='Operating model'!I11 -> 0 | J11: ='Operating model'!J11 -> 0 | K11: ='Operating model'!K11 -> 0 | L11: ='Operating model'!L11 -> 0 | M11: ='Operating model'!M11 -> 0 | N11: ='Operating model'!N11 -> 0 | O11: ='Operating model'!O11 -> 0 | P11: ='Operating model'!P11 -> 0
C12: Revenue | E12: ='Operating model'!E19 -> €131,000 | F12: ='Operating model'!F19 -> €134,375 | G12: ='Operating model'!G19 -> €140,730 | H12: ='Operating model'!H19 -> €146,510 | I12: ='Operating model'!I19 -> €150,800 | J12: ='Operating model'!J19 -> €153,600 | K12: ='Operating model'!K19 -> €160,800 | L12: ='Operating model'!L19 -> €156,000 | M12: ='Operating model'!M19 -> €175,200 | N12: ='Operating model'!N19 -> €180,850 | O12: ='Operating model'!O19 -> €193,900 | P12: ='Operating model'!P19 -> €184,300
C13: Delivery payroll | E13: ='Operating model'!E16 -> €56,400 | F13: ='Operating model'!F16 -> €56,400 | G13: ='Operating model'!G16 -> €61,750 | H13: ='Operating model'!H16 -> €61,750 | I13: ='Operating model'!I16 -> €62,400 | J13: ='Operating model'!J16 -> €67,200 | K13: ='Operating model'!K16 -> €68,600 | L13: ='Operating model'!L16 -> €68,600 | M13: ='Operating model'!M16 -> €68,600 | N13: ='Operating model'!N16 -> €69,300 | O13: ='Operating model'!O16 -> €74,250 | P13: ='Operating model'!P16 -> €75,000
C14: Subcontractors | E14: ='Operating model'!E17 -> €9,450 | F14: ='Operating model'!F17 -> €9,800 | G14: ='Operating model'!G17 -> €11,160 | H14: ='Operating model'!H17 -> €11,520 | I14: ='Operating model'!I17 -> €12,580 | J14: ='Operating model'!J17 -> €13,320 | K14: ='Operating model'!K17 -> €14,625 | L14: ='Operating model'!L17 -> €15,000 | M14: ='Operating model'!M17 -> €13,260 | N14: ='Operating model'!N17 -> €13,650 | O14: ='Operating model'!O17 -> €14,400 | P14: ='Operating model'!P17 -> €12,800
C15: Delivery software | E15: ='Operating model'!E18 -> €5,500 | F15: ='Operating model'!F18 -> €5,500 | G15: ='Operating model'!G18 -> €5,800 | H15: ='Operating model'!H18 -> €5,800 | I15: ='Operating model'!I18 -> €6,000 | J15: ='Operating model'!J18 -> €6,200 | K15: ='Operating model'!K18 -> €6,500 | L15: ='Operating model'!L18 -> €6,500 | M15: ='Operating model'!M18 -> €6,800 | N15: ='Operating model'!N18 -> €6,800 | O15: ='Operating model'!O18 -> €7,200 | P15: ='Operating model'!P18 -> €7,200
C16: Hardware supplier cost | E16: ='Operating model'!E12 -> 0 | F16: ='Operating model'!F12 -> 0 | G16: ='Operating model'!G12 -> 0 | H16: ='Operating model'!H12 -> 0 | I16: ='Operating model'!I12 -> 0 | J16: ='Operating model'!J12 -> 0 | K16: ='Operating model'!K12 -> 0 | L16: ='Operating model'!L12 -> 0 | M16: ='Operating model'!M12 -> 0 | N16: ='Operating model'!N12 -> 0 | O16: ='Operating model'!O12 -> 0 | P16: ='Operating model'!P12 -> 0
C17: Licence supplier cost | E17: ='Operating model'!E13 -> 0 | F17: ='Operating model'!F13 -> 0 | G17: ='Operating model'!G13 -> 0 | H17: ='Operating model'!H13 -> 0 | I17: ='Operating model'!I13 -> 0 | J17: ='Operating model'!J13 -> 0 | K17: ='Operating model'!K13 -> 0 | L17: ='Operating model'!L13 -> 0 | M17: ='Operating model'!M13 -> 0 | N17: ='Operating model'!N13 -> 0 | O17: ='Operating model'!O13 -> 0 | P17: ='Operating model'!P13 -> 0
C18: Direct costs | E18: ='Operating model'!E20 -> €71,350 | F18: ='Operating model'!F20 -> €71,700 | G18: ='Operating model'!G20 -> €78,710 | H18: ='Operating model'!H20 -> €79,070 | I18: ='Operating model'!I20 -> €80,980 | J18: ='Operating model'!J20 -> €86,720 | K18: ='Operating model'!K20 -> €89,725 | L18: ='Operating model'!L20 -> €90,100 | M18: ='Operating model'!M20 -> €88,660 | N18: ='Operating model'!N20 -> €89,750 | O18: ='Operating model'!O20 -> €95,850 | P18: ='Operating model'!P20 -> €95,000
C19: Gross profit | E19: ='Operating model'!E21 -> €59,650 | F19: ='Operating model'!F21 -> €62,675 | G19: ='Operating model'!G21 -> €62,020 | H19: ='Operating model'!H21 -> €67,440 | I19: ='Operating model'!I21 -> €69,820 | J19: ='Operating model'!J21 -> €66,880 | K19: ='Operating model'!K21 -> €71,075 | L19: ='Operating model'!L21 -> €65,900 | M19: ='Operating model'!M21 -> €86,540 | N19: ='Operating model'!N21 -> €91,100 | O19: ='Operating model'!O21 -> €98,050 | P19: ='Operating model'!P21 -> €89,300
C20: Gross margin | E20: ='Operating model'!E22 -> 45.5% | F20: ='Operating model'!F22 -> 46.6% | G20: ='Operating model'!G22 -> 44.1% | H20: ='Operating model'!H22 -> 46.0% | I20: ='Operating model'!I22 -> 46.3% | J20: ='Operating model'!J22 -> 43.5% | K20: ='Operating model'!K22 -> 44.2% | L20: ='Operating model'!L22 -> 42.2% | M20: ='Operating model'!M22 -> 49.4% | N20: ='Operating model'!N22 -> 50.4% | O20: ='Operating model'!O22 -> 50.6% | P20: ='Operating model'!P22 -> 48.5%
C21: Operating expenses | E21: ='Operating model'!E23 -> €44,000 | F21: ='Operating model'!F23 -> €44,500 | G21: ='Operating model'!G23 -> €45,500 | H21: ='Operating model'!H23 -> €45,900 | I21: ='Operating model'!I23 -> €46,700 | J21: ='Operating model'!J23 -> €48,200 | K21: ='Operating model'!K23 -> €50,500 | L21: ='Operating model'!L23 -> €50,500 | M21: ='Operating model'!M23 -> €50,000 | N21: ='Operating model'!N23 -> €51,000 | O21: ='Operating model'!O23 -> €53,800 | P21: ='Operating model'!P23 -> €52,800
C22: EBITDA | E22: ='Operating model'!E24 -> €15,650 | F22: ='Operating model'!F24 -> €18,175 | G22: ='Operating model'!G24 -> €16,520 | H22: ='Operating model'!H24 -> €21,540 | I22: ='Operating model'!I24 -> €23,120 | J22: ='Operating model'!J24 -> €18,680 | K22: ='Operating model'!K24 -> €20,575 | L22: ='Operating model'!L24 -> €15,400 | M22: ='Operating model'!M24 -> €36,540 | N22: ='Operating model'!N24 -> €40,100 | O22: ='Operating model'!O24 -> €44,250 | P22: ='Operating model'!P24 -> €36,500
C23: Depreciation | E23: ='Assets debt tax'!E12 -> €1,967 | F23: ='Assets debt tax'!F12 -> €1,967 | G23: ='Assets debt tax'!G12 -> €2,300 | H23: ='Assets debt tax'!H12 -> €2,300 | I23: ='Assets debt tax'!I12 -> €2,467 | J23: ='Assets debt tax'!J12 -> €2,467 | K23: ='Assets debt tax'!K12 -> €2,856 | L23: ='Assets debt tax'!L12 -> €2,856 | M23: ='Assets debt tax'!M12 -> €3,744 | N23: ='Assets debt tax'!N12 -> €3,967 | O23: ='Assets debt tax'!O12 -> €4,133 | P23: ='Assets debt tax'!P12 -> €4,300
C24: Interest | E24: ='Assets debt tax'!E18 -> €650 | F24: ='Assets debt tax'!F18 -> €628 | G24: ='Assets debt tax'!G18 -> €607 | H24: ='Assets debt tax'!H18 -> €585 | I24: ='Assets debt tax'!I18 -> €563 | J24: ='Assets debt tax'!J18 -> €542 | K24: ='Assets debt tax'!K18 -> €520 | L24: ='Assets debt tax'!L18 -> €498 | M24: ='Assets debt tax'!M18 -> €477 | N24: ='Assets debt tax'!N18 -> €455 | O24: ='Assets debt tax'!O18 -> €433 | P24: ='Assets debt tax'!P18 -> €412
C25: Profit before tax | E25: =E22-E23-E24 -> €13,033 | F25: =F22-F23-F24 -> €15,580 | G25: =G22-G23-G24 -> €13,613 | H25: =H22-H23-H24 -> €18,655 | I25: =I22-I23-I24 -> €20,090 | J25: =J22-J23-J24 -> €15,672 | K25: =K22-K23-K24 -> €17,199 | L25: =L22-L23-L24 -> €12,046 | M25: =M22-M23-M24 -> €32,319 | N25: =N22-N23-N24 -> €35,678 | O25: =O22-O23-O24 -> €39,683 | P25: =P22-P23-P24 -> €31,788
C26: Illustrative tax | E26: =MAX(0,E25)*0.2 -> €2,607 | F26: =MAX(0,F25)*0.2 -> €3,116 | G26: =MAX(0,G25)*0.2 -> €2,723 | H26: =MAX(0,H25)*0.2 -> €3,731 | I26: =MAX(0,I25)*0.2 -> €4,018 | J26: =MAX(0,J25)*0.2 -> €3,134 | K26: =MAX(0,K25)*0.2 -> €3,440 | L26: =MAX(0,L25)*0.2 -> €2,409 | M26: =MAX(0,M25)*0.2 -> €6,464 | N26: =MAX(0,N25)*0.2 -> €7,136 | O26: =MAX(0,O25)*0.2 -> €7,937 | P26: =MAX(0,P25)*0.2 -> €6,358
C27: Net profit | E27: =E25-E26 -> €10,427 | F27: =F25-F26 -> €12,464 | G27: =G25-G26 -> €10,891 | H27: =H25-H26 -> €14,924 | I27: =I25-I26 -> €16,072 | J27: =J25-J26 -> €12,537 | K27: =K25-K26 -> €13,760 | L27: =L25-L26 -> €9,637 | M27: =M25-M26 -> €25,855 | N27: =N25-N26 -> €28,543 | O27: =O25-O26 -> €31,747 | P27: =P25-P26 -> €25,431
C31: Revenue variance versus original budget | E31: =E12-'Original budget'!E12 -> (€9,830) | F31: =F12-'Original budget'!F12 -> (€10,188) | G31: =G12-'Original budget'!G12 -> (€10,356) | H31: =H12-'Original budget'!H12 -> (€10,893) | I31: =I12-'Original budget'!I12 -> (€11,408) | J31: =J12-'Original budget'!J12 -> (€11,022) | K31: =K12-'Original budget'!K12 -> (€11,886) | L31: =L12-'Original budget'!L12 -> (€11,310) | M31: =M12-'Original budget'!M12 -> 0 | N31: =N12-'Original budget'!N12 -> 0 | O31: =O12-'Original budget'!O12 -> 0 | P31: =P12-'Original budget'!P12 -> 0
C32: EBITDA variance versus original budget | E32: =E22-'Original budget'!E22 -> (€9,830) | F32: =F22-'Original budget'!F22 -> (€10,188) | G32: =G22-'Original budget'!G22 -> (€10,356) | H32: =H22-'Original budget'!H22 -> (€10,893) | I32: =I22-'Original budget'!I22 -> (€11,408) | J32: =J22-'Original budget'!J22 -> (€11,022) | K32: =K22-'Original budget'!K22 -> (€11,886) | L32: =L22-'Original budget'!L22 -> (€11,310) | M32: =M22-'Original budget'!M22 -> 0 | N32: =N22-'Original budget'!N22 -> 0 | O32: =O22-'Original budget'!O22 -> 0 | P32: =P22-'Original budget'!P22 -> 0
C35: Costs shown positive and deducted. Forecast starts September 2026.

Sheet Balance sheet
C2: Balance sheet
C4: Selected case | E4: ='Assumptions'!$G$4 -> Base | H4: EUR. Entirely fictional.
E6: Actual | F6: Actual | G6: Actual | H6: Actual | I6: Actual | J6: Actual | K6: Actual | L6: Actual | M6: Forecast | N6: Forecast | O6: Forecast | P6: Forecast
E7: 2026-01-01 | F7: 2026-02-01 | G7: 2026-03-01 | H7: 2026-04-01 | I7: 2026-05-01 | J7: 2026-06-01 | K7: 2026-07-01 | L7: 2026-08-01 | M7: 2026-09-01 | N7: 2026-10-01 | O7: 2026-11-01 | P7: 2026-12-01
C8: Cash / (unfunded requirement) | E8: ='Cash flow'!E20 -> €160,140 | F8: ='Cash flow'!F20 -> €164,765 | G8: ='Cash flow'!G20 -> €148,443 | H8: ='Cash flow'!H20 -> €154,397 | I8: ='Cash flow'!I20 -> €149,660 | J8: ='Cash flow'!J20 -> €143,190 | K8: ='Cash flow'!K20 -> €130,321 | L8: ='Cash flow'!L20 -> €127,767 | M8: ='Cash flow'!M20 -> €135,927 | N8: ='Cash flow'!N20 -> €143,439 | O8: ='Cash flow'!O20 -> €165,924 | P8: ='Cash flow'!P20 -> €200,006
C9: Accounts receivable | E9: ='Working capital'!E19 -> €128,000 | F9: ='Working capital'!F19 -> €137,000 | G9: ='Working capital'!G19 -> €146,000 | H9: ='Working capital'!H19 -> €158,000 | I9: ='Working capital'!I19 -> €174,000 | J9: ='Working capital'!J19 -> €189,000 | K9: ='Working capital'!K19 -> €203,000 | L9: ='Working capital'!L19 -> €220,000 | M9: ='Working capital'!M19 -> €183,880 | N9: ='Working capital'!N19 -> €204,185 | O9: ='Working capital'!O19 -> €219,753 | P9: ='Working capital'!P19 -> €202,135
C10: Unbilled contract assets | E10: ='Working capital'!E9 -> €9,660 | F10: ='Working capital'!F9 -> €10,781 | G10: ='Working capital'!G9 -> €11,517 | H10: ='Working capital'!H9 -> €12,178 | I10: ='Working capital'!I9 -> €14,472 | J10: ='Working capital'!J9 -> €15,120 | K10: ='Working capital'!K9 -> €19,044 | L10: ='Working capital'!L9 -> €19,500 | M10: ='Working capital'!M9 -> €14,200 | N10: ='Working capital'!N9 -> €14,063 | O10: ='Working capital'!O9 -> €14,014 | P10: ='Working capital'!P9 -> €10,608
C11: Net fixed assets | E11: ='Assets debt tax'!E14 -> €65,033 | F11: ='Assets debt tax'!F14 -> €63,067 | G11: ='Assets debt tax'!G14 -> €72,767 | H11: ='Assets debt tax'!H14 -> €70,467 | I11: ='Assets debt tax'!I14 -> €74,000 | J11: ='Assets debt tax'!J14 -> €71,533 | K11: ='Assets debt tax'!K14 -> €82,678 | L11: ='Assets debt tax'!L14 -> €79,822 | M11: ='Assets debt tax'!M14 -> €108,078 | N11: ='Assets debt tax'!N14 -> €112,111 | O11: ='Assets debt tax'!O14 -> €113,978 | P11: ='Assets debt tax'!P14 -> €115,678
C12: Current tax prepayment | E12: =MAX(0,-'Assets debt tax'!E23) -> 0 | F12: =MAX(0,-'Assets debt tax'!F23) -> 0 | G12: =MAX(0,-'Assets debt tax'!G23) -> 0 | H12: =MAX(0,-'Assets debt tax'!H23) -> 0 | I12: =MAX(0,-'Assets debt tax'!I23) -> 0 | J12: =MAX(0,-'Assets debt tax'!J23) -> 0 | K12: =MAX(0,-'Assets debt tax'!K23) -> 0 | L12: =MAX(0,-'Assets debt tax'!L23) -> 0 | M12: =MAX(0,-'Assets debt tax'!M23) -> €1,358 | N12: =MAX(0,-'Assets debt tax'!N23) -> 0 | O12: =MAX(0,-'Assets debt tax'!O23) -> 0 | P12: =MAX(0,-'Assets debt tax'!P23) -> 0
C13: Total assets | E13: =SUM(E8:E12) -> €362,833 | F13: =SUM(F8:F12) -> €375,613 | G13: =SUM(G8:G12) -> €378,727 | H13: =SUM(H8:H12) -> €395,042 | I13: =SUM(I8:I12) -> €412,132 | J13: =SUM(J8:J12) -> €418,843 | K13: =SUM(K8:K12) -> €435,043 | L13: =SUM(L8:L12) -> €447,089 | M13: =SUM(M8:M12) -> €443,443 | N13: =SUM(N8:N12) -> €473,798 | O13: =SUM(O8:O12) -> €513,669 | P13: =SUM(P8:P12) -> €528,427
C14: Accounts payable | E14: ='Working capital'!E26 -> €31,000 | F14: ='Working capital'!F26 -> €32,000 | G14: ='Working capital'!G26 -> €35,000 | H14: ='Working capital'!H26 -> €36,000 | I14: ='Working capital'!I26 -> €37,000 | J14: ='Working capital'!J26 -> €39,000 | K14: ='Working capital'!K26 -> €42,000 | L14: ='Working capital'!L26 -> €46,000 | M14: ='Working capital'!M26 -> €27,297 | N14: ='Working capital'!N26 -> €27,072 | O14: ='Working capital'!O26 -> €28,580 | P14: ='Working capital'!P26 -> €26,709
C15: Payroll accruals | E15: ='Source inputs'!$E$55 -> €18,000 | F15: ='Source inputs'!$E$55 -> €18,000 | G15: ='Source inputs'!$E$55 -> €18,000 | H15: ='Source inputs'!$E$55 -> €18,000 | I15: ='Source inputs'!$E$55 -> €18,000 | J15: ='Source inputs'!$E$55 -> €18,000 | K15: ='Source inputs'!$E$55 -> €18,000 | L15: ='Source inputs'!$E$55 -> €18,000 | M15: ='Source inputs'!$E$55 -> €18,000 | N15: ='Source inputs'!$E$55 -> €18,000 | O15: ='Source inputs'!$E$55 -> €18,000 | P15: ='Source inputs'!$E$55 -> €18,000
C16: Advance contract billings | E16: ='Working capital'!E11 -> €24,800 | F16: ='Working capital'!F11 -> €25,000 | G16: ='Working capital'!G11 -> €27,500 | H16: ='Working capital'!H11 -> €28,160 | I16: ='Working capital'!I11 -> €28,160 | J16: ='Working capital'!J11 -> €31,200 | K16: ='Working capital'!K11 -> €31,200 | L16: ='Working capital'!L11 -> €31,200 | M16: ='Working capital'!M11 -> €34,580 | N16: ='Working capital'!N11 -> €34,840 | O16: ='Working capital'!O11 -> €37,520 | P16: ='Working capital'!P11 -> €38,360
C17: Current tax payable | E17: =MAX(0,'Assets debt tax'!E23) -> €9,607 | F17: =MAX(0,'Assets debt tax'!F23) -> €12,723 | G17: =MAX(0,'Assets debt tax'!G23) -> €3,445 | H17: =MAX(0,'Assets debt tax'!H23) -> €7,176 | I17: =MAX(0,'Assets debt tax'!I23) -> €11,194 | J17: =MAX(0,'Assets debt tax'!J23) -> €4,329 | K17: =MAX(0,'Assets debt tax'!K23) -> €7,769 | L17: =MAX(0,'Assets debt tax'!L23) -> €10,178 | M17: =MAX(0,'Assets debt tax'!M23) -> 0 | N17: =MAX(0,'Assets debt tax'!N23) -> €5,777 | O17: =MAX(0,'Assets debt tax'!O23) -> €13,714 | P17: =MAX(0,'Assets debt tax'!P23) -> €8,072
C18: Debt | E18: ='Assets debt tax'!E17 -> €116,000 | F18: ='Assets debt tax'!F17 -> €112,000 | G18: ='Assets debt tax'!G17 -> €108,000 | H18: ='Assets debt tax'!H17 -> €104,000 | I18: ='Assets debt tax'!I17 -> €100,000 | J18: ='Assets debt tax'!J17 -> €96,000 | K18: ='Assets debt tax'!K17 -> €92,000 | L18: ='Assets debt tax'!L17 -> €88,000 | M18: ='Assets debt tax'!M17 -> €84,000 | N18: ='Assets debt tax'!N17 -> €80,000 | O18: ='Assets debt tax'!O17 -> €76,000 | P18: ='Assets debt tax'!P17 -> €72,000
C19: Total liabilities | E19: =SUM(E14:E18) -> €199,407 | F19: =SUM(F14:F18) -> €199,723 | G19: =SUM(G14:G18) -> €191,945 | H19: =SUM(H14:H18) -> €193,336 | I19: =SUM(I14:I18) -> €194,354 | J19: =SUM(J14:J18) -> €188,529 | K19: =SUM(K14:K18) -> €190,969 | L19: =SUM(L14:L18) -> €193,378 | M19: =SUM(M14:M18) -> €163,877 | N19: =SUM(N14:N18) -> €165,689 | O19: =SUM(O14:O18) -> €173,814 | P19: =SUM(P14:P18) -> €163,141
C20: Share capital | E20: ='Source inputs'!$E$60 -> €50,000 | F20: ='Source inputs'!$E$60 -> €50,000 | G20: ='Source inputs'!$E$60 -> €50,000 | H20: ='Source inputs'!$E$60 -> €50,000 | I20: ='Source inputs'!$E$60 -> €50,000 | J20: ='Source inputs'!$E$60 -> €50,000 | K20: ='Source inputs'!$E$60 -> €50,000 | L20: ='Source inputs'!$E$60 -> €50,000 | M20: ='Source inputs'!$E$60 -> €50,000 | N20: ='Source inputs'!$E$60 -> €50,000 | O20: ='Source inputs'!$E$60 -> €50,000 | P20: ='Source inputs'!$E$60 -> €50,000
C21: Retained earnings | E21: ='Source inputs'!$E$61+'P&L'!E27 -> €113,427 | F21: =E21+'P&L'!F27 -> €125,891 | G21: =F21+'P&L'!G27 -> €136,781 | H21: =G21+'P&L'!H27 -> €151,705 | I21: =H21+'P&L'!I27 -> €167,777 | J21: =I21+'P&L'!J27 -> €180,315 | K21: =J21+'P&L'!K27 -> €194,074 | L21: =K21+'P&L'!L27 -> €203,711 | M21: =L21+'P&L'!M27 -> €229,566 | N21: =M21+'P&L'!N27 -> €258,109 | O21: =N21+'P&L'!O27 -> €289,856 | P21: =O21+'P&L'!P27 -> €315,286
C22: Total equity | E22: =SUM(E20:E21) -> €163,427 | F22: =SUM(F20:F21) -> €175,891 | G22: =SUM(G20:G21) -> €186,781 | H22: =SUM(H20:H21) -> €201,705 | I22: =SUM(I20:I21) -> €217,777 | J22: =SUM(J20:J21) -> €230,315 | K22: =SUM(K20:K21) -> €244,074 | L22: =SUM(L20:L21) -> €253,711 | M22: =SUM(M20:M21) -> €279,566 | N22: =SUM(N20:N21) -> €308,109 | O22: =SUM(O20:O21) -> €339,856 | P22: =SUM(P20:P21) -> €365,286
C23: Assets less liabilities and equity | E23: =E13-E19-E22 -> (€0) | F23: =F13-F19-F22 -> (€0) | G23: =G13-G19-G22 -> (€0) | H23: =H13-H19-H22 -> (€0) | I23: =I13-I19-I22 -> (€0) | J23: =J13-J19-J22 -> 0 | K23: =K13-K19-K22 -> (€0) | L23: =L13-L19-L22 -> (€0) | M23: =M13-M19-M22 -> 0 | N23: =N13-N19-N22 -> €0 | O23: =O13-O19-O22 -> €0 | P23: =P13-P19-P22 -> 0
C27: Negative cash is an unfunded need. No overdraft facility assumed.

Sheet Cash flow
C2: Cash flow
C4: Selected case | E4: ='Assumptions'!$G$4 -> Base | H4: EUR. Entirely fictional.
E6: Actual | F6: Actual | G6: Actual | H6: Actual | I6: Actual | J6: Actual | K6: Actual | L6: Actual | M6: Forecast | N6: Forecast | O6: Forecast | P6: Forecast
E7: 2026-01-01 | F7: 2026-02-01 | G7: 2026-03-01 | H7: 2026-04-01 | I7: 2026-05-01 | J7: 2026-06-01 | K7: 2026-07-01 | L7: 2026-08-01 | M7: 2026-09-01 | N7: 2026-10-01 | O7: 2026-11-01 | P7: 2026-12-01
C8: Net profit | E8: ='P&L'!E27 -> €10,427 | F8: ='P&L'!F27 -> €12,464 | G8: ='P&L'!G27 -> €10,891 | H8: ='P&L'!H27 -> €14,924 | I8: ='P&L'!I27 -> €16,072 | J8: ='P&L'!J27 -> €12,537 | K8: ='P&L'!K27 -> €13,760 | L8: ='P&L'!L27 -> €9,637 | M8: ='P&L'!M27 -> €25,855 | N8: ='P&L'!N27 -> €28,543 | O8: ='P&L'!O27 -> €31,747 | P8: ='P&L'!P27 -> €25,431
C9: Depreciation add-back | E9: ='Assets debt tax'!E12 -> €1,967 | F9: ='Assets debt tax'!F12 -> €1,967 | G9: ='Assets debt tax'!G12 -> €2,300 | H9: ='Assets debt tax'!H12 -> €2,300 | I9: ='Assets debt tax'!I12 -> €2,467 | J9: ='Assets debt tax'!J12 -> €2,467 | K9: ='Assets debt tax'!K12 -> €2,856 | L9: ='Assets debt tax'!L12 -> €2,856 | M9: ='Assets debt tax'!M12 -> €3,744 | N9: ='Assets debt tax'!N12 -> €3,967 | O9: ='Assets debt tax'!O12 -> €4,133 | P9: ='Assets debt tax'!P12 -> €4,300
C10: Receivables cash effect | E10: ='Working capital'!E14-'Working capital'!E19 -> (€13,000) | F10: ='Working capital'!F14-'Working capital'!F19 -> (€9,000) | G10: ='Working capital'!G14-'Working capital'!G19 -> (€9,000) | H10: ='Working capital'!H14-'Working capital'!H19 -> (€12,000) | I10: ='Working capital'!I14-'Working capital'!I19 -> (€16,000) | J10: ='Working capital'!J14-'Working capital'!J19 -> (€15,000) | K10: ='Working capital'!K14-'Working capital'!K19 -> (€14,000) | L10: ='Working capital'!L14-'Working capital'!L19 -> (€17,000) | M10: ='Working capital'!M14-'Working capital'!M19 -> €36,120 | N10: ='Working capital'!N14-'Working capital'!N19 -> (€20,305) | O10: ='Working capital'!O14-'Working capital'!O19 -> (€15,568) | P10: ='Working capital'!P14-'Working capital'!P19 -> €17,618
C11: Unbilled work cash effect | E11: ='Working capital'!E8-'Working capital'!E9 -> €5,340 | F11: ='Working capital'!F8-'Working capital'!F9 -> (€1,121) | G11: ='Working capital'!G8-'Working capital'!G9 -> (€736) | H11: ='Working capital'!H8-'Working capital'!H9 -> (€661) | I11: ='Working capital'!I8-'Working capital'!I9 -> (€2,294) | J11: ='Working capital'!J8-'Working capital'!J9 -> (€648) | K11: ='Working capital'!K8-'Working capital'!K9 -> (€3,924) | L11: ='Working capital'!L8-'Working capital'!L9 -> (€456) | M11: ='Working capital'!M8-'Working capital'!M9 -> €5,300 | N11: ='Working capital'!N8-'Working capital'!N9 -> €138 | O11: ='Working capital'!O8-'Working capital'!O9 -> €48 | P11: ='Working capital'!P8-'Working capital'!P9 -> €3,406
C12: Payables cash effect | E12: ='Working capital'!E26-'Working capital'!E22 -> €1,000 | F12: ='Working capital'!F26-'Working capital'!F22 -> €1,000 | G12: ='Working capital'!G26-'Working capital'!G22 -> €3,000 | H12: ='Working capital'!H26-'Working capital'!H22 -> €1,000 | I12: ='Working capital'!I26-'Working capital'!I22 -> €1,000 | J12: ='Working capital'!J26-'Working capital'!J22 -> €2,000 | K12: ='Working capital'!K26-'Working capital'!K22 -> €3,000 | L12: ='Working capital'!L26-'Working capital'!L22 -> €4,000 | M12: ='Working capital'!M26-'Working capital'!M22 -> (€18,703) | N12: ='Working capital'!N26-'Working capital'!N22 -> (€225) | O12: ='Working capital'!O26-'Working capital'!O22 -> €1,508 | P12: ='Working capital'!P26-'Working capital'!P22 -> (€1,871)
C13: Advance billings cash effect | E13: ='Working capital'!E11-'Working capital'!E10 -> €1,800 | F13: ='Working capital'!F11-'Working capital'!F10 -> €200 | G13: ='Working capital'!G11-'Working capital'!G10 -> €2,500 | H13: ='Working capital'!H11-'Working capital'!H10 -> €660 | I13: ='Working capital'!I11-'Working capital'!I10 -> 0 | J13: ='Working capital'!J11-'Working capital'!J10 -> €3,040 | K13: ='Working capital'!K11-'Working capital'!K10 -> 0 | L13: ='Working capital'!L11-'Working capital'!L10 -> 0 | M13: ='Working capital'!M11-'Working capital'!M10 -> €3,380 | N13: ='Working capital'!N11-'Working capital'!N10 -> €260 | O13: ='Working capital'!O11-'Working capital'!O10 -> €2,680 | P13: ='Working capital'!P11-'Working capital'!P10 -> €840
C14: Tax balance cash effect | E14: ='Assets debt tax'!E23-'Assets debt tax'!E20 -> €2,607 | F14: ='Assets debt tax'!F23-'Assets debt tax'!F20 -> €3,116 | G14: ='Assets debt tax'!G23-'Assets debt tax'!G20 -> (€9,277) | H14: ='Assets debt tax'!H23-'Assets debt tax'!H20 -> €3,731 | I14: ='Assets debt tax'!I23-'Assets debt tax'!I20 -> €4,018 | J14: ='Assets debt tax'!J23-'Assets debt tax'!J20 -> (€6,866) | K14: ='Assets debt tax'!K23-'Assets debt tax'!K20 -> €3,440 | L14: ='Assets debt tax'!L23-'Assets debt tax'!L20 -> €2,409 | M14: ='Assets debt tax'!M23-'Assets debt tax'!M20 -> (€11,536) | N14: ='Assets debt tax'!N23-'Assets debt tax'!N20 -> €7,136 | O14: ='Assets debt tax'!O23-'Assets debt tax'!O20 -> €7,937 | P14: ='Assets debt tax'!P23-'Assets debt tax'!P20 -> (€5,642)
C15: Operating cash flow | E15: =SUM(E8:E14) -> €10,140 | F15: =SUM(F8:F14) -> €8,625 | G15: =SUM(G8:G14) -> (€322) | H15: =SUM(H8:H14) -> €9,954 | I15: =SUM(I8:I14) -> €5,262 | J15: =SUM(J8:J14) -> (€2,470) | K15: =SUM(K8:K14) -> €5,131 | L15: =SUM(L8:L14) -> €1,446 | M15: =SUM(M8:M14) -> €44,160 | N15: =SUM(N8:N14) -> €19,512 | O15: =SUM(O8:O14) -> €32,485 | P15: =SUM(P8:P14) -> €44,081
C16: Capital expenditure | E16: =-'Assumptions'!E65 -> (€6,000) | F16: =-'Assumptions'!F65 -> 0 | G16: =-'Assumptions'!G65 -> (€12,000) | H16: =-'Assumptions'!H65 -> 0 | I16: =-'Assumptions'!I65 -> (€6,000) | J16: =-'Assumptions'!J65 -> 0 | K16: =-'Assumptions'!K65 -> (€14,000) | L16: =-'Assumptions'!L65 -> 0 | M16: =-'Assumptions'!M65 -> (€32,000) | N16: =-'Assumptions'!N65 -> (€8,000) | O16: =-'Assumptions'!O65 -> (€6,000) | P16: =-'Assumptions'!P65 -> (€6,000)
C17: Debt principal | E17: =-4000 -> (€4,000) | F17: =-4000 -> (€4,000) | G17: =-4000 -> (€4,000) | H17: =-4000 -> (€4,000) | I17: =-4000 -> (€4,000) | J17: =-4000 -> (€4,000) | K17: =-4000 -> (€4,000) | L17: =-4000 -> (€4,000) | M17: =-4000 -> (€4,000) | N17: =-4000 -> (€4,000) | O17: =-4000 -> (€4,000) | P17: =-4000 -> (€4,000)
C18: Net cash change | E18: =SUM(E15:E17) -> €140 | F18: =SUM(F15:F17) -> €4,625 | G18: =SUM(G15:G17) -> (€16,322) | H18: =SUM(H15:H17) -> €5,954 | I18: =SUM(I15:I17) -> (€4,738) | J18: =SUM(J15:J17) -> (€6,470) | K18: =SUM(K15:K17) -> (€12,869) | L18: =SUM(L15:L17) -> (€2,554) | M18: =SUM(M15:M17) -> €8,160 | N18: =SUM(N15:N17) -> €7,512 | O18: =SUM(O15:O17) -> €22,485 | P18: =SUM(P15:P17) -> €34,081
C19: Opening cash | E19: ='Source inputs'!$E$50 -> €160,000 | F19: =E20 -> €160,140 | G19: =F20 -> €164,765 | H19: =G20 -> €148,443 | I19: =H20 -> €154,397 | J19: =I20 -> €149,660 | K19: =J20 -> €143,190 | L19: =K20 -> €130,321 | M19: =L20 -> €127,767 | N19: =M20 -> €135,927 | O19: =N20 -> €143,439 | P19: =O20 -> €165,924
C20: Closing cash | E20: =SUM(E18:E19) -> €160,140 | F20: =SUM(F18:F19) -> €164,765 | G20: =SUM(G18:G19) -> €148,443 | H20: =SUM(H18:H19) -> €154,397 | I20: =SUM(I18:I19) -> €149,660 | J20: =SUM(J18:J19) -> €143,190 | K20: =SUM(K18:K19) -> €130,321 | L20: =SUM(L18:L19) -> €127,767 | M20: =SUM(M18:M19) -> €135,927 | N20: =SUM(N18:N19) -> €143,439 | O20: =SUM(O18:O19) -> €165,924 | P20: =SUM(P18:P19) -> €200,006

Sheet 13 week cash
C2: 13 week cash
C4: Selected case | E4: ='Assumptions'!$G$4 -> Base | H4: EUR. Entirely fictional.
C6: Opening bank: 31 August close. Forecast starts 1 September.
C8: Week | D8: Start | E8: End | F8: Opening cash | G8: Net cash | H8: Closing cash | I8: Client funds | J8: Available cash
C9: W1 | D9: 2026-09-01 | E9: 2026-09-06 | F9: ='Balance sheet'!L8 -> €127,767 | G9: =SUMIFS($F$40:$F$103,$D$40:$D$103,">="&D9,$D$40:$D$103,"<="&E9) -> €334,020 | H9: =SUM(F9:G9) -> €461,787 | I9: =SUMIFS($F$40:$F$103,$E$40:$E$103,"Client media funds received",$D$40:$D$103,"<="&E9)+SUMIFS($F$40:$F$103,$E$40:$E$103,"Client media funds paid",$D$40:$D$103,"<="&E9) -> €285,000 | J9: =H9-I9 -> €176,787
C10: W2 | D10: 2026-09-07 | E10: 2026-09-13 | F10: =H9 -> €461,787 | G10: =SUMIFS($F$40:$F$103,$D$40:$D$103,">="&D10,$D$40:$D$103,"<="&E10) -> (€292,640) | H10: =SUM(F10:G10) -> €169,147 | I10: =SUMIFS($F$40:$F$103,$E$40:$E$103,"Client media funds received",$D$40:$D$103,"<="&E10)+SUMIFS($F$40:$F$103,$E$40:$E$103,"Client media funds paid",$D$40:$D$103,"<="&E10) -> 0 | J10: =H10-I10 -> €169,147
C11: W3 | D11: 2026-09-14 | E11: 2026-09-20 | F11: =H10 -> €169,147 | G11: =SUMIFS($F$40:$F$103,$D$40:$D$103,">="&D11,$D$40:$D$103,"<="&E11) -> €47,676 | H11: =SUM(F11:G11) -> €216,822 | I11: =SUMIFS($F$40:$F$103,$E$40:$E$103,"Client media funds received",$D$40:$D$103,"<="&E11)+SUMIFS($F$40:$F$103,$E$40:$E$103,"Client media funds paid",$D$40:$D$103,"<="&E11) -> 0 | J11: =H11-I11 -> €216,822
C12: W4 | D12: 2026-09-21 | E12: 2026-09-27 | F12: =H11 -> €216,822 | G12: =SUMIFS($F$40:$F$103,$D$40:$D$103,">="&D12,$D$40:$D$103,"<="&E12) -> (€74,580) | H12: =SUM(F12:G12) -> €142,242 | I12: =SUMIFS($F$40:$F$103,$E$40:$E$103,"Client media funds received",$D$40:$D$103,"<="&E12)+SUMIFS($F$40:$F$103,$E$40:$E$103,"Client media funds paid",$D$40:$D$103,"<="&E12) -> 0 | J12: =H12-I12 -> €142,242
C13: W5 | D13: 2026-09-28 | E13: 2026-10-04 | F13: =H12 -> €142,242 | G13: =SUMIFS($F$40:$F$103,$D$40:$D$103,">="&D13,$D$40:$D$103,"<="&E13) -> (€6,316) | H13: =SUM(F13:G13) -> €135,927 | I13: =SUMIFS($F$40:$F$103,$E$40:$E$103,"Client media funds received",$D$40:$D$103,"<="&E13)+SUMIFS($F$40:$F$103,$E$40:$E$103,"Client media funds paid",$D$40:$D$103,"<="&E13) -> 0 | J13: =H13-I13 -> €135,927
C14: W6 | D14: 2026-10-05 | E14: 2026-10-11 | F14: =H13 -> €135,927 | G14: =SUMIFS($F$40:$F$103,$D$40:$D$103,">="&D14,$D$40:$D$103,"<="&E14) -> (€31,000) | H14: =SUM(F14:G14) -> €104,927 | I14: =SUMIFS($F$40:$F$103,$E$40:$E$103,"Client media funds received",$D$40:$D$103,"<="&E14)+SUMIFS($F$40:$F$103,$E$40:$E$103,"Client media funds paid",$D$40:$D$103,"<="&E14) -> 0 | J14: =H14-I14 -> €104,927
C15: W7 | D15: 2026-10-12 | E15: 2026-10-18 | F15: =H14 -> €104,927 | G15: =SUMIFS($F$40:$F$103,$D$40:$D$103,">="&D15,$D$40:$D$103,"<="&E15) -> €63,120 | H15: =SUM(F15:G15) -> €168,047 | I15: =SUMIFS($F$40:$F$103,$E$40:$E$103,"Client media funds received",$D$40:$D$103,"<="&E15)+SUMIFS($F$40:$F$103,$E$40:$E$103,"Client media funds paid",$D$40:$D$103,"<="&E15) -> 0 | J15: =H15-I15 -> €168,047
C16: W8 | D16: 2026-10-19 | E16: 2026-10-25 | F16: =H15 -> €168,047 | G16: =SUMIFS($F$40:$F$103,$D$40:$D$103,">="&D16,$D$40:$D$103,"<="&E16) -> (€97,300) | H16: =SUM(F16:G16) -> €70,747 | I16: =SUMIFS($F$40:$F$103,$E$40:$E$103,"Client media funds received",$D$40:$D$103,"<="&E16)+SUMIFS($F$40:$F$103,$E$40:$E$103,"Client media funds paid",$D$40:$D$103,"<="&E16) -> 0 | J16: =H16-I16 -> €70,747
C17: W9 | D17: 2026-10-26 | E17: 2026-11-01 | F17: =H16 -> €70,747 | G17: =SUMIFS($F$40:$F$103,$D$40:$D$103,">="&D17,$D$40:$D$103,"<="&E17) -> €72,692 | H17: =SUM(F17:G17) -> €143,439 | I17: =SUMIFS($F$40:$F$103,$E$40:$E$103,"Client media funds received",$D$40:$D$103,"<="&E17)+SUMIFS($F$40:$F$103,$E$40:$E$103,"Client media funds paid",$D$40:$D$103,"<="&E17) -> 0 | J17: =H17-I17 -> €143,439
C18: W10 | D18: 2026-11-02 | E18: 2026-11-08 | F18: =H17 -> €143,439 | G18: =SUMIFS($F$40:$F$103,$D$40:$D$103,">="&D18,$D$40:$D$103,"<="&E18) -> €329,000 | H18: =SUM(F18:G18) -> €472,439 | I18: =SUMIFS($F$40:$F$103,$E$40:$E$103,"Client media funds received",$D$40:$D$103,"<="&E18)+SUMIFS($F$40:$F$103,$E$40:$E$103,"Client media funds paid",$D$40:$D$103,"<="&E18) -> €335,000 | J18: =H18-I18 -> €137,439
C19: W11 | D19: 2026-11-09 | E19: 2026-11-15 | F19: =H18 -> €472,439 | G19: =SUMIFS($F$40:$F$103,$D$40:$D$103,">="&D19,$D$40:$D$103,"<="&E19) -> (€286,864) | H19: =SUM(F19:G19) -> €185,575 | I19: =SUMIFS($F$40:$F$103,$E$40:$E$103,"Client media funds received",$D$40:$D$103,"<="&E19)+SUMIFS($F$40:$F$103,$E$40:$E$103,"Client media funds paid",$D$40:$D$103,"<="&E19) -> 0 | J19: =H19-I19 -> €185,575
C20: W12 | D20: 2026-11-16 | E20: 2026-11-22 | F20: =H19 -> €185,575 | G20: =SUMIFS($F$40:$F$103,$D$40:$D$103,">="&D20,$D$40:$D$103,"<="&E20) -> 0 | H20: =SUM(F20:G20) -> €185,575 | I20: =SUMIFS($F$40:$F$103,$E$40:$E$103,"Client media funds received",$D$40:$D$103,"<="&E20)+SUMIFS($F$40:$F$103,$E$40:$E$103,"Client media funds paid",$D$40:$D$103,"<="&E20) -> 0 | J20: =H20-I20 -> €185,575
C21: W13 | D21: 2026-11-23 | E21: 2026-11-29 | F21: =H20 -> €185,575 | G21: =SUMIFS($F$40:$F$103,$D$40:$D$103,">="&D21,$D$40:$D$103,"<="&E21) -> (€19,651) | H21: =SUM(F21:G21) -> €165,924 | I21: =SUMIFS($F$40:$F$103,$E$40:$E$103,"Client media funds received",$D$40:$D$103,"<="&E21)+SUMIFS($F$40:$F$103,$E$40:$E$103,"Client media funds paid",$D$40:$D$103,"<="&E21) -> 0 | J21: =H21-I21 -> €165,924
C24: Lowest weekly available cash | F24: =MIN(J9:J21) -> €70,747
C25: Lowest daily available cash | F25: =MIN(O40:O129) -> €70,747
C26: Minimum reserve | F26: €50,000
C27: Funding to keep reserve | F27: =MAX(0,F26-F25) -> 0
C28: Unfunded requirement | F28: =MAX(0,-F25) -> 0
C32: Daily lows can be below weekly closes.
C34: Client media funds are reserved. No new borrowing assumed.
C39: Record | D39: Effective date | E39: Type | F39: Cash amount | J39: Date | K39: Opening | L39: Net cash | M39: Closing | N39: Client funds reserved | O39: Available cash
C40: AR-1 | D40: ='AR and AP'!I9 -> 2026-09-04 | E40: Customer receipts | F40: ='AR and AP'!F9 -> €24,200 | J40: 2026-09-01 | K40: ='Balance sheet'!L8 -> €127,767 | L40: =SUMIFS($F$40:$F$103,$D$40:$D$103,J40) -> 0 | M40: =K40+L40 -> €127,767 | N40: =SUMIFS($F$40:$F$103,$E$40:$E$103,"Client media funds received",$D$40:$D$103,"<="&J40)+SUMIFS($F$40:$F$103,$E$40:$E$103,"Client media funds paid",$D$40:$D$103,"<="&J40) -> 0 | O40: =M40-N40 -> €127,767
C41: AR-2 | D41: ='AR and AP'!I10 -> 2026-09-11 | E41: Customer receipts | F41: ='AR and AP'!F10 -> €26,400 | J41: 2026-09-02 | K41: =M40 -> €127,767 | L41: =SUMIFS($F$40:$F$103,$D$40:$D$103,J41) -> 0 | M41: =K41+L41 -> €127,767 | N41: =SUMIFS($F$40:$F$103,$E$40:$E$103,"Client media funds received",$D$40:$D$103,"<="&J41)+SUMIFS($F$40:$F$103,$E$40:$E$103,"Client media funds paid",$D$40:$D$103,"<="&J41) -> 0 | O41: =M41-N41 -> €127,767
C42: AR-3 | D42: ='AR and AP'!I11 -> 2026-09-18 | E42: Customer receipts | F42: ='AR and AP'!F11 -> €28,600 | J42: 2026-09-03 | K42: =M41 -> €127,767 | L42: =SUMIFS($F$40:$F$103,$D$40:$D$103,J42) -> 0 | M42: =K42+L42 -> €127,767 | N42: =SUMIFS($F$40:$F$103,$E$40:$E$103,"Client media funds received",$D$40:$D$103,"<="&J42)+SUMIFS($F$40:$F$103,$E$40:$E$103,"Client media funds paid",$D$40:$D$103,"<="&J42) -> 0 | O42: =M42-N42 -> €127,767
C43: AR-4 | D43: ='AR and AP'!I12 -> 2026-09-25 | E43: Customer receipts | F43: ='AR and AP'!F12 -> €22,000 | J43: 2026-09-04 | K43: =M42 -> €127,767 | L43: =SUMIFS($F$40:$F$103,$D$40:$D$103,J43) -> €49,020 | M43: =K43+L43 -> €176,787 | N43: =SUMIFS($F$40:$F$103,$E$40:$E$103,"Client media funds received",$D$40:$D$103,"<="&J43)+SUMIFS($F$40:$F$103,$E$40:$E$103,"Client media funds paid",$D$40:$D$103,"<="&J43) -> 0 | O43: =M43-N43 -> €176,787
C44: AR-5 | D44: ='AR and AP'!I13 -> 2026-09-04 | E44: Customer receipts | F44: ='AR and AP'!F13 -> €30,800 | J44: 2026-09-05 | K44: =M43 -> €176,787 | L44: =SUMIFS($F$40:$F$103,$D$40:$D$103,J44) -> €285,000 | M44: =K44+L44 -> €461,787 | N44: =SUMIFS($F$40:$F$103,$E$40:$E$103,"Client media funds received",$D$40:$D$103,"<="&J44)+SUMIFS($F$40:$F$103,$E$40:$E$103,"Client media funds paid",$D$40:$D$103,"<="&J44) -> €285,000 | O44: =M44-N44 -> €176,787
C45: AR-6 | D45: ='AR and AP'!I14 -> 2026-09-11 | E45: Customer receipts | F45: ='AR and AP'!F14 -> €26,400 | J45: 2026-09-06 | K45: =M44 -> €461,787 | L45: =SUMIFS($F$40:$F$103,$D$40:$D$103,J45) -> 0 | M45: =K45+L45 -> €461,787 | N45: =SUMIFS($F$40:$F$103,$E$40:$E$103,"Client media funds received",$D$40:$D$103,"<="&J45)+SUMIFS($F$40:$F$103,$E$40:$E$103,"Client media funds paid",$D$40:$D$103,"<="&J45) -> €285,000 | O45: =M45-N45 -> €176,787
C46: AR-7 | D46: ='AR and AP'!I15 -> 2026-09-18 | E46: Customer receipts | F46: ='AR and AP'!F15 -> €33,000 | J46: 2026-09-07 | K46: =M45 -> €461,787 | L46: =SUMIFS($F$40:$F$103,$D$40:$D$103,J46) -> 0 | M46: =K46+L46 -> €461,787 | N46: =SUMIFS($F$40:$F$103,$E$40:$E$103,"Client media funds received",$D$40:$D$103,"<="&J46)+SUMIFS($F$40:$F$103,$E$40:$E$103,"Client media funds paid",$D$40:$D$103,"<="&J46) -> €285,000 | O46: =M46-N46 -> €176,787
C47: AR-8 | D47: ='AR and AP'!I16 -> 2026-09-25 | E47: Customer receipts | F47: ='AR and AP'!F16 -> €28,600 | J47: 2026-09-08 | K47: =M46 -> €461,787 | L47: =SUMIFS($F$40:$F$103,$D$40:$D$103,J47) -> (€32,000) | M47: =K47+L47 -> €429,787 | N47: =SUMIFS($F$40:$F$103,$E$40:$E$103,"Client media funds received",$D$40:$D$103,"<="&J47)+SUMIFS($F$40:$F$103,$E$40:$E$103,"Client media funds paid",$D$40:$D$103,"<="&J47) -> €285,000 | O47: =M47-N47 -> €144,787
C48: AP-1 | D48: ='AR and AP'!N24 -> 00:00:00 | E48: Supplier payments | F48: =-'AR and AP'!M24 -> 0 | J48: 2026-09-09 | K48: =M47 -> €429,787 | L48: =SUMIFS($F$40:$F$103,$D$40:$D$103,J48) -> 0 | M48: =K48+L48 -> €429,787 | N48: =SUMIFS($F$40:$F$103,$E$40:$E$103,"Client media funds received",$D$40:$D$103,"<="&J48)+SUMIFS($F$40:$F$103,$E$40:$E$103,"Client media funds paid",$D$40:$D$103,"<="&J48) -> €285,000 | O48: =M48-N48 -> €144,787
C49: AP-2 | D49: ='AR and AP'!N25 -> 2026-09-04 | E49: Supplier payments | F49: =-'AR and AP'!M25 -> (€5,980) | J49: 2026-09-10 | K49: =M48 -> €429,787 | L49: =SUMIFS($F$40:$F$103,$D$40:$D$103,J49) -> (€307,000) | M49: =K49+L49 -> €122,787 | N49: =SUMIFS($F$40:$F$103,$E$40:$E$103,"Client media funds received",$D$40:$D$103,"<="&J49)+SUMIFS($F$40:$F$103,$E$40:$E$103,"Client media funds paid",$D$40:$D$103,"<="&J49) -> 0 | O49: =M49-N49 -> €122,787
C50: AP-3 | D50: ='AR and AP'!N26 -> 2026-09-11 | E50: Supplier payments | F50: =-'AR and AP'!M26 -> (€6,440) | J50: 2026-09-11 | K50: =M49 -> €122,787 | L50: =SUMIFS($F$40:$F$103,$D$40:$D$103,J50) -> €46,360 | M50: =K50+L50 -> €169,147 | N50: =SUMIFS($F$40:$F$103,$E$40:$E$103,"Client media funds received",$D$40:$D$103,"<="&J50)+SUMIFS($F$40:$F$103,$E$40:$E$103,"Client media funds paid",$D$40:$D$103,"<="&J50) -> 0 | O50: =M50-N50 -> €169,147
C51: AP-4 | D51: ='AR and AP'!N27 -> 00:00:00 | E51: Supplier payments | F51: =-'AR and AP'!M27 -> 0 | J51: 2026-09-12 | K51: =M50 -> €169,147 | L51: =SUMIFS($F$40:$F$103,$D$40:$D$103,J51) -> 0 | M51: =K51+L51 -> €169,147 | N51: =SUMIFS($F$40:$F$103,$E$40:$E$103,"Client media funds received",$D$40:$D$103,"<="&J51)+SUMIFS($F$40:$F$103,$E$40:$E$103,"Client media funds paid",$D$40:$D$103,"<="&J51) -> 0 | O51: =M51-N51 -> €169,147
C52: AP-5 | D52: ='AR and AP'!N28 -> 2026-09-18 | E52: Supplier payments | F52: =-'AR and AP'!M28 -> (€7,360) | J52: 2026-09-13 | K52: =M51 -> €169,147 | L52: =SUMIFS($F$40:$F$103,$D$40:$D$103,J52) -> 0 | M52: =K52+L52 -> €169,147 | N52: =SUMIFS($F$40:$F$103,$E$40:$E$103,"Client media funds received",$D$40:$D$103,"<="&J52)+SUMIFS($F$40:$F$103,$E$40:$E$103,"Client media funds paid",$D$40:$D$103,"<="&J52) -> 0 | O52: =M52-N52 -> €169,147
C53: AP-6 | D53: ='AR and AP'!N29 -> 2026-09-18 | E53: Supplier payments | F53: =-'AR and AP'!M29 -> (€5,060) | J53: 2026-09-14 | K53: =M52 -> €169,147 | L53: =SUMIFS($F$40:$F$103,$D$40:$D$103,J53) -> 0 | M53: =K53+L53 -> €169,147 | N53: =SUMIFS($F$40:$F$103,$E$40:$E$103,"Client media funds received",$D$40:$D$103,"<="&J53)+SUMIFS($F$40:$F$103,$E$40:$E$103,"Client media funds paid",$D$40:$D$103,"<="&J53) -> 0 | O53: =M53-N53 -> €169,147
C54: AP-7 | D54: ='AR and AP'!N30 -> 2026-09-25 | E54: Supplier payments | F54: =-'AR and AP'!M30 -> (€5,520) | J54: 2026-09-15 | K54: =M53 -> €169,147 | L54: =SUMIFS($F$40:$F$103,$D$40:$D$103,J54) -> (€1,505) | M54: =K54+L54 -> €167,642 | N54: =SUMIFS($F$40:$F$103,$E$40:$E$103,"Client media funds received",$D$40:$D$103,"<="&J54)+SUMIFS($F$40:$F$103,$E$40:$E$103,"Client media funds paid",$D$40:$D$103,"<="&J54) -> 0 | O54: =M54-N54 -> €167,642
C55: AP-8 | D55: ='AR and AP'!N31 -> 2026-09-25 | E55: Supplier payments | F55: =-'AR and AP'!M31 -> (€5,060) | J55: 2026-09-16 | K55: =M54 -> €167,642 | L55: =SUMIFS($F$40:$F$103,$D$40:$D$103,J55) -> 0 | M55: =K55+L55 -> €167,642 | N55: =SUMIFS($F$40:$F$103,$E$40:$E$103,"Client media funds received",$D$40:$D$103,"<="&J55)+SUMIFS($F$40:$F$103,$E$40:$E$103,"Client media funds paid",$D$40:$D$103,"<="&J55) -> 0 | O55: =M55-N55 -> €167,642
C56: NEW-receipts-9-A | D56: =DATE(2026,9,15) -> 2026-09-15 | E56: Customer receipts | F56: =('Working capital'!M20-'Working capital'!M15)*0.45 -> 0 | J56: 2026-09-17 | K56: =M55 -> €167,642 | L56: =SUMIFS($F$40:$F$103,$D$40:$D$103,J56) -> 0 | M56: =K56+L56 -> €167,642 | N56: =SUMIFS($F$40:$F$103,$E$40:$E$103,"Client media funds received",$D$40:$D$103,"<="&J56)+SUMIFS($F$40:$F$103,$E$40:$E$103,"Client media funds paid",$D$40:$D$103,"<="&J56) -> 0 | O56: =M56-N56 -> €167,642
C57: NEW-receipts-9-B | D57: =DATE(2026,9,28) -> 2026-09-28 | E57: Customer receipts | F57: =('Working capital'!M20-'Working capital'!M15)*0.55 -> 0 | J57: 2026-09-18 | K57: =M56 -> €167,642 | L57: =SUMIFS($F$40:$F$103,$D$40:$D$103,J57) -> €49,180 | M57: =K57+L57 -> €216,822 | N57: =SUMIFS($F$40:$F$103,$E$40:$E$103,"Client media funds received",$D$40:$D$103,"<="&J57)+SUMIFS($F$40:$F$103,$E$40:$E$103,"Client media funds paid",$D$40:$D$103,"<="&J57) -> 0 | O57: =M57-N57 -> €216,822
C58: NEW-supplier-9-A | D58: =DATE(2026,9,15) -> 2026-09-15 | E58: Supplier payments | F58: =(-'Working capital'!M27+SUMIFS('AR and AP'!$M$24:$M$31,'AR and AP'!$N$24:$N$31,">="&DATE(2026,9,1),'AR and AP'!$N$24:$N$31,"<"&DATE(2026,10,1)))*0.45 -> (€1,505) | J58: 2026-09-19 | K58: =M57 -> €216,822 | L58: =SUMIFS($F$40:$F$103,$D$40:$D$103,J58) -> 0 | M58: =K58+L58 -> €216,822 | N58: =SUMIFS($F$40:$F$103,$E$40:$E$103,"Client media funds received",$D$40:$D$103,"<="&J58)+SUMIFS($F$40:$F$103,$E$40:$E$103,"Client media funds paid",$D$40:$D$103,"<="&J58) -> 0 | O58: =M58-N58 -> €216,822
C59: NEW-supplier-9-B | D59: =DATE(2026,9,28) -> 2026-09-28 | E59: Supplier payments | F59: =(-'Working capital'!M27+SUMIFS('AR and AP'!$M$24:$M$31,'AR and AP'!$N$24:$N$31,">="&DATE(2026,9,1),'AR and AP'!$N$24:$N$31,"<"&DATE(2026,10,1)))*0.55 -> (€1,839) | J59: 2026-09-20 | K59: =M58 -> €216,822 | L59: =SUMIFS($F$40:$F$103,$D$40:$D$103,J59) -> 0 | M59: =K59+L59 -> €216,822 | N59: =SUMIFS($F$40:$F$103,$E$40:$E$103,"Client media funds received",$D$40:$D$103,"<="&J59)+SUMIFS($F$40:$F$103,$E$40:$E$103,"Client media funds paid",$D$40:$D$103,"<="&J59) -> 0 | O59: =M59-N59 -> €216,822
C60: SCH-payroll-9 | D60: =DATE(2026,9,25) -> 2026-09-25 | E60: Payroll | F60: =-('P&L'!M13+'Assumptions'!M41) -> (€96,600) | J60: 2026-09-21 | K60: =M59 -> €216,822 | L60: =SUMIFS($F$40:$F$103,$D$40:$D$103,J60) -> (€18,000) | M60: =K60+L60 -> €198,822 | N60: =SUMIFS($F$40:$F$103,$E$40:$E$103,"Client media funds received",$D$40:$D$103,"<="&J60)+SUMIFS($F$40:$F$103,$E$40:$E$103,"Client media funds paid",$D$40:$D$103,"<="&J60) -> 0 | O60: =M60-N60 -> €198,822
C61: SCH-overheads-9 | D61: =DATE(2026,9,10) -> 2026-09-10 | E61: Operating overheads | F61: =-('Assumptions'!M44+'Assumptions'!M47+'Assumptions'!M50) -> (€22,000) | J61: 2026-09-22 | K61: =M60 -> €198,822 | L61: =SUMIFS($F$40:$F$103,$D$40:$D$103,J61) -> 0 | M61: =K61+L61 -> €198,822 | N61: =SUMIFS($F$40:$F$103,$E$40:$E$103,"Client media funds received",$D$40:$D$103,"<="&J61)+SUMIFS($F$40:$F$103,$E$40:$E$103,"Client media funds paid",$D$40:$D$103,"<="&J61) -> 0 | O61: =M61-N61 -> €198,822
C62: SCH-tax-9 | D62: =DATE(2026,9,21) -> 2026-09-21 | E62: Tax paid | F62: =-'Assumptions'!M68 -> (€18,000) | J62: 2026-09-23 | K62: =M61 -> €198,822 | L62: =SUMIFS($F$40:$F$103,$D$40:$D$103,J62) -> 0 | M62: =K62+L62 -> €198,822 | N62: =SUMIFS($F$40:$F$103,$E$40:$E$103,"Client media funds received",$D$40:$D$103,"<="&J62)+SUMIFS($F$40:$F$103,$E$40:$E$103,"Client media funds paid",$D$40:$D$103,"<="&J62) -> 0 | O62: =M62-N62 -> €198,822
C63: SCH-capex-9 | D63: =DATE(2026,9,8) -> 2026-09-08 | E63: Capital purchases | F63: =-'Assumptions'!M65 -> (€32,000) | J63: 2026-09-24 | K63: =M62 -> €198,822 | L63: =SUMIFS($F$40:$F$103,$D$40:$D$103,J63) -> 0 | M63: =K63+L63 -> €198,822 | N63: =SUMIFS($F$40:$F$103,$E$40:$E$103,"Client media funds received",$D$40:$D$103,"<="&J63)+SUMIFS($F$40:$F$103,$E$40:$E$103,"Client media funds paid",$D$40:$D$103,"<="&J63) -> 0 | O63: =M63-N63 -> €198,822
C64: SCH-debt-9 | D64: =DATE(2026,9,28) -> 2026-09-28 | E64: Debt repayment | F64: =-4000 -> (€4,000) | J64: 2026-09-25 | K64: =M63 -> €198,822 | L64: =SUMIFS($F$40:$F$103,$D$40:$D$103,J64) -> (€56,580) | M64: =K64+L64 -> €142,242 | N64: =SUMIFS($F$40:$F$103,$E$40:$E$103,"Client media funds received",$D$40:$D$103,"<="&J64)+SUMIFS($F$40:$F$103,$E$40:$E$103,"Client media funds paid",$D$40:$D$103,"<="&J64) -> 0 | O64: =M64-N64 -> €142,242
C65: SCH-interest-9 | D65: =DATE(2026,9,28) -> 2026-09-28 | E65: Interest paid | F65: =-'P&L'!M24 -> (€477) | J65: 2026-09-26 | K65: =M64 -> €142,242 | L65: =SUMIFS($F$40:$F$103,$D$40:$D$103,J65) -> 0 | M65: =K65+L65 -> €142,242 | N65: =SUMIFS($F$40:$F$103,$E$40:$E$103,"Client media funds received",$D$40:$D$103,"<="&J65)+SUMIFS($F$40:$F$103,$E$40:$E$103,"Client media funds paid",$D$40:$D$103,"<="&J65) -> 0 | O65: =M65-N65 -> €142,242
C66: SCH-mediaIn-9 | D66: =DATE(2026,9,5) -> 2026-09-05 | E66: Client media funds received | F66: ='Assumptions'!M23 -> €285,000 | J66: 2026-09-27 | K66: =M65 -> €142,242 | L66: =SUMIFS($F$40:$F$103,$D$40:$D$103,J66) -> 0 | M66: =K66+L66 -> €142,242 | N66: =SUMIFS($F$40:$F$103,$E$40:$E$103,"Client media funds received",$D$40:$D$103,"<="&J66)+SUMIFS($F$40:$F$103,$E$40:$E$103,"Client media funds paid",$D$40:$D$103,"<="&J66) -> 0 | O66: =M66-N66 -> €142,242
C67: SCH-mediaOut-9 | D67: =DATE(2026,9,10) -> 2026-09-10 | E67: Client media funds paid | F67: =-'Assumptions'!M23 -> (€285,000) | J67: 2026-09-28 | K67: =M66 -> €142,242 | L67: =SUMIFS($F$40:$F$103,$D$40:$D$103,J67) -> (€6,316) | M67: =K67+L67 -> €135,927 | N67: =SUMIFS($F$40:$F$103,$E$40:$E$103,"Client media funds received",$D$40:$D$103,"<="&J67)+SUMIFS($F$40:$F$103,$E$40:$E$103,"Client media funds paid",$D$40:$D$103,"<="&J67) -> 0 | O67: =M67-N67 -> €135,927
C68: NEW-receipts-10-A | D68: =DATE(2026,10,15) -> 2026-10-15 | E68: Customer receipts | F68: =('Working capital'!N20-'Working capital'!N15)*0.45 -> €72,424 | J68: 2026-09-29 | K68: =M67 -> €135,927 | L68: =SUMIFS($F$40:$F$103,$D$40:$D$103,J68) -> 0 | M68: =K68+L68 -> €135,927 | N68: =SUMIFS($F$40:$F$103,$E$40:$E$103,"Client media funds received",$D$40:$D$103,"<="&J68)+SUMIFS($F$40:$F$103,$E$40:$E$103,"Client media funds paid",$D$40:$D$103,"<="&J68) -> 0 | O68: =M68-N68 -> €135,927
C69: NEW-receipts-10-B | D69: =DATE(2026,10,28) -> 2026-10-28 | E69: Customer receipts | F69: =('Working capital'!N20-'Working capital'!N15)*0.55 -> €88,518 | J69: 2026-09-30 | K69: =M68 -> €135,927 | L69: =SUMIFS($F$40:$F$103,$D$40:$D$103,J69) -> 0 | M69: =K69+L69 -> €135,927 | N69: =SUMIFS($F$40:$F$103,$E$40:$E$103,"Client media funds received",$D$40:$D$103,"<="&J69)+SUMIFS($F$40:$F$103,$E$40:$E$103,"Client media funds paid",$D$40:$D$103,"<="&J69) -> 0 | O69: =M69-N69 -> €135,927
C70: NEW-supplier-10-A | D70: =DATE(2026,10,15) -> 2026-10-15 | E70: Supplier payments | F70: =(-'Working capital'!N27+SUMIFS('AR and AP'!$M$24:$M$31,'AR and AP'!$N$24:$N$31,">="&DATE(2026,10,1),'AR and AP'!$N$24:$N$31,"<"&DATE(2026,11,1)))*0.45 -> (€9,304) | J70: 2026-10-01 | K70: =M69 -> €135,927 | L70: =SUMIFS($F$40:$F$103,$D$40:$D$103,J70) -> 0 | M70: =K70+L70 -> €135,927 | N70: =SUMIFS($F$40:$F$103,$E$40:$E$103,"Client media funds received",$D$40:$D$103,"<="&J70)+SUMIFS($F$40:$F$103,$E$40:$E$103,"Client media funds paid",$D$40:$D$103,"<="&J70) -> 0 | O70: =M70-N70 -> €135,927
C71: NEW-supplier-10-B | D71: =DATE(2026,10,28) -> 2026-10-28 | E71: Supplier payments | F71: =(-'Working capital'!N27+SUMIFS('AR and AP'!$M$24:$M$31,'AR and AP'!$N$24:$N$31,">="&DATE(2026,10,1),'AR and AP'!$N$24:$N$31,"<"&DATE(2026,11,1)))*0.55 -> (€11,371) | J71: 2026-10-02 | K71: =M70 -> €135,927 | L71: =SUMIFS($F$40:$F$103,$D$40:$D$103,J71) -> 0 | M71: =K71+L71 -> €135,927 | N71: =SUMIFS($F$40:$F$103,$E$40:$E$103,"Client media funds received",$D$40:$D$103,"<="&J71)+SUMIFS($F$40:$F$103,$E$40:$E$103,"Client media funds paid",$D$40:$D$103,"<="&J71) -> 0 | O71: =M71-N71 -> €135,927
C72: SCH-payroll-10 | D72: =DATE(2026,10,25) -> 2026-10-25 | E72: Payroll | F72: =-('P&L'!N13+'Assumptions'!N41) -> (€97,300) | J72: 2026-10-03 | K72: =M71 -> €135,927 | L72: =SUMIFS($F$40:$F$103,$D$40:$D$103,J72) -> 0 | M72: =K72+L72 -> €135,927 | N72: =SUMIFS($F$40:$F$103,$E$40:$E$103,"Client media funds received",$D$40:$D$103,"<="&J72)+SUMIFS($F$40:$F$103,$E$40:$E$103,"Client media funds paid",$D$40:$D$103,"<="&J72) -> 0 | O72: =M72-N72 -> €135,927
C73: SCH-overheads-10 | D73: =DATE(2026,10,10) -> 2026-10-10 | E73: Operating overheads | F73: =-('Assumptions'!N44+'Assumptions'!N47+'Assumptions'!N50) -> (€23,000) | J73: 2026-10-04 | K73: =M72 -> €135,927 | L73: =SUMIFS($F$40:$F$103,$D$40:$D$103,J73) -> 0 | M73: =K73+L73 -> €135,927 | N73: =SUMIFS($F$40:$F$103,$E$40:$E$103,"Client media funds received",$D$40:$D$103,"<="&J73)+SUMIFS($F$40:$F$103,$E$40:$E$103,"Client media funds paid",$D$40:$D$103,"<="&J73) -> 0 | O73: =M73-N73 -> €135,927
C74: SCH-tax-10 | D74: =DATE(2026,10,21) -> 2026-10-21 | E74: Tax paid | F74: =-'Assumptions'!N68 -> 0 | J74: 2026-10-05 | K74: =M73 -> €135,927 | L74: =SUMIFS($F$40:$F$103,$D$40:$D$103,J74) -> €300,000 | M74: =K74+L74 -> €435,927 | N74: =SUMIFS($F$40:$F$103,$E$40:$E$103,"Client media funds received",$D$40:$D$103,"<="&J74)+SUMIFS($F$40:$F$103,$E$40:$E$103,"Client media funds paid",$D$40:$D$103,"<="&J74) -> €300,000 | O74: =M74-N74 -> €135,927
C75: SCH-capex-10 | D75: =DATE(2026,10,8) -> 2026-10-08 | E75: Capital purchases | F75: =-'Assumptions'!N65 -> (€8,000) | J75: 2026-10-06 | K75: =M74 -> €435,927 | L75: =SUMIFS($F$40:$F$103,$D$40:$D$103,J75) -> 0 | M75: =K75+L75 -> €435,927 | N75: =SUMIFS($F$40:$F$103,$E$40:$E$103,"Client media funds received",$D$40:$D$103,"<="&J75)+SUMIFS($F$40:$F$103,$E$40:$E$103,"Client media funds paid",$D$40:$D$103,"<="&J75) -> €300,000 | O75: =M75-N75 -> €135,927
C76: SCH-debt-10 | D76: =DATE(2026,10,28) -> 2026-10-28 | E76: Debt repayment | F76: =-4000 -> (€4,000) | J76: 2026-10-07 | K76: =M75 -> €435,927 | L76: =SUMIFS($F$40:$F$103,$D$40:$D$103,J76) -> 0 | M76: =K76+L76 -> €435,927 | N76: =SUMIFS($F$40:$F$103,$E$40:$E$103,"Client media funds received",$D$40:$D$103,"<="&J76)+SUMIFS($F$40:$F$103,$E$40:$E$103,"Client media funds paid",$D$40:$D$103,"<="&J76) -> €300,000 | O76: =M76-N76 -> €135,927
C77: SCH-interest-10 | D77: =DATE(2026,10,28) -> 2026-10-28 | E77: Interest paid | F77: =-'P&L'!N24 -> (€455) | J77: 2026-10-08 | K77: =M76 -> €435,927 | L77: =SUMIFS($F$40:$F$103,$D$40:$D$103,J77) -> (€8,000) | M77: =K77+L77 -> €427,927 | N77: =SUMIFS($F$40:$F$103,$E$40:$E$103,"Client media funds received",$D$40:$D$103,"<="&J77)+SUMIFS($F$40:$F$103,$E$40:$E$103,"Client media funds paid",$D$40:$D$103,"<="&J77) -> €300,000 | O77: =M77-N77 -> €127,927
C78: SCH-mediaIn-10 | D78: =DATE(2026,10,5) -> 2026-10-05 | E78: Client media funds received | F78: ='Assumptions'!N23 -> €300,000 | J78: 2026-10-09 | K78: =M77 -> €427,927 | L78: =SUMIFS($F$40:$F$103,$D$40:$D$103,J78) -> 0 | M78: =K78+L78 -> €427,927 | N78: =SUMIFS($F$40:$F$103,$E$40:$E$103,"Client media funds received",$D$40:$D$103,"<="&J78)+SUMIFS($F$40:$F$103,$E$40:$E$103,"Client media funds paid",$D$40:$D$103,"<="&J78) -> €300,000 | O78: =M78-N78 -> €127,927
C79: SCH-mediaOut-10 | D79: =DATE(2026,10,10) -> 2026-10-10 | E79: Client media funds paid | F79: =-'Assumptions'!N23 -> (€300,000) | J79: 2026-10-10 | K79: =M78 -> €427,927 | L79: =SUMIFS($F$40:$F$103,$D$40:$D$103,J79) -> (€323,000) | M79: =K79+L79 -> €104,927 | N79: =SUMIFS($F$40:$F$103,$E$40:$E$103,"Client media funds received",$D$40:$D$103,"<="&J79)+SUMIFS($F$40:$F$103,$E$40:$E$103,"Client media funds paid",$D$40:$D$103,"<="&J79) -> 0 | O79: =M79-N79 -> €104,927
C80: NEW-receipts-11-A | D80: =DATE(2026,11,15) -> 2026-11-15 | E80: Customer receipts | F80: =('Working capital'!O20-'Working capital'!O15)*0.45 -> €81,477 | J80: 2026-10-11 | K80: =M79 -> €104,927 | L80: =SUMIFS($F$40:$F$103,$D$40:$D$103,J80) -> 0 | M80: =K80+L80 -> €104,927 | N80: =SUMIFS($F$40:$F$103,$E$40:$E$103,"Client media funds received",$D$40:$D$103,"<="&J80)+SUMIFS($F$40:$F$103,$E$40:$E$103,"Client media funds paid",$D$40:$D$103,"<="&J80) -> 0 | O80: =M80-N80 -> €104,927
C81: NEW-receipts-11-B | D81: =DATE(2026,11,28) -> 2026-11-28 | E81: Customer receipts | F81: =('Working capital'!O20-'Working capital'!O15)*0.55 -> €99,583 | J81: 2026-10-12 | K81: =M80 -> €104,927 | L81: =SUMIFS($F$40:$F$103,$D$40:$D$103,J81) -> 0 | M81: =K81+L81 -> €104,927 | N81: =SUMIFS($F$40:$F$103,$E$40:$E$103,"Client media funds received",$D$40:$D$103,"<="&J81)+SUMIFS($F$40:$F$103,$E$40:$E$103,"Client media funds paid",$D$40:$D$103,"<="&J81) -> 0 | O81: =M81-N81 -> €104,927
C82: NEW-supplier-11-A | D82: =DATE(2026,11,15) -> 2026-11-15 | E82: Supplier payments | F82: =(-'Working capital'!O27+SUMIFS('AR and AP'!$M$24:$M$31,'AR and AP'!$N$24:$N$31,">="&DATE(2026,11,1),'AR and AP'!$N$24:$N$31,"<"&DATE(2026,12,1)))*0.45 -> (€9,041) | J82: 2026-10-13 | K82: =M81 -> €104,927 | L82: =SUMIFS($F$40:$F$103,$D$40:$D$103,J82) -> 0 | M82: =K82+L82 -> €104,927 | N82: =SUMIFS($F$40:$F$103,$E$40:$E$103,"Client media funds received",$D$40:$D$103,"<="&J82)+SUMIFS($F$40:$F$103,$E$40:$E$103,"Client media funds paid",$D$40:$D$103,"<="&J82) -> 0 | O82: =M82-N82 -> €104,927
C83: NEW-supplier-11-B | D83: =DATE(2026,11,28) -> 2026-11-28 | E83: Supplier payments | F83: =(-'Working capital'!O27+SUMIFS('AR and AP'!$M$24:$M$31,'AR and AP'!$N$24:$N$31,">="&DATE(2026,11,1),'AR and AP'!$N$24:$N$31,"<"&DATE(2026,12,1)))*0.55 -> (€11,051) | J83: 2026-10-14 | K83: =M82 -> €104,927 | L83: =SUMIFS($F$40:$F$103,$D$40:$D$103,J83) -> 0 | M83: =K83+L83 -> €104,927 | N83: =SUMIFS($F$40:$F$103,$E$40:$E$103,"Client media funds received",$D$40:$D$103,"<="&J83)+SUMIFS($F$40:$F$103,$E$40:$E$103,"Client media funds paid",$D$40:$D$103,"<="&J83) -> 0 | O83: =M83-N83 -> €104,927
C84: SCH-payroll-11 | D84: =DATE(2026,11,25) -> 2026-11-25 | E84: Payroll | F84: =-('P&L'!O13+'Assumptions'!O41) -> (€103,750) | J84: 2026-10-15 | K84: =M83 -> €104,927 | L84: =SUMIFS($F$40:$F$103,$D$40:$D$103,J84) -> €63,120 | M84: =K84+L84 -> €168,047 | N84: =SUMIFS($F$40:$F$103,$E$40:$E$103,"Client media funds received",$D$40:$D$103,"<="&J84)+SUMIFS($F$40:$F$103,$E$40:$E$103,"Client media funds paid",$D$40:$D$103,"<="&J84) -> 0 | O84: =M84-N84 -> €168,047
C85: SCH-overheads-11 | D85: =DATE(2026,11,10) -> 2026-11-10 | E85: Operating overheads | F85: =-('Assumptions'!O44+'Assumptions'!O47+'Assumptions'!O50) -> (€24,300) | J85: 2026-10-16 | K85: =M84 -> €168,047 | L85: =SUMIFS($F$40:$F$103,$D$40:$D$103,J85) -> 0 | M85: =K85+L85 -> €168,047 | N85: =SUMIFS($F$40:$F$103,$E$40:$E$103,"Client media funds received",$D$40:$D$103,"<="&J85)+SUMIFS($F$40:$F$103,$E$40:$E$103,"Client media funds paid",$D$40:$D$103,"<="&J85) -> 0 | O85: =M85-N85 -> €168,047
C86: SCH-tax-11 | D86: =DATE(2026,11,21) -> 2026-11-21 | E86: Tax paid | F86: =-'Assumptions'!O68 -> 0 | J86: 2026-10-17 | K86: =M85 -> €168,047 | L86: =SUMIFS($F$40:$F$103,$D$40:$D$103,J86) -> 0 | M86: =K86+L86 -> €168,047 | N86: =SUMIFS($F$40:$F$103,$E$40:$E$103,"Client media funds received",$D$40:$D$103,"<="&J86)+SUMIFS($F$40:$F$103,$E$40:$E$103,"Client media funds paid",$D$40:$D$103,"<="&J86) -> 0 | O86: =M86-N86 -> €168,047
C87: SCH-capex-11 | D87: =DATE(2026,11,8) -> 2026-11-08 | E87: Capital purchases | F87: =-'Assumptions'!O65 -> (€6,000) | J87: 2026-10-18 | K87: =M86 -> €168,047 | L87: =SUMIFS($F$40:$F$103,$D$40:$D$103,J87) -> 0 | M87: =K87+L87 -> €168,047 | N87: =SUMIFS($F$40:$F$103,$E$40:$E$103,"Client media funds received",$D$40:$D$103,"<="&J87)+SUMIFS($F$40:$F$103,$E$40:$E$103,"Client media funds paid",$D$40:$D$103,"<="&J87) -> 0 | O87: =M87-N87 -> €168,047
C88: SCH-debt-11 | D88: =DATE(2026,11,28) -> 2026-11-28 | E88: Debt repayment | F88: =-4000 -> (€4,000) | J88: 2026-10-19 | K88: =M87 -> €168,047 | L88: =SUMIFS($F$40:$F$103,$D$40:$D$103,J88) -> 0 | M88: =K88+L88 -> €168,047 | N88: =SUMIFS($F$40:$F$103,$E$40:$E$103,"Client media funds received",$D$40:$D$103,"<="&J88)+SUMIFS($F$40:$F$103,$E$40:$E$103,"Client media funds paid",$D$40:$D$103,"<="&J88) -> 0 | O88: =M88-N88 -> €168,047
C89: SCH-interest-11 | D89: =DATE(2026,11,28) -> 2026-11-28 | E89: Interest paid | F89: =-'P&L'!O24 -> (€433) | J89: 2026-10-20 | K89: =M88 -> €168,047 | L89: =SUMIFS($F$40:$F$103,$D$40:$D$103,J89) -> 0 | M89: =K89+L89 -> €168,047 | N89: =SUMIFS($F$40:$F$103,$E$40:$E$103,"Client media funds received",$D$40:$D$103,"<="&J89)+SUMIFS($F$40:$F$103,$E$40:$E$103,"Client media funds paid",$D$40:$D$103,"<="&J89) -> 0 | O89: =M89-N89 -> €168,047
C90: SCH-mediaIn-11 | D90: =DATE(2026,11,5) -> 2026-11-05 | E90: Client media funds received | F90: ='Assumptions'!O23 -> €335,000 | J90: 2026-10-21 | K90: =M89 -> €168,047 | L90: =SUMIFS($F$40:$F$103,$D$40:$D$103,J90) -> 0 | M90: =K90+L90 -> €168,047 | N90: =SUMIFS($F$40:$F$103,$E$40:$E$103,"Client media funds received",$D$40:$D$103,"<="&J90)+SUMIFS($F$40:$F$103,$E$40:$E$103,"Client media funds paid",$D$40:$D$103,"<="&J90) -> 0 | O90: =M90-N90 -> €168,047
C91: SCH-mediaOut-11 | D91: =DATE(2026,11,10) -> 2026-11-10 | E91: Client media funds paid | F91: =-'Assumptions'!O23 -> (€335,000) | J91: 2026-10-22 | K91: =M90 -> €168,047 | L91: =SUMIFS($F$40:$F$103,$D$40:$D$103,J91) -> 0 | M91: =K91+L91 -> €168,047 | N91: =SUMIFS($F$40:$F$103,$E$40:$E$103,"Client media funds received",$D$40:$D$103,"<="&J91)+SUMIFS($F$40:$F$103,$E$40:$E$103,"Client media funds paid",$D$40:$D$103,"<="&J91) -> 0 | O91: =M91-N91 -> €168,047
C92: NEW-receipts-12-A | D92: =DATE(2026,12,15) -> 2026-12-15 | E92: Customer receipts | F92: =('Working capital'!P20-'Working capital'!P15)*0.45 -> €92,774 | J92: 2026-10-23 | K92: =M91 -> €168,047 | L92: =SUMIFS($F$40:$F$103,$D$40:$D$103,J92) -> 0 | M92: =K92+L92 -> €168,047 | N92: =SUMIFS($F$40:$F$103,$E$40:$E$103,"Client media funds received",$D$40:$D$103,"<="&J92)+SUMIFS($F$40:$F$103,$E$40:$E$103,"Client media funds paid",$D$40:$D$103,"<="&J92) -> 0 | O92: =M92-N92 -> €168,047
C93: NEW-receipts-12-B | D93: =DATE(2026,12,28) -> 2026-12-28 | E93: Customer receipts | F93: =('Working capital'!P20-'Working capital'!P15)*0.55 -> €113,390 | J93: 2026-10-24 | K93: =M92 -> €168,047 | L93: =SUMIFS($F$40:$F$103,$D$40:$D$103,J93) -> 0 | M93: =K93+L93 -> €168,047 | N93: =SUMIFS($F$40:$F$103,$E$40:$E$103,"Client media funds received",$D$40:$D$103,"<="&J93)+SUMIFS($F$40:$F$103,$E$40:$E$103,"Client media funds paid",$D$40:$D$103,"<="&J93) -> 0 | O93: =M93-N93 -> €168,047
C94: NEW-supplier-12-A | D94: =DATE(2026,12,15) -> 2026-12-15 | E94: Supplier payments | F94: =(-'Working capital'!P27+SUMIFS('AR and AP'!$M$24:$M$31,'AR and AP'!$N$24:$N$31,">="&DATE(2026,12,1),'AR and AP'!$N$24:$N$31,"<"&DATE(2026,13,1)))*0.45 -> (€9,842) | J94: 2026-10-25 | K94: =M93 -> €168,047 | L94: =SUMIFS($F$40:$F$103,$D$40:$D$103,J94) -> (€97,300) | M94: =K94+L94 -> €70,747 | N94: =SUMIFS($F$40:$F$103,$E$40:$E$103,"Client media funds received",$D$40:$D$103,"<="&J94)+SUMIFS($F$40:$F$103,$E$40:$E$103,"Client media funds paid",$D$40:$D$103,"<="&J94) -> 0 | O94: =M94-N94 -> €70,747
C95: NEW-supplier-12-B | D95: =DATE(2026,12,28) -> 2026-12-28 | E95: Supplier payments | F95: =(-'Working capital'!P27+SUMIFS('AR and AP'!$M$24:$M$31,'AR and AP'!$N$24:$N$31,">="&DATE(2026,12,1),'AR and AP'!$N$24:$N$31,"<"&DATE(2026,13,1)))*0.55 -> (€12,029) | J95: 2026-10-26 | K95: =M94 -> €70,747 | L95: =SUMIFS($F$40:$F$103,$D$40:$D$103,J95) -> 0 | M95: =K95+L95 -> €70,747 | N95: =SUMIFS($F$40:$F$103,$E$40:$E$103,"Client media funds received",$D$40:$D$103,"<="&J95)+SUMIFS($F$40:$F$103,$E$40:$E$103,"Client media funds paid",$D$40:$D$103,"<="&J95) -> 0 | O95: =M95-N95 -> €70,747
C96: SCH-payroll-12 | D96: =DATE(2026,12,25) -> 2026-12-25 | E96: Payroll | F96: =-('P&L'!P13+'Assumptions'!P41) -> (€104,500) | J96: 2026-10-27 | K96: =M95 -> €70,747 | L96: =SUMIFS($F$40:$F$103,$D$40:$D$103,J96) -> 0 | M96: =K96+L96 -> €70,747 | N96: =SUMIFS($F$40:$F$103,$E$40:$E$103,"Client media funds received",$D$40:$D$103,"<="&J96)+SUMIFS($F$40:$F$103,$E$40:$E$103,"Client media funds paid",$D$40:$D$103,"<="&J96) -> 0 | O96: =M96-N96 -> €70,747
C97: SCH-overheads-12 | D97: =DATE(2026,12,10) -> 2026-12-10 | E97: Operating overheads | F97: =-('Assumptions'!P44+'Assumptions'!P47+'Assumptions'!P50) -> (€23,300) | J97: 2026-10-28 | K97: =M96 -> €70,747 | L97: =SUMIFS($F$40:$F$103,$D$40:$D$103,J97) -> €72,692 | M97: =K97+L97 -> €143,439 | N97: =SUMIFS($F$40:$F$103,$E$40:$E$103,"Client media funds received",$D$40:$D$103,"<="&J97)+SUMIFS($F$40:$F$103,$E$40:$E$103,"Client media funds paid",$D$40:$D$103,"<="&J97) -> 0 | O97: =M97-N97 -> €143,439
C98: SCH-tax-12 | D98: =DATE(2026,12,21) -> 2026-12-21 | E98: Tax paid | F98: =-'Assumptions'!P68 -> (€12,000) | J98: 2026-10-29 | K98: =M97 -> €143,439 | L98: =SUMIFS($F$40:$F$103,$D$40:$D$103,J98) -> 0 | M98: =K98+L98 -> €143,439 | N98: =SUMIFS($F$40:$F$103,$E$40:$E$103,"Client media funds received",$D$40:$D$103,"<="&J98)+SUMIFS($F$40:$F$103,$E$40:$E$103,"Client media funds paid",$D$40:$D$103,"<="&J98) -> 0 | O98: =M98-N98 -> €143,439
C99: SCH-capex-12 | D99: =DATE(2026,12,8) -> 2026-12-08 | E99: Capital purchases | F99: =-'Assumptions'!P65 -> (€6,000) | J99: 2026-10-30 | K99: =M98 -> €143,439 | L99: =SUMIFS($F$40:$F$103,$D$40:$D$103,J99) -> 0 | M99: =K99+L99 -> €143,439 | N99: =SUMIFS($F$40:$F$103,$E$40:$E$103,"Client media funds received",$D$40:$D$103,"<="&J99)+SUMIFS($F$40:$F$103,$E$40:$E$103,"Client media funds paid",$D$40:$D$103,"<="&J99) -> 0 | O99: =M99-N99 -> €143,439
C100: SCH-debt-12 | D100: =DATE(2026,12,28) -> 2026-12-28 | E100: Debt repayment | F100: =-4000 -> (€4,000) | J100: 2026-10-31 | K100: =M99 -> €143,439 | L100: =SUMIFS($F$40:$F$103,$D$40:$D$103,J100) -> 0 | M100: =K100+L100 -> €143,439 | N100: =SUMIFS($F$40:$F$103,$E$40:$E$103,"Client media funds received",$D$40:$D$103,"<="&J100)+SUMIFS($F$40:$F$103,$E$40:$E$103,"Client media funds paid",$D$40:$D$103,"<="&J100) -> 0 | O100: =M100-N100 -> €143,439
C101: SCH-interest-12 | D101: =DATE(2026,12,28) -> 2026-12-28 | E101: Interest paid | F101: =-'P&L'!P24 -> (€412) | J101: 2026-11-01 | K101: =M100 -> €143,439 | L101: =SUMIFS($F$40:$F$103,$D$40:$D$103,J101) -> 0 | M101: =K101+L101 -> €143,439 | N101: =SUMIFS($F$40:$F$103,$E$40:$E$103,"Client media funds received",$D$40:$D$103,"<="&J101)+SUMIFS($F$40:$F$103,$E$40:$E$103,"Client media funds paid",$D$40:$D$103,"<="&J101) -> 0 | O101: =M101-N101 -> €143,439
C102: SCH-mediaIn-12 | D102: =DATE(2026,12,5) -> 2026-12-05 | E102: Client media funds received | F102: ='Assumptions'!P23 -> €320,000 | J102: 2026-11-02 | K102: =M101 -> €143,439 | L102: =SUMIFS($F$40:$F$103,$D$40:$D$103,J102) -> 0 | M102: =K102+L102 -> €143,439 | N102: =SUMIFS($F$40:$F$103,$E$40:$E$103,"Client media funds received",$D$40:$D$103,"<="&J102)+SUMIFS($F$40:$F$103,$E$40:$E$103,"Client media funds paid",$D$40:$D$103,"<="&J102) -> 0 | O102: =M102-N102 -> €143,439
C103: SCH-mediaOut-12 | D103: =DATE(2026,12,10) -> 2026-12-10 | E103: Client media funds paid | F103: =-'Assumptions'!P23 -> (€320,000) | J103: 2026-11-03 | K103: =M102 -> €143,439 | L103: =SUMIFS($F$40:$F$103,$D$40:$D$103,J103) -> 0 | M103: =K103+L103 -> €143,439 | N103: =SUMIFS($F$40:$F$103,$E$40:$E$103,"Client media funds received",$D$40:$D$103,"<="&J103)+SUMIFS($F$40:$F$103,$E$40:$E$103,"Client media funds paid",$D$40:$D$103,"<="&J103) -> 0 | O103: =M103-N103 -> €143,439
J104: 2026-11-04 | K104: =M103 -> €143,439 | L104: =SUMIFS($F$40:$F$103,$D$40:$D$103,J104) -> 0 | M104: =K104+L104 -> €143,439 | N104: =SUMIFS($F$40:$F$103,$E$40:$E$103,"Client media funds received",$D$40:$D$103,"<="&J104)+SUMIFS($F$40:$F$103,$E$40:$E$103,"Client media funds paid",$D$40:$D$103,"<="&J104) -> 0 | O104: =M104-N104 -> €143,439
J105: 2026-11-05 | K105: =M104 -> €143,439 | L105: =SUMIFS($F$40:$F$103,$D$40:$D$103,J105) -> €335,000 | M105: =K105+L105 -> €478,439 | N105: =SUMIFS($F$40:$F$103,$E$40:$E$103,"Client media funds received",$D$40:$D$103,"<="&J105)+SUMIFS($F$40:$F$103,$E$40:$E$103,"Client media funds paid",$D$40:$D$103,"<="&J105) -> €335,000 | O105: =M105-N105 -> €143,439
J106: 2026-11-06 | K106: =M105 -> €478,439 | L106: =SUMIFS($F$40:$F$103,$D$40:$D$103,J106) -> 0 | M106: =K106+L106 -> €478,439 | N106: =SUMIFS($F$40:$F$103,$E$40:$E$103,"Client media funds received",$D$40:$D$103,"<="&J106)+SUMIFS($F$40:$F$103,$E$40:$E$103,"Client media funds paid",$D$40:$D$103,"<="&J106) -> €335,000 | O106: =M106-N106 -> €143,439
J107: 2026-11-07 | K107: =M106 -> €478,439 | L107: =SUMIFS($F$40:$F$103,$D$40:$D$103,J107) -> 0 | M107: =K107+L107 -> €478,439 | N107: =SUMIFS($F$40:$F$103,$E$40:$E$103,"Client media funds received",$D$40:$D$103,"<="&J107)+SUMIFS($F$40:$F$103,$E$40:$E$103,"Client media funds paid",$D$40:$D$103,"<="&J107) -> €335,000 | O107: =M107-N107 -> €143,439
J108: 2026-11-08 | K108: =M107 -> €478,439 | L108: =SUMIFS($F$40:$F$103,$D$40:$D$103,J108) -> (€6,000) | M108: =K108+L108 -> €472,439 | N108: =SUMIFS($F$40:$F$103,$E$40:$E$103,"Client media funds received",$D$40:$D$103,"<="&J108)+SUMIFS($F$40:$F$103,$E$40:$E$103,"Client media funds paid",$D$40:$D$103,"<="&J108) -> €335,000 | O108: =M108-N108 -> €137,439
J109: 2026-11-09 | K109: =M108 -> €472,439 | L109: =SUMIFS($F$40:$F$103,$D$40:$D$103,J109) -> 0 | M109: =K109+L109 -> €472,439 | N109: =SUMIFS($F$40:$F$103,$E$40:$E$103,"Client media funds received",$D$40:$D$103,"<="&J109)+SUMIFS($F$40:$F$103,$E$40:$E$103,"Client media funds paid",$D$40:$D$103,"<="&J109) -> €335,000 | O109: =M109-N109 -> €137,439
J110: 2026-11-10 | K110: =M109 -> €472,439 | L110: =SUMIFS($F$40:$F$103,$D$40:$D$103,J110) -> (€359,300) | M110: =K110+L110 -> €113,139 | N110: =SUMIFS($F$40:$F$103,$E$40:$E$103,"Client media funds received",$D$40:$D$103,"<="&J110)+SUMIFS($F$40:$F$103,$E$40:$E$103,"Client media funds paid",$D$40:$D$103,"<="&J110) -> 0 | O110: =M110-N110 -> €113,139
J111: 2026-11-11 | K111: =M110 -> €113,139 | L111: =SUMIFS($F$40:$F$103,$D$40:$D$103,J111) -> 0 | M111: =K111+L111 -> €113,139 | N111: =SUMIFS($F$40:$F$103,$E$40:$E$103,"Client media funds received",$D$40:$D$103,"<="&J111)+SUMIFS($F$40:$F$103,$E$40:$E$103,"Client media funds paid",$D$40:$D$103,"<="&J111) -> 0 | O111: =M111-N111 -> €113,139
J112: 2026-11-12 | K112: =M111 -> €113,139 | L112: =SUMIFS($F$40:$F$103,$D$40:$D$103,J112) -> 0 | M112: =K112+L112 -> €113,139 | N112: =SUMIFS($F$40:$F$103,$E$40:$E$103,"Client media funds received",$D$40:$D$103,"<="&J112)+SUMIFS($F$40:$F$103,$E$40:$E$103,"Client media funds paid",$D$40:$D$103,"<="&J112) -> 0 | O112: =M112-N112 -> €113,139
J113: 2026-11-13 | K113: =M112 -> €113,139 | L113: =SUMIFS($F$40:$F$103,$D$40:$D$103,J113) -> 0 | M113: =K113+L113 -> €113,139 | N113: =SUMIFS($F$40:$F$103,$E$40:$E$103,"Client media funds received",$D$40:$D$103,"<="&J113)+SUMIFS($F$40:$F$103,$E$40:$E$103,"Client media funds paid",$D$40:$D$103,"<="&J113) -> 0 | O113: =M113-N113 -> €113,139
J114: 2026-11-14 | K114: =M113 -> €113,139 | L114: =SUMIFS($F$40:$F$103,$D$40:$D$103,J114) -> 0 | M114: =K114+L114 -> €113,139 | N114: =SUMIFS($F$40:$F$103,$E$40:$E$103,"Client media funds received",$D$40:$D$103,"<="&J114)+SUMIFS($F$40:$F$103,$E$40:$E$103,"Client media funds paid",$D$40:$D$103,"<="&J114) -> 0 | O114: =M114-N114 -> €113,139
J115: 2026-11-15 | K115: =M114 -> €113,139 | L115: =SUMIFS($F$40:$F$103,$D$40:$D$103,J115) -> €72,436 | M115: =K115+L115 -> €185,575 | N115: =SUMIFS($F$40:$F$103,$E$40:$E$103,"Client media funds received",$D$40:$D$103,"<="&J115)+SUMIFS($F$40:$F$103,$E$40:$E$103,"Client media funds paid",$D$40:$D$103,"<="&J115) -> 0 | O115: =M115-N115 -> €185,575
J116: 2026-11-16 | K116: =M115 -> €185,575 | L116: =SUMIFS($F$40:$F$103,$D$40:$D$103,J116) -> 0 | M116: =K116+L116 -> €185,575 | N116: =SUMIFS($F$40:$F$103,$E$40:$E$103,"Client media funds received",$D$40:$D$103,"<="&J116)+SUMIFS($F$40:$F$103,$E$40:$E$103,"Client media funds paid",$D$40:$D$103,"<="&J116) -> 0 | O116: =M116-N116 -> €185,575
J117: 2026-11-17 | K117: =M116 -> €185,575 | L117: =SUMIFS($F$40:$F$103,$D$40:$D$103,J117) -> 0 | M117: =K117+L117 -> €185,575 | N117: =SUMIFS($F$40:$F$103,$E$40:$E$103,"Client media funds received",$D$40:$D$103,"<="&J117)+SUMIFS($F$40:$F$103,$E$40:$E$103,"Client media funds paid",$D$40:$D$103,"<="&J117) -> 0 | O117: =M117-N117 -> €185,575
J118: 2026-11-18 | K118: =M117 -> €185,575 | L118: =SUMIFS($F$40:$F$103,$D$40:$D$103,J118) -> 0 | M118: =K118+L118 -> €185,575 | N118: =SUMIFS($F$40:$F$103,$E$40:$E$103,"Client media funds received",$D$40:$D$103,"<="&J118)+SUMIFS($F$40:$F$103,$E$40:$E$103,"Client media funds paid",$D$40:$D$103,"<="&J118) -> 0 | O118: =M118-N118 -> €185,575
J119: 2026-11-19 | K119: =M118 -> €185,575 | L119: =SUMIFS($F$40:$F$103,$D$40:$D$103,J119) -> 0 | M119: =K119+L119 -> €185,575 | N119: =SUMIFS($F$40:$F$103,$E$40:$E$103,"Client media funds received",$D$40:$D$103,"<="&J119)+SUMIFS($F$40:$F$103,$E$40:$E$103,"Client media funds paid",$D$40:$D$103,"<="&J119) -> 0 | O119: =M119-N119 -> €185,575
J120: 2026-11-20 | K120: =M119 -> €185,575 | L120: =SUMIFS($F$40:$F$103,$D$40:$D$103,J120) -> 0 | M120: =K120+L120 -> €185,575 | N120: =SUMIFS($F$40:$F$103,$E$40:$E$103,"Client media funds received",$D$40:$D$103,"<="&J120)+SUMIFS($F$40:$F$103,$E$40:$E$103,"Client media funds paid",$D$40:$D$103,"<="&J120) -> 0 | O120: =M120-N120 -> €185,575
J121: 2026-11-21 | K121: =M120 -> €185,575 | L121: =SUMIFS($F$40:$F$103,$D$40:$D$103,J121) -> 0 | M121: =K121+L121 -> €185,575 | N121: =SUMIFS($F$40:$F$103,$E$40:$E$103,"Client media funds received",$D$40:$D$103,"<="&J121)+SUMIFS($F$40:$F$103,$E$40:$E$103,"Client media funds paid",$D$40:$D$103,"<="&J121) -> 0 | O121: =M121-N121 -> €185,575
J122: 2026-11-22 | K122: =M121 -> €185,575 | L122: =SUMIFS($F$40:$F$103,$D$40:$D$103,J122) -> 0 | M122: =K122+L122 -> €185,575 | N122: =SUMIFS($F$40:$F$103,$E$40:$E$103,"Client media funds received",$D$40:$D$103,"<="&J122)+SUMIFS($F$40:$F$103,$E$40:$E$103,"Client media funds paid",$D$40:$D$103,"<="&J122) -> 0 | O122: =M122-N122 -> €185,575
J123: 2026-11-23 | K123: =M122 -> €185,575 | L123: =SUMIFS($F$40:$F$103,$D$40:$D$103,J123) -> 0 | M123: =K123+L123 -> €185,575 | N123: =SUMIFS($F$40:$F$103,$E$40:$E$103,"Client media funds received",$D$40:$D$103,"<="&J123)+SUMIFS($F$40:$F$103,$E$40:$E$103,"Client media funds paid",$D$40:$D$103,"<="&J123) -> 0 | O123: =M123-N123 -> €185,575
J124: 2026-11-24 | K124: =M123 -> €185,575 | L124: =SUMIFS($F$40:$F$103,$D$40:$D$103,J124) -> 0 | M124: =K124+L124 -> €185,575 | N124: =SUMIFS($F$40:$F$103,$E$40:$E$103,"Client media funds received",$D$40:$D$103,"<="&J124)+SUMIFS($F$40:$F$103,$E$40:$E$103,"Client media funds paid",$D$40:$D$103,"<="&J124) -> 0 | O124: =M124-N124 -> €185,575
J125: 2026-11-25 | K125: =M124 -> €185,575 | L125: =SUMIFS($F$40:$F$103,$D$40:$D$103,J125) -> (€103,750) | M125: =K125+L125 -> €81,825 | N125: =SUMIFS($F$40:$F$103,$E$40:$E$103,"Client media funds received",$D$40:$D$103,"<="&J125)+SUMIFS($F$40:$F$103,$E$40:$E$103,"Client media funds paid",$D$40:$D$103,"<="&J125) -> 0 | O125: =M125-N125 -> €81,825
J126: 2026-11-26 | K126: =M125 -> €81,825 | L126: =SUMIFS($F$40:$F$103,$D$40:$D$103,J126) -> 0 | M126: =K126+L126 -> €81,825 | N126: =SUMIFS($F$40:$F$103,$E$40:$E$103,"Client media funds received",$D$40:$D$103,"<="&J126)+SUMIFS($F$40:$F$103,$E$40:$E$103,"Client media funds paid",$D$40:$D$103,"<="&J126) -> 0 | O126: =M126-N126 -> €81,825
J127: 2026-11-27 | K127: =M126 -> €81,825 | L127: =SUMIFS($F$40:$F$103,$D$40:$D$103,J127) -> 0 | M127: =K127+L127 -> €81,825 | N127: =SUMIFS($F$40:$F$103,$E$40:$E$103,"Client media funds received",$D$40:$D$103,"<="&J127)+SUMIFS($F$40:$F$103,$E$40:$E$103,"Client media funds paid",$D$40:$D$103,"<="&J127) -> 0 | O127: =M127-N127 -> €81,825
J128: 2026-11-28 | K128: =M127 -> €81,825 | L128: =SUMIFS($F$40:$F$103,$D$40:$D$103,J128) -> €84,099 | M128: =K128+L128 -> €165,924 | N128: =SUMIFS($F$40:$F$103,$E$40:$E$103,"Client media funds received",$D$40:$D$103,"<="&J128)+SUMIFS($F$40:$F$103,$E$40:$E$103,"Client media funds paid",$D$40:$D$103,"<="&J128) -> 0 | O128: =M128-N128 -> €165,924
J129: 2026-11-29 | K129: =M128 -> €165,924 | L129: =SUMIFS($F$40:$F$103,$D$40:$D$103,J129) -> 0 | M129: =K129+L129 -> €165,924 | N129: =SUMIFS($F$40:$F$103,$E$40:$E$103,"Client media funds received",$D$40:$D$103,"<="&J129)+SUMIFS($F$40:$F$103,$E$40:$E$103,"Client media funds paid",$D$40:$D$103,"<="&J129) -> 0 | O129: =M129-N129 -> €165,924
J130: 2026-11-30 | K130: =M129 -> €165,924 | L130: =SUMIFS($F$40:$F$103,$D$40:$D$103,J130) -> 0 | M130: =K130+L130 -> €165,924 | N130: =SUMIFS($F$40:$F$103,$E$40:$E$103,"Client media funds received",$D$40:$D$103,"<="&J130)+SUMIFS($F$40:$F$103,$E$40:$E$103,"Client media funds paid",$D$40:$D$103,"<="&J130) -> 0 | O130: =M130-N130 -> €165,924

Sheet Operating model
C2: Operating model
C4: Selected case | E4: ='Assumptions'!$G$4 -> Base | H4: EUR. Entirely fictional.
E6: Actual | F6: Actual | G6: Actual | H6: Actual | I6: Actual | J6: Actual | K6: Actual | L6: Actual | M6: Forecast | N6: Forecast | O6: Forecast | P6: Forecast
E7: 2026-01-01 | F7: 2026-02-01 | G7: 2026-03-01 | H7: 2026-04-01 | I7: 2026-05-01 | J7: 2026-06-01 | K7: 2026-07-01 | L7: 2026-08-01 | M7: 2026-09-01 | N7: 2026-10-01 | O7: 2026-11-01 | P7: 2026-12-01
C8: Retainer fee revenue | E8: ='Assumptions'!E8*'Assumptions'!E11 -> €62,000 | F8: ='Assumptions'!F8*'Assumptions'!F11 -> €62,500 | G8: ='Assumptions'!G8*'Assumptions'!G11 -> €68,750 | H8: ='Assumptions'!H8*'Assumptions'!H11 -> €70,400 | I8: ='Assumptions'!I8*'Assumptions'!I11 -> €70,400 | J8: ='Assumptions'!J8*'Assumptions'!J11 -> €78,000 | K8: ='Assumptions'!K8*'Assumptions'!K11 -> €78,000 | L8: ='Assumptions'!L8*'Assumptions'!L11 -> €78,000 | M8: ='Assumptions'!M8*'Assumptions'!M11 -> €86,450 | N8: ='Assumptions'!N8*'Assumptions'!N11 -> €87,100 | O8: ='Assumptions'!O8*'Assumptions'!O11 -> €93,800 | P8: ='Assumptions'!P8*'Assumptions'!P11 -> €95,900
C9: Delivered project fee revenue | E9: ='Assumptions'!E14*'Assumptions'!E17 -> €69,000 | F9: ='Assumptions'!F14*'Assumptions'!F17 -> €71,875 | G9: ='Assumptions'!G14*'Assumptions'!G17 -> €71,980 | H9: ='Assumptions'!H14*'Assumptions'!H17 -> €76,110 | I9: ='Assumptions'!I14*'Assumptions'!I17 -> €80,400 | J9: ='Assumptions'!J14*'Assumptions'!J17 -> €75,600 | K9: ='Assumptions'!K14*'Assumptions'!K17 -> €82,800 | L9: ='Assumptions'!L14*'Assumptions'!L17 -> €78,000 | M9: ='Assumptions'!M14*'Assumptions'!M17 -> €88,750 | N9: ='Assumptions'!N14*'Assumptions'!N17 -> €93,750 | O9: ='Assumptions'!O14*'Assumptions'!O17 -> €100,100 | P9: ='Assumptions'!P14*'Assumptions'!P17 -> €88,400
C10: Hardware revenue | E10: =0 -> 0 | F10: =0 -> 0 | G10: =0 -> 0 | H10: =0 -> 0 | I10: =0 -> 0 | J10: =0 -> 0 | K10: =0 -> 0 | L10: =0 -> 0 | M10: =0 -> 0 | N10: =0 -> 0 | O10: =0 -> 0 | P10: =0 -> 0
C11: Licence revenue | E11: =0 -> 0 | F11: =0 -> 0 | G11: =0 -> 0 | H11: =0 -> 0 | I11: =0 -> 0 | J11: =0 -> 0 | K11: =0 -> 0 | L11: =0 -> 0 | M11: =0 -> 0 | N11: =0 -> 0 | O11: =0 -> 0 | P11: =0 -> 0
C12: Hardware cost | E12: =0 -> 0 | F12: =0 -> 0 | G12: =0 -> 0 | H12: =0 -> 0 | I12: =0 -> 0 | J12: =0 -> 0 | K12: =0 -> 0 | L12: =0 -> 0 | M12: =0 -> 0 | N12: =0 -> 0 | O12: =0 -> 0 | P12: =0 -> 0
C13: Licence cost | E13: =0 -> 0 | F13: =0 -> 0 | G13: =0 -> 0 | H13: =0 -> 0 | I13: =0 -> 0 | J13: =0 -> 0 | K13: =0 -> 0 | L13: =0 -> 0 | M13: =0 -> 0 | N13: =0 -> 0 | O13: =0 -> 0 | P13: =0 -> 0
C14: Total client delivery hours | E14: ='Assumptions'!E8*'Assumptions'!E20+'Assumptions'!E14 -> 1,420.0 | F14: ='Assumptions'!F8*'Assumptions'!F20+'Assumptions'!F14 -> 1,465.0 | G14: ='Assumptions'!G8*'Assumptions'!G20+'Assumptions'!G14 -> 1,534.0 | H14: ='Assumptions'!H8*'Assumptions'!H20+'Assumptions'!H14 -> 1,580.0 | I14: ='Assumptions'!I8*'Assumptions'!I20+'Assumptions'!I14 -> 1,616.0 | J14: ='Assumptions'!J8*'Assumptions'!J20+'Assumptions'!J14 -> 1,686.0 | K14: ='Assumptions'!K8*'Assumptions'!K20+'Assumptions'!K14 -> 1,770.0 | L14: ='Assumptions'!L8*'Assumptions'!L20+'Assumptions'!L14 -> 1,730.0 | M14: ='Assumptions'!M8*'Assumptions'!M20+'Assumptions'!M14 -> 1,815.0 | N14: ='Assumptions'!N8*'Assumptions'!N20+'Assumptions'!N14 -> 1,855.0 | O14: ='Assumptions'!O8*'Assumptions'!O20+'Assumptions'!O14 -> 1,946.0 | P14: ='Assumptions'!P8*'Assumptions'!P20+'Assumptions'!P14 -> 1,856.0
C15: Client media (excluded from revenue) | E15: ='Assumptions'!E23 -> €180,000 | F15: ='Assumptions'!F23 -> €190,000 | G15: ='Assumptions'!G23 -> €195,000 | H15: ='Assumptions'!H23 -> €205,000 | I15: ='Assumptions'!I23 -> €210,000 | J15: ='Assumptions'!J23 -> €235,000 | K15: ='Assumptions'!K23 -> €245,000 | L15: ='Assumptions'!L23 -> €265,000 | M15: ='Assumptions'!M23 -> €285,000 | N15: ='Assumptions'!N23 -> €300,000 | O15: ='Assumptions'!O23 -> €335,000 | P15: ='Assumptions'!P23 -> €320,000
C16: Loaded delivery payroll | E16: ='Assumptions'!E26*'Assumptions'!E29 -> €56,400 | F16: ='Assumptions'!F26*'Assumptions'!F29 -> €56,400 | G16: ='Assumptions'!G26*'Assumptions'!G29 -> €61,750 | H16: ='Assumptions'!H26*'Assumptions'!H29 -> €61,750 | I16: ='Assumptions'!I26*'Assumptions'!I29 -> €62,400 | J16: ='Assumptions'!J26*'Assumptions'!J29 -> €67,200 | K16: ='Assumptions'!K26*'Assumptions'!K29 -> €68,600 | L16: ='Assumptions'!L26*'Assumptions'!L29 -> €68,600 | M16: ='Assumptions'!M26*'Assumptions'!M29 -> €68,600 | N16: ='Assumptions'!N26*'Assumptions'!N29 -> €69,300 | O16: ='Assumptions'!O26*'Assumptions'!O29 -> €74,250 | P16: ='Assumptions'!P26*'Assumptions'!P29 -> €75,000
C17: Subcontractor cost | E17: ='Assumptions'!E32*'Assumptions'!E35 -> €9,450 | F17: ='Assumptions'!F32*'Assumptions'!F35 -> €9,800 | G17: ='Assumptions'!G32*'Assumptions'!G35 -> €11,160 | H17: ='Assumptions'!H32*'Assumptions'!H35 -> €11,520 | I17: ='Assumptions'!I32*'Assumptions'!I35 -> €12,580 | J17: ='Assumptions'!J32*'Assumptions'!J35 -> €13,320 | K17: ='Assumptions'!K32*'Assumptions'!K35 -> €14,625 | L17: ='Assumptions'!L32*'Assumptions'!L35 -> €15,000 | M17: ='Assumptions'!M32*'Assumptions'!M35 -> €13,260 | N17: ='Assumptions'!N32*'Assumptions'!N35 -> €13,650 | O17: ='Assumptions'!O32*'Assumptions'!O35 -> €14,400 | P17: ='Assumptions'!P32*'Assumptions'!P35 -> €12,800
C18: Direct software | E18: ='Assumptions'!E38 -> €5,500 | F18: ='Assumptions'!F38 -> €5,500 | G18: ='Assumptions'!G38 -> €5,800 | H18: ='Assumptions'!H38 -> €5,800 | I18: ='Assumptions'!I38 -> €6,000 | J18: ='Assumptions'!J38 -> €6,200 | K18: ='Assumptions'!K38 -> €6,500 | L18: ='Assumptions'!L38 -> €6,500 | M18: ='Assumptions'!M38 -> €6,800 | N18: ='Assumptions'!N38 -> €6,800 | O18: ='Assumptions'!O38 -> €7,200 | P18: ='Assumptions'!P38 -> €7,200
C19: Total recognised revenue | E19: =SUM(E8:E11) -> €131,000 | F19: =SUM(F8:F11) -> €134,375 | G19: =SUM(G8:G11) -> €140,730 | H19: =SUM(H8:H11) -> €146,510 | I19: =SUM(I8:I11) -> €150,800 | J19: =SUM(J8:J11) -> €153,600 | K19: =SUM(K8:K11) -> €160,800 | L19: =SUM(L8:L11) -> €156,000 | M19: =SUM(M8:M11) -> €175,200 | N19: =SUM(N8:N11) -> €180,850 | O19: =SUM(O8:O11) -> €193,900 | P19: =SUM(P8:P11) -> €184,300
C20: Total direct costs | E20: =SUM(E12:E13,E16:E18) -> €71,350 | F20: =SUM(F12:F13,F16:F18) -> €71,700 | G20: =SUM(G12:G13,G16:G18) -> €78,710 | H20: =SUM(H12:H13,H16:H18) -> €79,070 | I20: =SUM(I12:I13,I16:I18) -> €80,980 | J20: =SUM(J12:J13,J16:J18) -> €86,720 | K20: =SUM(K12:K13,K16:K18) -> €89,725 | L20: =SUM(L12:L13,L16:L18) -> €90,100 | M20: =SUM(M12:M13,M16:M18) -> €88,660 | N20: =SUM(N12:N13,N16:N18) -> €89,750 | O20: =SUM(O12:O13,O16:O18) -> €95,850 | P20: =SUM(P12:P13,P16:P18) -> €95,000
C21: Gross profit | E21: =E19-E20 -> €59,650 | F21: =F19-F20 -> €62,675 | G21: =G19-G20 -> €62,020 | H21: =H19-H20 -> €67,440 | I21: =I19-I20 -> €69,820 | J21: =J19-J20 -> €66,880 | K21: =K19-K20 -> €71,075 | L21: =L19-L20 -> €65,900 | M21: =M19-M20 -> €86,540 | N21: =N19-N20 -> €91,100 | O21: =O19-O20 -> €98,050 | P21: =P19-P20 -> €89,300
C22: Gross margin | E22: =E21/E19 -> 45.5% | F22: =F21/F19 -> 46.6% | G22: =G21/G19 -> 44.1% | H22: =H21/H19 -> 46.0% | I22: =I21/I19 -> 46.3% | J22: =J21/J19 -> 43.5% | K22: =K21/K19 -> 44.2% | L22: =L21/L19 -> 42.2% | M22: =M21/M19 -> 49.4% | N22: =N21/N19 -> 50.4% | O22: =O21/O19 -> 50.6% | P22: =P21/P19 -> 48.5%
C23: Operating expenses | E23: ='Assumptions'!E41+'Assumptions'!E44+'Assumptions'!E47+'Assumptions'!E50 -> €44,000 | F23: ='Assumptions'!F41+'Assumptions'!F44+'Assumptions'!F47+'Assumptions'!F50 -> €44,500 | G23: ='Assumptions'!G41+'Assumptions'!G44+'Assumptions'!G47+'Assumptions'!G50 -> €45,500 | H23: ='Assumptions'!H41+'Assumptions'!H44+'Assumptions'!H47+'Assumptions'!H50 -> €45,900 | I23: ='Assumptions'!I41+'Assumptions'!I44+'Assumptions'!I47+'Assumptions'!I50 -> €46,700 | J23: ='Assumptions'!J41+'Assumptions'!J44+'Assumptions'!J47+'Assumptions'!J50 -> €48,200 | K23: ='Assumptions'!K41+'Assumptions'!K44+'Assumptions'!K47+'Assumptions'!K50 -> €50,500 | L23: ='Assumptions'!L41+'Assumptions'!L44+'Assumptions'!L47+'Assumptions'!L50 -> €50,500 | M23: ='Assumptions'!M41+'Assumptions'!M44+'Assumptions'!M47+'Assumptions'!M50 -> €50,000 | N23: ='Assumptions'!N41+'Assumptions'!N44+'Assumptions'!N47+'Assumptions'!N50 -> €51,000 | O23: ='Assumptions'!O41+'Assumptions'!O44+'Assumptions'!O47+'Assumptions'!O50 -> €53,800 | P23: ='Assumptions'!P41+'Assumptions'!P44+'Assumptions'!P47+'Assumptions'!P50 -> €52,800
C24: EBITDA | E24: =E21-E23 -> €15,650 | F24: =F21-F23 -> €18,175 | G24: =G21-G23 -> €16,520 | H24: =H21-H23 -> €21,540 | I24: =I21-I23 -> €23,120 | J24: =J21-J23 -> €18,680 | K24: =K21-K23 -> €20,575 | L24: =L21-L23 -> €15,400 | M24: =M21-M23 -> €36,540 | N24: =N21-N23 -> €40,100 | O24: =O21-O23 -> €44,250 | P24: =P21-P23 -> €36,500
C25: Internal delivery hours | E25: =E14-'Assumptions'!E32 -> 1,285.0 | F25: =F14-'Assumptions'!F32 -> 1,325.0 | G25: =G14-'Assumptions'!G32 -> 1,379.0 | H25: =H14-'Assumptions'!H32 -> 1,420.0 | I25: =I14-'Assumptions'!I32 -> 1,446.0 | J25: =J14-'Assumptions'!J32 -> 1,506.0 | K25: =K14-'Assumptions'!K32 -> 1,575.0 | L25: =L14-'Assumptions'!L32 -> 1,530.0 | M25: =M14-'Assumptions'!M32 -> 1,645.0 | N25: =N14-'Assumptions'!N32 -> 1,680.0 | O25: =O14-'Assumptions'!O32 -> 1,766.0 | P25: =P14-'Assumptions'!P32 -> 1,696.0
C26: Available internal hours | E26: ='Assumptions'!E26*160 -> 1,920.0 | F26: ='Assumptions'!F26*160 -> 1,920.0 | G26: ='Assumptions'!G26*160 -> 2,080.0 | H26: ='Assumptions'!H26*160 -> 2,080.0 | I26: ='Assumptions'!I26*160 -> 2,080.0 | J26: ='Assumptions'!J26*160 -> 2,240.0 | K26: ='Assumptions'!K26*160 -> 2,240.0 | L26: ='Assumptions'!L26*160 -> 2,240.0 | M26: ='Assumptions'!M26*160 -> 2,240.0 | N26: ='Assumptions'!N26*160 -> 2,240.0 | O26: ='Assumptions'!O26*160 -> 2,400.0 | P26: ='Assumptions'!P26*160 -> 2,400.0
C27: Internal capacity utilisation | E27: =E25/E26 -> 66.9% | F27: =F25/F26 -> 69.0% | G27: =G25/G26 -> 66.3% | H27: =H25/H26 -> 68.3% | I27: =I25/I26 -> 69.5% | J27: =J25/J26 -> 67.2% | K27: =K25/K26 -> 70.3% | L27: =L25/L26 -> 68.3% | M27: =M25/M26 -> 73.4% | N27: =N25/N26 -> 75.0% | O27: =O25/O26 -> 73.6% | P27: =P25/P26 -> 70.7%
C28: Unallocated internal hours | E28: =E26-E25 -> 635.0 | F28: =F26-F25 -> 595.0 | G28: =G26-G25 -> 701.0 | H28: =H26-H25 -> 660.0 | I28: =I26-I25 -> 634.0 | J28: =J26-J25 -> 734.0 | K28: =K26-K25 -> 665.0 | L28: =L26-L25 -> 710.0 | M28: =M26-M25 -> 595.0 | N28: =N26-N25 -> 560.0 | O28: =O26-O25 -> 634.0 | P28: =P26-P25 -> 704.0
C29: Billings before contract advances | E29: ='Operating model'!E19+'Working capital'!E8-'Working capital'!E9 -> €136,340 | F29: ='Operating model'!F19+'Working capital'!F8-'Working capital'!F9 -> €133,254 | G29: ='Operating model'!G19+'Working capital'!G8-'Working capital'!G9 -> €139,994 | H29: ='Operating model'!H19+'Working capital'!H8-'Working capital'!H9 -> €145,849 | I29: ='Operating model'!I19+'Working capital'!I8-'Working capital'!I9 -> €148,506 | J29: ='Operating model'!J19+'Working capital'!J8-'Working capital'!J9 -> €152,952 | K29: ='Operating model'!K19+'Working capital'!K8-'Working capital'!K9 -> €156,876 | L29: ='Operating model'!L19+'Working capital'!L8-'Working capital'!L9 -> €155,544 | M29: ='Operating model'!M19+'Working capital'!M8-'Working capital'!M9 -> €180,500 | N29: ='Operating model'!N19+'Working capital'!N8-'Working capital'!N9 -> €180,988 | O29: ='Operating model'!O19+'Working capital'!O8-'Working capital'!O9 -> €193,949 | P29: ='Operating model'!P19+'Working capital'!P8-'Working capital'!P9 -> €187,706
C30: Resale contribution | E30: =E10+E11-E12-E13 -> 0 | F30: =F10+F11-F12-F13 -> 0 | G30: =G10+G11-G12-G13 -> 0 | H30: =H10+H11-H12-H13 -> 0 | I30: =I10+I11-I12-I13 -> 0 | J30: =J10+J11-J12-J13 -> 0 | K30: =K10+K11-K12-K13 -> 0 | L30: =L10+L11-L12-L13 -> 0 | M30: =M10+M11-M12-M13 -> 0 | N30: =N10+N11-N12-N13 -> 0 | O30: =O10+O11-O12-O13 -> 0 | P30: =P10+P11-P12-P13 -> 0
C31: Recurring service fees / revenue | E31: =E8/E19 -> 47.3% | F31: =F8/F19 -> 46.5% | G31: =G8/G19 -> 48.9% | H31: =H8/H19 -> 48.1% | I31: =I8/I19 -> 46.7% | J31: =J8/J19 -> 50.8% | K31: =K8/K19 -> 48.5% | L31: =L8/L19 -> 50.0% | M31: =M8/M19 -> 49.3% | N31: =N8/N19 -> 48.2% | O31: =O8/O19 -> 48.4% | P31: =P8/P19 -> 52.0%
C32: Support tickets | E32: =0 -> 0 | F32: =0 -> 0 | G32: =0 -> 0 | H32: =0 -> 0 | I32: =0 -> 0 | J32: =0 -> 0 | K32: =0 -> 0 | L32: =0 -> 0 | M32: =0 -> 0 | N32: =0 -> 0 | O32: =0 -> 0 | P32: =0 -> 0
C43: Media funds are prefunded and settled monthly. No media fee revenue.
C45: Available hours: 160 per paid FTE per month, excluding overtime.
C47: Subcontracted hours reduce internal delivery requirements.
C50: August client contribution allocation
C52: Service stream | D52: Fee share | E52: Revenue | F52: Internal hours | G52: Payroll allocation | H52: Subcontractor cost | I52: Other direct cost | J52: Contribution
C53: Retainer portfolio A | D53: 40.0% | E53: =L8*D53 -> €31,200 | F53: =L25*E53/L19 -> 306.0 | G53: =L16*E53/L19 -> €13,720 | H53: =L17*E53/L19 -> €3,000 | I53: =L18*E53/L19 -> €1,300 | J53: =E53-SUM(G53:I53) -> €13,180
C54: Retainer portfolio B | D54: 35.0% | E54: =L8*D54 -> €27,300 | F54: =L25*E54/L19 -> 267.8 | G54: =L16*E54/L19 -> €12,005 | H54: =L17*E54/L19 -> €2,625 | I54: =L18*E54/L19 -> €1,138 | J54: =E54-SUM(G54:I54) -> €11,533
C55: Retainer portfolio C | D55: 25.0% | E55: =L8*D55 -> €19,500 | F55: =L25*E55/L19 -> 191.3 | G55: =L16*E55/L19 -> €8,575 | H55: =L17*E55/L19 -> €1,875 | I55: =L18*E55/L19 -> €813 | J55: =E55-SUM(G55:I55) -> €8,238
C56: Project delivery A | D56: 60.0% | E56: =L9*D56 -> €46,800 | F56: =L25*E56/L19 -> 459.0 | G56: =L16*E56/L19 -> €20,580 | H56: =L17*E56/L19 -> €4,500 | I56: =L18*E56/L19 -> €1,950 | J56: =E56-SUM(G56:I56) -> €19,770
C57: Project delivery B | D57: 40.0% | E57: =L9*D57 -> €31,200 | F57: =L25*E57/L19 -> 306.0 | G57: =L16*E57/L19 -> €13,720 | H57: =L17*E57/L19 -> €3,000 | I57: =L18*E57/L19 -> €1,300 | J57: =E57-SUM(G57:I57) -> €13,180
C60: Costs are fully allocated by service fee share, including bench cost.

Sheet Working capital
C2: Working capital
C4: Selected case | E4: ='Assumptions'!$G$4 -> Base | H4: EUR. Entirely fictional.
E6: Actual | F6: Actual | G6: Actual | H6: Actual | I6: Actual | J6: Actual | K6: Actual | L6: Actual | M6: Forecast | N6: Forecast | O6: Forecast | P6: Forecast
E7: 2026-01-01 | F7: 2026-02-01 | G7: 2026-03-01 | H7: 2026-04-01 | I7: 2026-05-01 | J7: 2026-06-01 | K7: 2026-07-01 | L7: 2026-08-01 | M7: 2026-09-01 | N7: 2026-10-01 | O7: 2026-11-01 | P7: 2026-12-01
C8: Opening unbilled contract assets | E8: ='Source inputs'!$E$52 -> €15,000 | F8: =E9 -> €9,660 | G8: =F9 -> €10,781 | H8: =G9 -> €11,517 | I8: =H9 -> €12,178 | J8: =I9 -> €14,472 | K8: =J9 -> €15,120 | L8: =K9 -> €19,044 | M8: =L9 -> €19,500 | N8: =M9 -> €14,200 | O8: =N9 -> €14,063 | P8: =O9 -> €14,014
C9: Closing unbilled contract assets | E9: ='P&L'!E9*'Assumptions'!E59 -> €9,660 | F9: ='P&L'!F9*'Assumptions'!F59 -> €10,781 | G9: ='P&L'!G9*'Assumptions'!G59 -> €11,517 | H9: ='P&L'!H9*'Assumptions'!H59 -> €12,178 | I9: ='P&L'!I9*'Assumptions'!I59 -> €14,472 | J9: ='P&L'!J9*'Assumptions'!J59 -> €15,120 | K9: ='P&L'!K9*'Assumptions'!K59 -> €19,044 | L9: ='P&L'!L9*'Assumptions'!L59 -> €19,500 | M9: ='P&L'!M9*'Assumptions'!M59 -> €14,200 | N9: ='P&L'!N9*'Assumptions'!N59 -> €14,063 | O9: ='P&L'!O9*'Assumptions'!O59 -> €14,014 | P9: ='P&L'!P9*'Assumptions'!P59 -> €10,608
C10: Opening advance contract billings | E10: ='Source inputs'!$E$53 -> €23,000 | F10: =E11 -> €24,800 | G10: =F11 -> €25,000 | H10: =G11 -> €27,500 | I10: =H11 -> €28,160 | J10: =I11 -> €28,160 | K10: =J11 -> €31,200 | L10: =K11 -> €31,200 | M10: =L11 -> €31,200 | N10: =M11 -> €34,580 | O10: =N11 -> €34,840 | P10: =O11 -> €37,520
C11: Closing advance contract billings | E11: ='P&L'!E8*'Assumptions'!E62 -> €24,800 | F11: ='P&L'!F8*'Assumptions'!F62 -> €25,000 | G11: ='P&L'!G8*'Assumptions'!G62 -> €27,500 | H11: ='P&L'!H8*'Assumptions'!H62 -> €28,160 | I11: ='P&L'!I8*'Assumptions'!I62 -> €28,160 | J11: ='P&L'!J8*'Assumptions'!J62 -> €31,200 | K11: ='P&L'!K8*'Assumptions'!K62 -> €31,200 | L11: ='P&L'!L8*'Assumptions'!L62 -> €31,200 | M11: ='P&L'!M8*'Assumptions'!M62 -> €34,580 | N11: ='P&L'!N8*'Assumptions'!N62 -> €34,840 | O11: ='P&L'!O8*'Assumptions'!O62 -> €37,520 | P11: ='P&L'!P8*'Assumptions'!P62 -> €38,360
C12: Invoices including contract advances | E12: ='P&L'!E12+E8-E9+E11-E10 -> €138,140 | F12: ='P&L'!F12+F8-F9+F11-F10 -> €133,454 | G12: ='P&L'!G12+G8-G9+G11-G10 -> €142,494 | H12: ='P&L'!H12+H8-H9+H11-H10 -> €146,509 | I12: ='P&L'!I12+I8-I9+I11-I10 -> €148,506 | J12: ='P&L'!J12+J8-J9+J11-J10 -> €155,992 | K12: ='P&L'!K12+K8-K9+K11-K10 -> €156,876 | L12: ='P&L'!L12+L8-L9+L11-L10 -> €155,544 | M12: ='P&L'!M12+M8-M9+M11-M10 -> €183,880 | N12: ='P&L'!N12+N8-N9+N11-N10 -> €181,248 | O12: ='P&L'!O12+O8-O9+O11-O10 -> €196,629 | P12: ='P&L'!P12+P8-P9+P11-P10 -> €188,546
C14: Opening accounts receivable | E14: ='Source inputs'!$E$51 -> €115,000 | F14: =E19 -> €128,000 | G14: =F19 -> €137,000 | H14: =G19 -> €146,000 | I14: =H19 -> €158,000 | J14: =I19 -> €174,000 | K14: =J19 -> €189,000 | L14: =K19 -> €203,000 | M14: =L19 -> €220,000 | N14: =M19 -> €183,880 | O14: =N19 -> €204,185 | P14: =O19 -> €219,753
C15: Scheduled opening invoice receipts | E15: =0 -> 0 | F15: =0 -> 0 | G15: =0 -> 0 | H15: =0 -> 0 | I15: =0 -> 0 | J15: =0 -> 0 | K15: =0 -> 0 | L15: =0 -> 0 | M15: =SUMIFS('AR and AP'!$F$9:$F$16,'AR and AP'!$I$9:$I$16,">="&M$7,'AR and AP'!$I$9:$I$16,"<"&EDATE(M$7,1)) -> €220,000 | N15: =SUMIFS('AR and AP'!$F$9:$F$16,'AR and AP'!$I$9:$I$16,">="&N$7,'AR and AP'!$I$9:$I$16,"<"&EDATE(N$7,1)) -> 0 | O15: =SUMIFS('AR and AP'!$F$9:$F$16,'AR and AP'!$I$9:$I$16,">="&O$7,'AR and AP'!$I$9:$I$16,"<"&EDATE(O$7,1)) -> 0 | P15: =SUMIFS('AR and AP'!$F$9:$F$16,'AR and AP'!$I$9:$I$16,">="&P$7,'AR and AP'!$I$9:$I$16,"<"&EDATE(P$7,1)) -> 0
C16: Unpaid opening receivable floor | E16: =0 -> 0 | F16: =0 -> 0 | G16: =0 -> 0 | H16: =0 -> 0 | I16: =0 -> 0 | J16: =0 -> 0 | K16: =0 -> 0 | L16: =0 -> 0 | M16: =SUMIFS('AR and AP'!$F$9:$F$16,'AR and AP'!$I$9:$I$16,">="&EDATE(M$7,1)) -> 0 | N16: =SUMIFS('AR and AP'!$F$9:$F$16,'AR and AP'!$I$9:$I$16,">="&EDATE(N$7,1)) -> 0 | O16: =SUMIFS('AR and AP'!$F$9:$F$16,'AR and AP'!$I$9:$I$16,">="&EDATE(O$7,1)) -> 0 | P16: =SUMIFS('AR and AP'!$F$9:$F$16,'AR and AP'!$I$9:$I$16,">="&EDATE(P$7,1)) -> 0
C17: Target receivables at selected days | E17: ='P&L'!E12*'Assumptions'!E53/31 -> €160,581 | F17: ='P&L'!F12*'Assumptions'!F53/28 -> €182,366 | G17: ='P&L'!G12*'Assumptions'!G53/31 -> €172,508 | H17: ='P&L'!H12*'Assumptions'!H53/30 -> €185,579 | I17: ='P&L'!I12*'Assumptions'!I53/31 -> €184,852 | J17: ='P&L'!J12*'Assumptions'!J53/30 -> €194,560 | K17: ='P&L'!K12*'Assumptions'!K53/31 -> €197,110 | L17: ='P&L'!L12*'Assumptions'!L53/31 -> €191,226 | M17: ='P&L'!M12*'Assumptions'!M53/30 -> €216,080 | N17: ='P&L'!N12*'Assumptions'!N53/31 -> €204,185 | O17: ='P&L'!O12*'Assumptions'!O53/30 -> €219,753 | P17: ='P&L'!P12*'Assumptions'!P53/31 -> €202,135
C18: Receivables after known collections | E18: =E14+E12-E15 -> €253,140 | F18: =F14+F12-F15 -> €261,454 | G18: =G14+G12-G15 -> €279,494 | H18: =H14+H12-H15 -> €292,509 | I18: =I14+I12-I15 -> €306,506 | J18: =J14+J12-J15 -> €329,992 | K18: =K14+K12-K15 -> €345,876 | L18: =L14+L12-L15 -> €358,544 | M18: =M14+M12-M15 -> €183,880 | N18: =N14+N12-N15 -> €365,128 | O18: =O14+O12-O15 -> €400,814 | P18: =P14+P12-P15 -> €408,299
C19: Closing accounts receivable | E19: ='Source inputs'!E68 -> €128,000 | F19: ='Source inputs'!F68 -> €137,000 | G19: ='Source inputs'!G68 -> €146,000 | H19: ='Source inputs'!H68 -> €158,000 | I19: ='Source inputs'!I68 -> €174,000 | J19: ='Source inputs'!J68 -> €189,000 | K19: ='Source inputs'!K68 -> €203,000 | L19: ='Source inputs'!L68 -> €220,000 | M19: =MAX(M16,MIN(M17,M18)) -> €183,880 | N19: =MAX(N16,MIN(N17,N18)) -> €204,185 | O19: =MAX(O16,MIN(O17,O18)) -> €219,753 | P19: =MAX(P16,MIN(P17,P18)) -> €202,135
C20: Customer cash receipts | E20: =E14+E12-E19 -> €125,140 | F20: =F14+F12-F19 -> €124,454 | G20: =G14+G12-G19 -> €133,494 | H20: =H14+H12-H19 -> €134,509 | I20: =I14+I12-I19 -> €132,506 | J20: =J14+J12-J19 -> €140,992 | K20: =K14+K12-K19 -> €142,876 | L20: =L14+L12-L19 -> €138,544 | M20: =M14+M12-M19 -> €220,000 | N20: =N14+N12-N19 -> €160,942 | O20: =O14+O12-O19 -> €181,061 | P20: =P14+P12-P19 -> €206,164
C22: Opening accounts payable | E22: ='Source inputs'!$E$54 -> €30,000 | F22: =E26 -> €31,000 | G22: =F26 -> €32,000 | H22: =G26 -> €35,000 | I22: =H26 -> €36,000 | J22: =I26 -> €37,000 | K22: =J26 -> €39,000 | L22: =K26 -> €42,000 | M22: =L26 -> €46,000 | N22: =M26 -> €27,297 | O22: =N26 -> €27,072 | P22: =O26 -> €28,580
C23: New supplier costs | E23: ='P&L'!E14+'P&L'!E15+'P&L'!E16+'P&L'!E17 -> €14,950 | F23: ='P&L'!F14+'P&L'!F15+'P&L'!F16+'P&L'!F17 -> €15,300 | G23: ='P&L'!G14+'P&L'!G15+'P&L'!G16+'P&L'!G17 -> €16,960 | H23: ='P&L'!H14+'P&L'!H15+'P&L'!H16+'P&L'!H17 -> €17,320 | I23: ='P&L'!I14+'P&L'!I15+'P&L'!I16+'P&L'!I17 -> €18,580 | J23: ='P&L'!J14+'P&L'!J15+'P&L'!J16+'P&L'!J17 -> €19,520 | K23: ='P&L'!K14+'P&L'!K15+'P&L'!K16+'P&L'!K17 -> €21,125 | L23: ='P&L'!L14+'P&L'!L15+'P&L'!L16+'P&L'!L17 -> €21,500 | M23: ='P&L'!M14+'P&L'!M15+'P&L'!M16+'P&L'!M17 -> €20,060 | N23: ='P&L'!N14+'P&L'!N15+'P&L'!N16+'P&L'!N17 -> €20,450 | O23: ='P&L'!O14+'P&L'!O15+'P&L'!O16+'P&L'!O17 -> €21,600 | P23: ='P&L'!P14+'P&L'!P15+'P&L'!P16+'P&L'!P17 -> €20,000
C24: Opening payables not yet scheduled | E24: =0 -> 0 | F24: =0 -> 0 | G24: =0 -> 0 | H24: =0 -> 0 | I24: =0 -> 0 | J24: =0 -> 0 | K24: =0 -> 0 | L24: =0 -> 0 | M24: =SUM('AR and AP'!$H$24:$H$31)-SUMIFS('AR and AP'!$M$24:$M$31,'AR and AP'!$N$24:$N$31,"<"&EDATE(M$7,1)) -> €10,580 | N24: =SUM('AR and AP'!$H$24:$H$31)-SUMIFS('AR and AP'!$M$24:$M$31,'AR and AP'!$N$24:$N$31,"<"&EDATE(N$7,1)) -> €10,580 | O24: =SUM('AR and AP'!$H$24:$H$31)-SUMIFS('AR and AP'!$M$24:$M$31,'AR and AP'!$N$24:$N$31,"<"&EDATE(O$7,1)) -> €10,580 | P24: =SUM('AR and AP'!$H$24:$H$31)-SUMIFS('AR and AP'!$M$24:$M$31,'AR and AP'!$N$24:$N$31,"<"&EDATE(P$7,1)) -> €10,580
C25: New supplier closing payable target | E25: =E23*'Assumptions'!E56/31 -> €12,056 | F25: =F23*'Assumptions'!F56/28 -> €13,661 | G25: =G23*'Assumptions'!G56/31 -> €13,677 | H25: =H23*'Assumptions'!H56/30 -> €14,433 | I25: =I23*'Assumptions'!I56/31 -> €14,984 | J25: =J23*'Assumptions'!J56/30 -> €16,267 | K25: =K23*'Assumptions'!K56/31 -> €17,036 | L25: =L23*'Assumptions'!L56/31 -> €17,339 | M25: =M23*'Assumptions'!M56/30 -> €16,717 | N25: =N23*'Assumptions'!N56/31 -> €16,492 | O25: =O23*'Assumptions'!O56/30 -> €18,000 | P25: =P23*'Assumptions'!P56/31 -> €16,129
C26: Closing accounts payable | E26: ='Source inputs'!E69 -> €31,000 | F26: ='Source inputs'!F69 -> €32,000 | G26: ='Source inputs'!G69 -> €35,000 | H26: ='Source inputs'!H69 -> €36,000 | I26: ='Source inputs'!I69 -> €37,000 | J26: ='Source inputs'!J69 -> €39,000 | K26: ='Source inputs'!K69 -> €42,000 | L26: ='Source inputs'!L69 -> €46,000 | M26: =M24+M25 -> €27,297 | N26: =N24+N25 -> €27,072 | O26: =O24+O25 -> €28,580 | P26: =P24+P25 -> €26,709
C27: Supplier cash payments | E27: =E22+E23-E26 -> €13,950 | F27: =F22+F23-F26 -> €14,300 | G27: =G22+G23-G26 -> €13,960 | H27: =H22+H23-H26 -> €16,320 | I27: =I22+I23-I26 -> €17,580 | J27: =J22+J23-J26 -> €17,520 | K27: =K22+K23-K26 -> €18,125 | L27: =L22+L23-L26 -> €17,500 | M27: =M22+M23-M26 -> €38,763 | N27: =N22+N23-N26 -> €20,675 | O27: =O22+O23-O26 -> €20,092 | P27: =P22+P23-P26 -> €21,871
C29: Implied closing AR days | E29: =E19/'P&L'!E12*31 -> 30.3 | F29: =F19/'P&L'!F12*28 -> 28.5 | G29: =G19/'P&L'!G12*31 -> 32.2 | H29: =H19/'P&L'!H12*30 -> 32.4 | I29: =I19/'P&L'!I12*31 -> 35.8 | J29: =J19/'P&L'!J12*30 -> 36.9 | K29: =K19/'P&L'!K12*31 -> 39.1 | L29: =L19/'P&L'!L12*31 -> 43.7 | M29: =M19/'P&L'!M12*30 -> 31.5 | N29: =N19/'P&L'!N12*31 -> 35.0 | O29: =O19/'P&L'!O12*30 -> 34.0 | P29: =P19/'P&L'!P12*31 -> 34.0
C33: Target AR days is constrained by billings and dated opening receipts.

Sheet Assets debt tax
C2: Assets debt tax
C4: Selected case | E4: ='Assumptions'!$G$4 -> Base | H4: EUR. Entirely fictional.
E6: Actual | F6: Actual | G6: Actual | H6: Actual | I6: Actual | J6: Actual | K6: Actual | L6: Actual | M6: Forecast | N6: Forecast | O6: Forecast | P6: Forecast
E7: 2026-01-01 | F7: 2026-02-01 | G7: 2026-03-01 | H7: 2026-04-01 | I7: 2026-05-01 | J7: 2026-06-01 | K7: 2026-07-01 | L7: 2026-08-01 | M7: 2026-09-01 | N7: 2026-10-01 | O7: 2026-11-01 | P7: 2026-12-01
C8: Opening gross fixed assets | E8: ='Source inputs'!$E$56 -> €85,000 | F8: =E10 -> €91,000 | G8: =F10 -> €91,000 | H8: =G10 -> €103,000 | I8: =H10 -> €103,000 | J8: =I10 -> €109,000 | K8: =J10 -> €109,000 | L8: =K10 -> €123,000 | M8: =L10 -> €123,000 | N8: =M10 -> €155,000 | O8: =N10 -> €163,000 | P8: =O10 -> €169,000
C9: New asset additions | E9: ='Assumptions'!E65 -> €6,000 | F9: ='Assumptions'!F65 -> 0 | G9: ='Assumptions'!G65 -> €12,000 | H9: ='Assumptions'!H65 -> 0 | I9: ='Assumptions'!I65 -> €6,000 | J9: ='Assumptions'!J65 -> 0 | K9: ='Assumptions'!K65 -> €14,000 | L9: ='Assumptions'!L65 -> 0 | M9: ='Assumptions'!M65 -> €32,000 | N9: ='Assumptions'!N65 -> €8,000 | O9: ='Assumptions'!O65 -> €6,000 | P9: ='Assumptions'!P65 -> €6,000
C10: Closing gross fixed assets | E10: =SUM(E8:E9) -> €91,000 | F10: =SUM(F8:F9) -> €91,000 | G10: =SUM(G8:G9) -> €103,000 | H10: =SUM(H8:H9) -> €103,000 | I10: =SUM(I8:I9) -> €109,000 | J10: =SUM(J8:J9) -> €109,000 | K10: =SUM(K8:K9) -> €123,000 | L10: =SUM(L8:L9) -> €123,000 | M10: =SUM(M8:M9) -> €155,000 | N10: =SUM(N8:N9) -> €163,000 | O10: =SUM(O8:O9) -> €169,000 | P10: =SUM(P8:P9) -> €175,000
C11: Opening accumulated depreciation | E11: ='Source inputs'!$E$57 -> €24,000 | F11: =E13 -> €25,967 | G11: =F13 -> €27,933 | H11: =G13 -> €30,233 | I11: =H13 -> €32,533 | J11: =I13 -> €35,000 | K11: =J13 -> €37,467 | L11: =K13 -> €40,322 | M11: =L13 -> €43,178 | N11: =M13 -> €46,922 | O11: =N13 -> €50,889 | P11: =O13 -> €55,022
C12: Depreciation expense | E12: =1800+(E10-'Source inputs'!$E$56)/36 -> €1,967 | F12: =1800+(F10-'Source inputs'!$E$56)/36 -> €1,967 | G12: =1800+(G10-'Source inputs'!$E$56)/36 -> €2,300 | H12: =1800+(H10-'Source inputs'!$E$56)/36 -> €2,300 | I12: =1800+(I10-'Source inputs'!$E$56)/36 -> €2,467 | J12: =1800+(J10-'Source inputs'!$E$56)/36 -> €2,467 | K12: =1800+(K10-'Source inputs'!$E$56)/36 -> €2,856 | L12: =1800+(L10-'Source inputs'!$E$56)/36 -> €2,856 | M12: =1800+(M10-'Source inputs'!$E$56)/36 -> €3,744 | N12: =1800+(N10-'Source inputs'!$E$56)/36 -> €3,967 | O12: =1800+(O10-'Source inputs'!$E$56)/36 -> €4,133 | P12: =1800+(P10-'Source inputs'!$E$56)/36 -> €4,300
C13: Closing accumulated depreciation | E13: =SUM(E11:E12) -> €25,967 | F13: =SUM(F11:F12) -> €27,933 | G13: =SUM(G11:G12) -> €30,233 | H13: =SUM(H11:H12) -> €32,533 | I13: =SUM(I11:I12) -> €35,000 | J13: =SUM(J11:J12) -> €37,467 | K13: =SUM(K11:K12) -> €40,322 | L13: =SUM(L11:L12) -> €43,178 | M13: =SUM(M11:M12) -> €46,922 | N13: =SUM(N11:N12) -> €50,889 | O13: =SUM(O11:O12) -> €55,022 | P13: =SUM(P11:P12) -> €59,322
C14: Net fixed assets | E14: =E10-E13 -> €65,033 | F14: =F10-F13 -> €63,067 | G14: =G10-G13 -> €72,767 | H14: =H10-H13 -> €70,467 | I14: =I10-I13 -> €74,000 | J14: =J10-J13 -> €71,533 | K14: =K10-K13 -> €82,678 | L14: =L10-L13 -> €79,822 | M14: =M10-M13 -> €108,078 | N14: =N10-N13 -> €112,111 | O14: =O10-O13 -> €113,978 | P14: =P10-P13 -> €115,678
C15: Opening debt | E15: ='Source inputs'!$E$58 -> €120,000 | F15: =E17 -> €116,000 | G15: =F17 -> €112,000 | H15: =G17 -> €108,000 | I15: =H17 -> €104,000 | J15: =I17 -> €100,000 | K15: =J17 -> €96,000 | L15: =K17 -> €92,000 | M15: =L17 -> €88,000 | N15: =M17 -> €84,000 | O15: =N17 -> €80,000 | P15: =O17 -> €76,000
C16: Scheduled principal payment | E16: =4000 -> €4,000 | F16: =4000 -> €4,000 | G16: =4000 -> €4,000 | H16: =4000 -> €4,000 | I16: =4000 -> €4,000 | J16: =4000 -> €4,000 | K16: =4000 -> €4,000 | L16: =4000 -> €4,000 | M16: =4000 -> €4,000 | N16: =4000 -> €4,000 | O16: =4000 -> €4,000 | P16: =4000 -> €4,000
C17: Closing debt | E17: =E15-E16 -> €116,000 | F17: =F15-F16 -> €112,000 | G17: =G15-G16 -> €108,000 | H17: =H15-H16 -> €104,000 | I17: =I15-I16 -> €100,000 | J17: =J15-J16 -> €96,000 | K17: =K15-K16 -> €92,000 | L17: =L15-L16 -> €88,000 | M17: =M15-M16 -> €84,000 | N17: =N15-N16 -> €80,000 | O17: =O15-O16 -> €76,000 | P17: =P15-P16 -> €72,000
C18: Interest expense | E18: =E15*0.065/12 -> €650 | F18: =F15*0.065/12 -> €628 | G18: =G15*0.065/12 -> €607 | H18: =H15*0.065/12 -> €585 | I18: =I15*0.065/12 -> €563 | J18: =J15*0.065/12 -> €542 | K18: =K15*0.065/12 -> €520 | L18: =L15*0.065/12 -> €498 | M18: =M15*0.065/12 -> €477 | N18: =N15*0.065/12 -> €455 | O18: =O15*0.065/12 -> €433 | P18: =P15*0.065/12 -> €412
C20: Opening current tax position | E20: ='Source inputs'!$E$59 -> €7,000 | F20: =E23 -> €9,607 | G20: =F23 -> €12,723 | H20: =G23 -> €3,445 | I20: =H23 -> €7,176 | J20: =I23 -> €11,194 | K20: =J23 -> €4,329 | L20: =K23 -> €7,769 | M20: =L23 -> €10,178 | N20: =M23 -> (€1,358) | O20: =N23 -> €5,777 | P20: =O23 -> €13,714
C21: Current tax expense | E21: ='P&L'!E26 -> €2,607 | F21: ='P&L'!F26 -> €3,116 | G21: ='P&L'!G26 -> €2,723 | H21: ='P&L'!H26 -> €3,731 | I21: ='P&L'!I26 -> €4,018 | J21: ='P&L'!J26 -> €3,134 | K21: ='P&L'!K26 -> €3,440 | L21: ='P&L'!L26 -> €2,409 | M21: ='P&L'!M26 -> €6,464 | N21: ='P&L'!N26 -> €7,136 | O21: ='P&L'!O26 -> €7,937 | P21: ='P&L'!P26 -> €6,358
C22: Tax paid | E22: ='Assumptions'!E68 -> 0 | F22: ='Assumptions'!F68 -> 0 | G22: ='Assumptions'!G68 -> €12,000 | H22: ='Assumptions'!H68 -> 0 | I22: ='Assumptions'!I68 -> 0 | J22: ='Assumptions'!J68 -> €10,000 | K22: ='Assumptions'!K68 -> 0 | L22: ='Assumptions'!L68 -> 0 | M22: ='Assumptions'!M68 -> €18,000 | N22: ='Assumptions'!N68 -> 0 | O22: ='Assumptions'!O68 -> 0 | P22: ='Assumptions'!P68 -> €12,000
C23: Closing current tax position | E23: =E20+E21-E22 -> €9,607 | F23: =F20+F21-F22 -> €12,723 | G23: =G20+G21-G22 -> €3,445 | H23: =H20+H21-H22 -> €7,176 | I23: =I20+I21-I22 -> €11,194 | J23: =J20+J21-J22 -> €4,329 | K23: =K20+K21-K22 -> €7,769 | L23: =L20+L21-L22 -> €10,178 | M23: =M20+M21-M22 -> (€1,358) | N23: =N20+N21-N22 -> €5,777 | O23: =O20+O21-O22 -> €13,714 | P23: =P20+P21-P22 -> €8,072
C27: Opening assets: €1,800 monthly depreciation within remaining life.
C29: New assets: 36-month life, zero residual, full purchase month.
C31: Illustrative tax: 20% positive profit; no jurisdiction tax rules.

Sheet Original budget
C2: Original budget
C4: Selected case | E4: ='Assumptions'!$G$4 -> Base | H4: EUR. Entirely fictional.
E6: Original budget | F6: Original budget | G6: Original budget | H6: Original budget | I6: Original budget | J6: Original budget | K6: Original budget | L6: Original budget | M6: Original budget | N6: Original budget | O6: Original budget | P6: Original budget
E7: 2026-01-01 | F7: 2026-02-01 | G7: 2026-03-01 | H7: 2026-04-01 | I7: 2026-05-01 | J7: 2026-06-01 | K7: 2026-07-01 | L7: 2026-08-01 | M7: 2026-09-01 | N7: 2026-10-01 | O7: 2026-11-01 | P7: 2026-12-01
C8: Recurring fees | E8: =E40*E41 -> €63,550 | F8: =F40*F41 -> €64,063 | G8: =G40*G41 -> €70,469 | H8: =H40*H41 -> €72,160 | I8: =I40*I41 -> €72,160 | J8: =J40*J41 -> €79,950 | K8: =K40*K41 -> €79,950 | L8: =L40*L41 -> €79,950 | M8: =M40*M41 -> €86,450 | N8: =N40*N41 -> €87,100 | O8: =O40*O41 -> €93,800 | P8: =P40*P41 -> €95,900
C9: Project fees | E9: =E42*E43 -> €77,280 | F9: =F42*F43 -> €80,500 | G9: =G42*G43 -> €80,618 | H9: =H42*H43 -> €85,243 | I9: =I42*I43 -> €90,048 | J9: =J42*J43 -> €84,672 | K9: =K42*K43 -> €92,736 | L9: =L42*L43 -> €87,360 | M9: =M42*M43 -> €88,750 | N9: =N42*N43 -> €93,750 | O9: =O42*O43 -> €100,100 | P9: =P42*P43 -> €88,400
C10: Hardware resale revenue | E10: =0 -> 0 | F10: =0 -> 0 | G10: =0 -> 0 | H10: =0 -> 0 | I10: =0 -> 0 | J10: =0 -> 0 | K10: =0 -> 0 | L10: =0 -> 0 | M10: =0 -> 0 | N10: =0 -> 0 | O10: =0 -> 0 | P10: =0 -> 0
C11: Licence resale revenue | E11: =0 -> 0 | F11: =0 -> 0 | G11: =0 -> 0 | H11: =0 -> 0 | I11: =0 -> 0 | J11: =0 -> 0 | K11: =0 -> 0 | L11: =0 -> 0 | M11: =0 -> 0 | N11: =0 -> 0 | O11: =0 -> 0 | P11: =0 -> 0
C12: Revenue | E12: =SUM(E8:E11) -> €140,830 | F12: =SUM(F8:F11) -> €144,563 | G12: =SUM(G8:G11) -> €151,086 | H12: =SUM(H8:H11) -> €157,403 | I12: =SUM(I8:I11) -> €162,208 | J12: =SUM(J8:J11) -> €164,622 | K12: =SUM(K8:K11) -> €172,686 | L12: =SUM(L8:L11) -> €167,310 | M12: =SUM(M8:M11) -> €175,200 | N12: =SUM(N8:N11) -> €180,850 | O12: =SUM(O8:O11) -> €193,900 | P12: =SUM(P8:P11) -> €184,300
C13: Delivery payroll | E13: =E46*E47 -> €56,400 | F13: =F46*F47 -> €56,400 | G13: =G46*G47 -> €61,750 | H13: =H46*H47 -> €61,750 | I13: =I46*I47 -> €62,400 | J13: =J46*J47 -> €67,200 | K13: =K46*K47 -> €68,600 | L13: =L46*L47 -> €68,600 | M13: =M46*M47 -> €68,600 | N13: =N46*N47 -> €69,300 | O13: =O46*O47 -> €74,250 | P13: =P46*P47 -> €75,000
C14: Subcontractors | E14: =E48*E49 -> €9,450 | F14: =F48*F49 -> €9,800 | G14: =G48*G49 -> €11,160 | H14: =H48*H49 -> €11,520 | I14: =I48*I49 -> €12,580 | J14: =J48*J49 -> €13,320 | K14: =K48*K49 -> €14,625 | L14: =L48*L49 -> €15,000 | M14: =M48*M49 -> €13,260 | N14: =N48*N49 -> €13,650 | O14: =O48*O49 -> €14,400 | P14: =P48*P49 -> €12,800
C15: Delivery software | E15: =E50 -> €5,500 | F15: =F50 -> €5,500 | G15: =G50 -> €5,800 | H15: =H50 -> €5,800 | I15: =I50 -> €6,000 | J15: =J50 -> €6,200 | K15: =K50 -> €6,500 | L15: =L50 -> €6,500 | M15: =M50 -> €6,800 | N15: =N50 -> €6,800 | O15: =O50 -> €7,200 | P15: =P50 -> €7,200
C16: Hardware supplier cost | E16: =0 -> 0 | F16: =0 -> 0 | G16: =0 -> 0 | H16: =0 -> 0 | I16: =0 -> 0 | J16: =0 -> 0 | K16: =0 -> 0 | L16: =0 -> 0 | M16: =0 -> 0 | N16: =0 -> 0 | O16: =0 -> 0 | P16: =0 -> 0
C17: Licence supplier cost | E17: =0 -> 0 | F17: =0 -> 0 | G17: =0 -> 0 | H17: =0 -> 0 | I17: =0 -> 0 | J17: =0 -> 0 | K17: =0 -> 0 | L17: =0 -> 0 | M17: =0 -> 0 | N17: =0 -> 0 | O17: =0 -> 0 | P17: =0 -> 0
C18: Direct costs | E18: =SUM(E13:E17) -> €71,350 | F18: =SUM(F13:F17) -> €71,700 | G18: =SUM(G13:G17) -> €78,710 | H18: =SUM(H13:H17) -> €79,070 | I18: =SUM(I13:I17) -> €80,980 | J18: =SUM(J13:J17) -> €86,720 | K18: =SUM(K13:K17) -> €89,725 | L18: =SUM(L13:L17) -> €90,100 | M18: =SUM(M13:M17) -> €88,660 | N18: =SUM(N13:N17) -> €89,750 | O18: =SUM(O13:O17) -> €95,850 | P18: =SUM(P13:P17) -> €95,000
C19: Gross profit | E19: =E12-E18 -> €69,480 | F19: =F12-F18 -> €72,863 | G19: =G12-G18 -> €72,376 | H19: =H12-H18 -> €78,333 | I19: =I12-I18 -> €81,228 | J19: =J12-J18 -> €77,902 | K19: =K12-K18 -> €82,961 | L19: =L12-L18 -> €77,210 | M19: =M12-M18 -> €86,540 | N19: =N12-N18 -> €91,100 | O19: =O12-O18 -> €98,050 | P19: =P12-P18 -> €89,300
C20: Gross margin | E20: =E19/E12 -> 49.3% | F20: =F19/F12 -> 50.4% | G20: =G19/G12 -> 47.9% | H20: =H19/H12 -> 49.8% | I20: =I19/I12 -> 50.1% | J20: =J19/J12 -> 47.3% | K20: =K19/K12 -> 48.0% | L20: =L19/L12 -> 46.1% | M20: =M19/M12 -> 49.4% | N20: =N19/N12 -> 50.4% | O20: =O19/O12 -> 50.6% | P20: =P19/P12 -> 48.5%
C21: Operating expenses | E21: =E51+E52+E53+E54 -> €44,000 | F21: =F51+F52+F53+F54 -> €44,500 | G21: =G51+G52+G53+G54 -> €45,500 | H21: =H51+H52+H53+H54 -> €45,900 | I21: =I51+I52+I53+I54 -> €46,700 | J21: =J51+J52+J53+J54 -> €48,200 | K21: =K51+K52+K53+K54 -> €50,500 | L21: =L51+L52+L53+L54 -> €50,500 | M21: =M51+M52+M53+M54 -> €50,000 | N21: =N51+N52+N53+N54 -> €51,000 | O21: =O51+O52+O53+O54 -> €53,800 | P21: =P51+P52+P53+P54 -> €52,800
C22: EBITDA | E22: =E19-E21 -> €25,480 | F22: =F19-F21 -> €28,363 | G22: =G19-G21 -> €26,876 | H22: =H19-H21 -> €32,433 | I22: =I19-I21 -> €34,528 | J22: =J19-J21 -> €29,702 | K22: =K19-K21 -> €32,461 | L22: =L19-L21 -> €26,710 | M22: =M19-M21 -> €36,540 | N22: =N19-N21 -> €40,100 | O22: =O19-O21 -> €44,250 | P22: =P19-P21 -> €36,500
C23: Depreciation | E23: =1800+SUM($E59:E59)/36 -> €1,967 | F23: =1800+SUM($E59:F59)/36 -> €1,967 | G23: =1800+SUM($E59:G59)/36 -> €2,300 | H23: =1800+SUM($E59:H59)/36 -> €2,300 | I23: =1800+SUM($E59:I59)/36 -> €2,467 | J23: =1800+SUM($E59:J59)/36 -> €2,467 | K23: =1800+SUM($E59:K59)/36 -> €2,856 | L23: =1800+SUM($E59:L59)/36 -> €2,856 | M23: =1800+SUM($E59:M59)/36 -> €3,744 | N23: =1800+SUM($E59:N59)/36 -> €3,967 | O23: =1800+SUM($E59:O59)/36 -> €4,133 | P23: =1800+SUM($E59:P59)/36 -> €4,300
C24: Interest | E24: =('Source inputs'!$E$58-0*4000)*0.065/12 -> €650 | F24: =('Source inputs'!$E$58-1*4000)*0.065/12 -> €628 | G24: =('Source inputs'!$E$58-2*4000)*0.065/12 -> €607 | H24: =('Source inputs'!$E$58-3*4000)*0.065/12 -> €585 | I24: =('Source inputs'!$E$58-4*4000)*0.065/12 -> €563 | J24: =('Source inputs'!$E$58-5*4000)*0.065/12 -> €542 | K24: =('Source inputs'!$E$58-6*4000)*0.065/12 -> €520 | L24: =('Source inputs'!$E$58-7*4000)*0.065/12 -> €498 | M24: =('Source inputs'!$E$58-8*4000)*0.065/12 -> €477 | N24: =('Source inputs'!$E$58-9*4000)*0.065/12 -> €455 | O24: =('Source inputs'!$E$58-10*4000)*0.065/12 -> €433 | P24: =('Source inputs'!$E$58-11*4000)*0.065/12 -> €412
C25: Profit before tax | E25: =E22-E23-E24 -> €22,863 | F25: =F22-F23-F24 -> €25,768 | G25: =G22-G23-G24 -> €23,970 | H25: =H22-H23-H24 -> €29,548 | I25: =I22-I23-I24 -> €31,498 | J25: =J22-J23-J24 -> €26,694 | K25: =K22-K23-K24 -> €29,085 | L25: =L22-L23-L24 -> €23,356 | M25: =M22-M23-M24 -> €32,319 | N25: =N22-N23-N24 -> €35,678 | O25: =O22-O23-O24 -> €39,683 | P25: =P22-P23-P24 -> €31,788
C26: Illustrative tax | E26: =MAX(0,E25)*0.2 -> €4,573 | F26: =MAX(0,F25)*0.2 -> €5,154 | G26: =MAX(0,G25)*0.2 -> €4,794 | H26: =MAX(0,H25)*0.2 -> €5,910 | I26: =MAX(0,I25)*0.2 -> €6,300 | J26: =MAX(0,J25)*0.2 -> €5,339 | K26: =MAX(0,K25)*0.2 -> €5,817 | L26: =MAX(0,L25)*0.2 -> €4,671 | M26: =MAX(0,M25)*0.2 -> €6,464 | N26: =MAX(0,N25)*0.2 -> €7,136 | O26: =MAX(0,O25)*0.2 -> €7,937 | P26: =MAX(0,P25)*0.2 -> €6,358
C27: Net profit | E27: =E25-E26 -> €18,291 | F27: =F25-F26 -> €20,614 | G27: =G25-G26 -> €19,176 | H27: =H25-H26 -> €23,639 | I27: =I25-I26 -> €25,198 | J27: =J25-J26 -> €21,355 | K27: =K25-K26 -> €23,268 | L27: =L25-L26 -> €18,685 | M27: =M25-M26 -> €25,855 | N27: =N25-N26 -> €28,543 | O27: =O25-O26 -> €31,747 | P27: =P25-P26 -> €25,431
C37: Fixed original plan inputs
C40: Retainer accounts | E40: 10.0 | F40: 10.0 | G40: 11.0 | H40: 11.0 | I40: 11.0 | J40: 12.0 | K40: 12.0 | L40: 12.0 | M40: 13.0 | N40: 13.0 | O40: 14.0 | P40: 14.0
C41: Monthly retainer fee | E41: €6,355 | F41: €6,406 | G41: €6,406 | H41: €6,560 | I41: €6,560 | J41: €6,663 | K41: €6,663 | L41: €6,663 | M41: €6,650 | N41: €6,700 | O41: €6,700 | P41: €6,850
C42: Delivered project hours | E42: 672.0 | F42: 700.0 | G42: 683.2 | H42: 722.4 | I42: 750.4 | J42: 705.6 | K42: 772.8 | L42: 728.0 | M42: 710.0 | N42: 750.0 | O42: 770.0 | P42: 680.0
C43: Project hourly rate | E43: €115 | F43: €115 | G43: €118 | H43: €118 | I43: €120 | J43: €120 | K43: €120 | L43: €120 | M43: €125 | N43: €125 | O43: €130 | P43: €130
C44: Monthly hours per retainer | E44: 82.0 | F44: 84.0 | G44: 84.0 | H44: 85.0 | I44: 86.0 | J44: 88.0 | K44: 90.0 | L44: 90.0 | M44: 85.0 | N44: 85.0 | O44: 84.0 | P44: 84.0
C45: Client media spend administered | E45: €180,000 | F45: €190,000 | G45: €195,000 | H45: €205,000 | I45: €210,000 | J45: €235,000 | K45: €245,000 | L45: €265,000 | M45: €285,000 | N45: €300,000 | O45: €335,000 | P45: €320,000
C46: Paid delivery FTE | E46: 12.0 | F46: 12.0 | G46: 13.0 | H46: 13.0 | I46: 13.0 | J46: 14.0 | K46: 14.0 | L46: 14.0 | M46: 14.0 | N46: 14.0 | O46: 15.0 | P46: 15.0
C47: Loaded monthly pay per FTE | E47: €4,700 | F47: €4,700 | G47: €4,750 | H47: €4,750 | I47: €4,800 | J47: €4,800 | K47: €4,900 | L47: €4,900 | M47: €4,900 | N47: €4,950 | O47: €4,950 | P47: €5,000
C48: Subcontractor hours | E48: 135.0 | F48: 140.0 | G48: 155.0 | H48: 160.0 | I48: 170.0 | J48: 180.0 | K48: 195.0 | L48: 200.0 | M48: 170.0 | N48: 175.0 | O48: 180.0 | P48: 160.0
C49: Subcontractor hourly rate | E49: €70 | F49: €70 | G49: €72 | H49: €72 | I49: €74 | J49: €74 | K49: €75 | L49: €75 | M49: €78 | N49: €78 | O49: €80 | P49: €80
C50: Direct delivery software | E50: €5,500 | F50: €5,500 | G50: €5,800 | H50: €5,800 | I50: €6,000 | J50: €6,200 | K50: €6,500 | L50: €6,500 | M50: €6,800 | N50: €6,800 | O50: €7,200 | P50: €7,200
C51: Management and admin payroll | E51: €25,000 | F51: €25,000 | G51: €25,500 | H51: €25,500 | I51: €26,000 | J51: €27,000 | K51: €28,000 | L51: €28,000 | M51: €28,000 | N51: €28,000 | O51: €29,500 | P51: €29,500
C52: Sales and marketing | E52: €8,000 | F52: €8,500 | G52: €8,500 | H52: €9,000 | I52: €9,000 | J52: €9,500 | K52: €10,000 | L52: €10,000 | M52: €10,000 | N52: €11,000 | O52: €11,500 | P52: €10,500
C53: Office and general costs | E53: €7,000 | F53: €7,000 | G53: €7,000 | H53: €7,200 | I53: €7,200 | J53: €7,200 | K53: €7,500 | L53: €7,500 | M53: €7,500 | N53: €7,500 | O53: €7,800 | P53: €7,800
C54: Professional fees | E54: €4,000 | F54: €4,000 | G54: €4,500 | H54: €4,200 | I54: €4,500 | J54: €4,500 | K54: €5,000 | L54: €5,000 | M54: €4,500 | N54: €4,500 | O54: €5,000 | P54: €5,000
C55: Target closing AR days | E55: 38.0 | F55: 38.0 | G55: 38.0 | H55: 38.0 | I55: 38.0 | J55: 38.0 | K55: 38.0 | L55: 38.0 | M55: 37.0 | N55: 35.0 | O55: 34.0 | P55: 34.0
C56: New supplier payable days | E56: 25.0 | F56: 25.0 | G56: 25.0 | H56: 25.0 | I56: 25.0 | J56: 25.0 | K56: 25.0 | L56: 25.0 | M56: 25.0 | N56: 25.0 | O56: 25.0 | P56: 25.0
C57: Unbilled project revenue share | E57: 14.0% | F57: 15.0% | G57: 16.0% | H57: 16.0% | I57: 18.0% | J57: 20.0% | K57: 23.0% | L57: 25.0% | M57: 16.0% | N57: 15.0% | O57: 14.0% | P57: 12.0%
C58: Advance contract billing share | E58: 40.0% | F58: 40.0% | G58: 40.0% | H58: 40.0% | I58: 40.0% | J58: 40.0% | K58: 40.0% | L58: 40.0% | M58: 40.0% | N58: 40.0% | O58: 40.0% | P58: 40.0%
C59: Capital purchases | E59: €6,000 | F59: 0 | G59: €12,000 | H59: 0 | I59: €6,000 | J59: 0 | K59: €14,000 | L59: 0 | M59: €32,000 | N59: €8,000 | O59: €6,000 | P59: €6,000
C60: Cash tax paid | E60: 0 | F60: 0 | G60: €12,000 | H60: 0 | I60: 0 | J60: €10,000 | K60: 0 | L60: 0 | M60: €18,000 | N60: 0 | O60: 0 | P60: €12,000
C61: Opening AR collection delay days | E61: 0 | F61: 0 | G61: 0 | H61: 0 | I61: 0 | J61: 0 | K61: 0 | L61: 0 | M61: 0 | N61: 0 | O61: 0 | P61: 0

Sheet Source inputs
C2: Source inputs
C4: Selected case | E4: ='Assumptions'!$G$4 -> Base | H4: EUR. Entirely fictional.
E6: Actual | F6: Actual | G6: Actual | H6: Actual | I6: Actual | J6: Actual | K6: Actual | L6: Actual | M6: Forecast | N6: Forecast | O6: Forecast | P6: Forecast
E7: 2026-01-01 | F7: 2026-02-01 | G7: 2026-03-01 | H7: 2026-04-01 | I7: 2026-05-01 | J7: 2026-06-01 | K7: 2026-07-01 | L7: 2026-08-01 | M7: 2026-09-01 | N7: 2026-10-01 | O7: 2026-11-01 | P7: 2026-12-01
C8: Retainer accounts | E8: 10.0 | F8: 10.0 | G8: 11.0 | H8: 11.0 | I8: 11.0 | J8: 12.0 | K8: 12.0 | L8: 12.0
C9: Monthly retainer fee | E9: €6,200 | F9: €6,250 | G9: €6,250 | H9: €6,400 | I9: €6,400 | J9: €6,500 | K9: €6,500 | L9: €6,500
C10: Delivered project hours | E10: 600.0 | F10: 625.0 | G10: 610.0 | H10: 645.0 | I10: 670.0 | J10: 630.0 | K10: 690.0 | L10: 650.0
C11: Project hourly rate | E11: €115 | F11: €115 | G11: €118 | H11: €118 | I11: €120 | J11: €120 | K11: €120 | L11: €120
C12: Monthly hours per retainer | E12: 82.0 | F12: 84.0 | G12: 84.0 | H12: 85.0 | I12: 86.0 | J12: 88.0 | K12: 90.0 | L12: 90.0
C13: Client media spend administered | E13: €180,000 | F13: €190,000 | G13: €195,000 | H13: €205,000 | I13: €210,000 | J13: €235,000 | K13: €245,000 | L13: €265,000
C14: Paid delivery FTE | E14: 12.0 | F14: 12.0 | G14: 13.0 | H14: 13.0 | I14: 13.0 | J14: 14.0 | K14: 14.0 | L14: 14.0
C15: Loaded monthly pay per FTE | E15: €4,700 | F15: €4,700 | G15: €4,750 | H15: €4,750 | I15: €4,800 | J15: €4,800 | K15: €4,900 | L15: €4,900
C16: Subcontractor hours | E16: 135.0 | F16: 140.0 | G16: 155.0 | H16: 160.0 | I16: 170.0 | J16: 180.0 | K16: 195.0 | L16: 200.0
C17: Subcontractor hourly rate | E17: €70 | F17: €70 | G17: €72 | H17: €72 | I17: €74 | J17: €74 | K17: €75 | L17: €75
C18: Direct delivery software | E18: €5,500 | F18: €5,500 | G18: €5,800 | H18: €5,800 | I18: €6,000 | J18: €6,200 | K18: €6,500 | L18: €6,500
C19: Management and admin payroll | E19: €25,000 | F19: €25,000 | G19: €25,500 | H19: €25,500 | I19: €26,000 | J19: €27,000 | K19: €28,000 | L19: €28,000
C20: Sales and marketing | E20: €8,000 | F20: €8,500 | G20: €8,500 | H20: €9,000 | I20: €9,000 | J20: €9,500 | K20: €10,000 | L20: €10,000
C21: Office and general costs | E21: €7,000 | F21: €7,000 | G21: €7,000 | H21: €7,200 | I21: €7,200 | J21: €7,200 | K21: €7,500 | L21: €7,500
C22: Professional fees | E22: €4,000 | F22: €4,000 | G22: €4,500 | H22: €4,200 | I22: €4,500 | J22: €4,500 | K22: €5,000 | L22: €5,000
C23: Target closing AR days | E23: 38.0 | F23: 38.0 | G23: 38.0 | H23: 38.0 | I23: 38.0 | J23: 38.0 | K23: 38.0 | L23: 38.0
C24: New supplier payable days | E24: 25.0 | F24: 25.0 | G24: 25.0 | H24: 25.0 | I24: 25.0 | J24: 25.0 | K24: 25.0 | L24: 25.0
C25: Unbilled project revenue share | E25: 14.0% | F25: 15.0% | G25: 16.0% | H25: 16.0% | I25: 18.0% | J25: 20.0% | K25: 23.0% | L25: 25.0%
C26: Advance contract billing share | E26: 40.0% | F26: 40.0% | G26: 40.0% | H26: 40.0% | I26: 40.0% | J26: 40.0% | K26: 40.0% | L26: 40.0%
C27: Capital purchases | E27: €6,000 | F27: 0 | G27: €12,000 | H27: 0 | I27: €6,000 | J27: 0 | K27: €14,000 | L27: 0
C28: Cash tax paid | E28: 0 | F28: 0 | G28: €12,000 | H28: 0 | I28: 0 | J28: €10,000 | K28: 0 | L28: 0
C29: Opening AR collection delay days | E29: 0 | F29: 0 | G29: 0 | H29: 0 | I29: 0 | J29: 0 | K29: 0 | L29: 0
C47: Opening balances at 31 December 2025
C50: Opening cash | E50: 160,000.0
C51: Opening ar | E51: 115,000.0
C52: Opening wip | E52: 15,000.0
C53: Opening deferred | E53: 23,000.0
C54: Opening ap | E54: 30,000.0
C55: Opening accrual | E55: 18,000.0
C56: Opening gross | E56: 85,000.0
C57: Opening accum | E57: 24,000.0
C58: Opening debt | E58: 120,000.0
C59: Opening tax | E59: 7,000.0
C60: Opening capital | E60: 50,000.0
C61: Opening equity | E61: 103,000.0
C66: Invented inputs for a fictional business. No client data.
C68: Closing receivables | E68: 128,000.0 | F68: 137,000.0 | G68: 146,000.0 | H68: 158,000.0 | I68: 174,000.0 | J68: 189,000.0 | K68: 203,000.0 | L68: 220,000.0
C69: Closing payables | E69: 31,000.0 | F69: 32,000.0 | G69: 35,000.0 | H69: 36,000.0 | I69: 37,000.0 | J69: 39,000.0 | K69: 42,000.0 | L69: 46,000.0

Sheet AR and AP
C2: AR and AP
C4: Selected case | E4: ='Assumptions'!$G$4 -> Base | H4: EUR. Entirely fictional.
C8: Receivable | D8: Invoice date | E8: Due date | F8: Outstanding | G8: Receipt plan | H8: Delay days | I8: Effective date | J8: Days overdue
C9: AR-1 | D9: 2026-06-05 | E9: 2026-07-05 | F9: 24,200.0 | G9: 2026-09-04 | H9: ='Assumptions'!M71 -> 0 | I9: =G9+H9 -> 2026-09-04 | J9: =MAX(0,DATE(2026,8,31)-E9) -> 57.0
C10: AR-2 | D10: 2026-06-07 | E10: 2026-07-07 | F10: 26,400.0 | G10: 2026-09-11 | H10: ='Assumptions'!M71 -> 0 | I10: =G10+H10 -> 2026-09-11 | J10: =MAX(0,DATE(2026,8,31)-E10) -> 55.0
C11: AR-3 | D11: 2026-06-09 | E11: 2026-07-09 | F11: 28,600.0 | G11: 2026-09-18 | H11: ='Assumptions'!M71 -> 0 | I11: =G11+H11 -> 2026-09-18 | J11: =MAX(0,DATE(2026,8,31)-E11) -> 53.0
C12: AR-4 | D12: 2026-07-11 | E12: 2026-08-11 | F12: 22,000.0 | G12: 2026-09-25 | H12: ='Assumptions'!M71 -> 0 | I12: =G12+H12 -> 2026-09-25 | J12: =MAX(0,DATE(2026,8,31)-E12) -> 20.0
C13: AR-5 | D13: 2026-07-13 | E13: 2026-08-13 | F13: 30,800.0 | G13: 2026-09-04 | H13: ='Assumptions'!M71 -> 0 | I13: =G13+H13 -> 2026-09-04 | J13: =MAX(0,DATE(2026,8,31)-E13) -> 18.0
C14: AR-6 | D14: 2026-08-15 | E14: 2026-09-15 | F14: 26,400.0 | G14: 2026-09-11 | H14: ='Assumptions'!M71 -> 0 | I14: =G14+H14 -> 2026-09-11 | J14: =MAX(0,DATE(2026,8,31)-E14) -> 0
C15: AR-7 | D15: 2026-08-17 | E15: 2026-09-17 | F15: 33,000.0 | G15: 2026-09-18 | H15: ='Assumptions'!M71 -> 0 | I15: =G15+H15 -> 2026-09-18 | J15: =MAX(0,DATE(2026,8,31)-E15) -> 0
C16: AR-8 | D16: 2026-08-19 | E16: 2026-09-19 | F16: 28,600.0 | G16: 2026-09-25 | H16: ='Assumptions'!M71 -> 0 | I16: =G16+H16 -> 2026-09-25 | J16: =MAX(0,DATE(2026,8,31)-E16) -> 0
C23: Payable | D23: Invoice date | E23: Due date | F23: Invoice total | G23: Paid to date | H23: Outstanding | I23: Payment plan | J23: Approval | K23: Review | L23: Hold | M23: Eligible payment | N23: Effective date | O23: Next action
C24: AP-1 | D24: 2026-07-03 | E24: 2026-08-03 | F24: 7,060.0 | G24: 2,000.0 | H24: =F24-G24 -> 5,060.0 | I24: 2026-09-04 | J24: Pending | K24: Complete | L24: Yes | M24: =IF(AND(J24="Approved",K24="Complete",L24="No"),H24,0) -> 0 | N24: =IF(AND(J24="Approved",K24="Complete",L24="No"),I24,0) -> 00:00:00 | O24: =IF(AND(J24="Approved",K24="Complete",L24="No"),"Scheduled",IF(J24<>"Approved","Approval. ","")&IF(K24<>"Complete","Review. ","")&IF(L24="Yes","Release hold.","")) -> Approval. Release hold.
C25: AP-2 | D25: 2026-07-06 | E25: 2026-08-06 | F25: 5,980.0 | G25: 0 | H25: =F25-G25 -> 5,980.0 | I25: 2026-09-04 | J25: Approved | K25: Complete | L25: No | M25: =IF(AND(J25="Approved",K25="Complete",L25="No"),H25,0) -> 5,980.0 | N25: =IF(AND(J25="Approved",K25="Complete",L25="No"),I25,0) -> 2026-09-04 | O25: =IF(AND(J25="Approved",K25="Complete",L25="No"),"Scheduled",IF(J25<>"Approved","Approval. ","")&IF(K25<>"Complete","Review. ","")&IF(L25="Yes","Release hold.","")) -> Scheduled
C26: AP-3 | D26: 2026-07-09 | E26: 2026-08-09 | F26: 6,440.0 | G26: 0 | H26: =F26-G26 -> 6,440.0 | I26: 2026-09-11 | J26: Approved | K26: Complete | L26: No | M26: =IF(AND(J26="Approved",K26="Complete",L26="No"),H26,0) -> 6,440.0 | N26: =IF(AND(J26="Approved",K26="Complete",L26="No"),I26,0) -> 2026-09-11 | O26: =IF(AND(J26="Approved",K26="Complete",L26="No"),"Scheduled",IF(J26<>"Approved","Approval. ","")&IF(K26<>"Complete","Review. ","")&IF(L26="Yes","Release hold.","")) -> Scheduled
C27: AP-4 | D27: 2026-07-12 | E27: 2026-08-12 | F27: 7,520.0 | G27: 2,000.0 | H27: =F27-G27 -> 5,520.0 | I27: 2026-09-11 | J27: Approved | K27: Pending | L27: No | M27: =IF(AND(J27="Approved",K27="Complete",L27="No"),H27,0) -> 0 | N27: =IF(AND(J27="Approved",K27="Complete",L27="No"),I27,0) -> 00:00:00 | O27: =IF(AND(J27="Approved",K27="Complete",L27="No"),"Scheduled",IF(J27<>"Approved","Approval. ","")&IF(K27<>"Complete","Review. ","")&IF(L27="Yes","Release hold.","")) -> Review.
C28: AP-5 | D28: 2026-08-15 | E28: 2026-09-15 | F28: 7,360.0 | G28: 0 | H28: =F28-G28 -> 7,360.0 | I28: 2026-09-18 | J28: Approved | K28: Complete | L28: No | M28: =IF(AND(J28="Approved",K28="Complete",L28="No"),H28,0) -> 7,360.0 | N28: =IF(AND(J28="Approved",K28="Complete",L28="No"),I28,0) -> 2026-09-18 | O28: =IF(AND(J28="Approved",K28="Complete",L28="No"),"Scheduled",IF(J28<>"Approved","Approval. ","")&IF(K28<>"Complete","Review. ","")&IF(L28="Yes","Release hold.","")) -> Scheduled
C29: AP-6 | D29: 2026-08-18 | E29: 2026-09-18 | F29: 5,060.0 | G29: 0 | H29: =F29-G29 -> 5,060.0 | I29: 2026-09-18 | J29: Approved | K29: Complete | L29: No | M29: =IF(AND(J29="Approved",K29="Complete",L29="No"),H29,0) -> 5,060.0 | N29: =IF(AND(J29="Approved",K29="Complete",L29="No"),I29,0) -> 2026-09-18 | O29: =IF(AND(J29="Approved",K29="Complete",L29="No"),"Scheduled",IF(J29<>"Approved","Approval. ","")&IF(K29<>"Complete","Review. ","")&IF(L29="Yes","Release hold.","")) -> Scheduled
C30: AP-7 | D30: 2026-08-21 | E30: 2026-09-21 | F30: 7,520.0 | G30: 2,000.0 | H30: =F30-G30 -> 5,520.0 | I30: 2026-09-25 | J30: Approved | K30: Complete | L30: No | M30: =IF(AND(J30="Approved",K30="Complete",L30="No"),H30,0) -> 5,520.0 | N30: =IF(AND(J30="Approved",K30="Complete",L30="No"),I30,0) -> 2026-09-25 | O30: =IF(AND(J30="Approved",K30="Complete",L30="No"),"Scheduled",IF(J30<>"Approved","Approval. ","")&IF(K30<>"Complete","Review. ","")&IF(L30="Yes","Release hold.","")) -> Scheduled
C31: AP-8 | D31: 2026-08-24 | E31: 2026-09-24 | F31: 5,060.0 | G31: 0 | H31: =F31-G31 -> 5,060.0 | I31: 2026-09-25 | J31: Approved | K31: Complete | L31: No | M31: =IF(AND(J31="Approved",K31="Complete",L31="No"),H31,0) -> 5,060.0 | N31: =IF(AND(J31="Approved",K31="Complete",L31="No"),I31,0) -> 2026-09-25 | O31: =IF(AND(J31="Approved",K31="Complete",L31="No"),"Scheduled",IF(J31<>"Approved","Approval. ","")&IF(K31<>"Complete","Review. ","")&IF(L31="Yes","Release hold.","")) -> Scheduled
C35: Held/incomplete invoices remain payable but have no scheduled payment.
C37: Authorised client approvers retain payment authority.

Sheet Forecast checks
C2: Forecast checks
C4: Selected case | E4: ='Assumptions'!$G$4 -> Base | H4: EUR. Entirely fictional.
E6: Actual | F6: Actual | G6: Actual | H6: Actual | I6: Actual | J6: Actual | K6: Actual | L6: Actual | M6: Forecast | N6: Forecast | O6: Forecast | P6: Forecast
E7: 2026-01-01 | F7: 2026-02-01 | G7: 2026-03-01 | H7: 2026-04-01 | I7: 2026-05-01 | J7: 2026-06-01 | K7: 2026-07-01 | L7: 2026-08-01 | M7: 2026-09-01 | N7: 2026-10-01 | O7: 2026-11-01 | P7: 2026-12-01
C8: Balance sheet balances | E8: ='Balance sheet'!E23 -> (0.00) | F8: ='Balance sheet'!F23 -> (0.00) | G8: ='Balance sheet'!G23 -> (0.00) | H8: ='Balance sheet'!H23 -> (0.00) | I8: ='Balance sheet'!I23 -> (0.00) | J8: ='Balance sheet'!J23 -> 0.00 | K8: ='Balance sheet'!K23 -> (0.00) | L8: ='Balance sheet'!L23 -> (0.00) | M8: ='Balance sheet'!M23 -> 0.00 | N8: ='Balance sheet'!N23 -> 0.00 | O8: ='Balance sheet'!O23 -> 0.00 | P8: ='Balance sheet'!P23 -> 0.00
C9: Cash flow closes to balance sheet cash | E9: ='Cash flow'!E20-'Balance sheet'!E8 -> 0.00 | F9: ='Cash flow'!F20-'Balance sheet'!F8 -> 0.00 | G9: ='Cash flow'!G20-'Balance sheet'!G8 -> 0.00 | H9: ='Cash flow'!H20-'Balance sheet'!H8 -> 0.00 | I9: ='Cash flow'!I20-'Balance sheet'!I8 -> 0.00 | J9: ='Cash flow'!J20-'Balance sheet'!J8 -> 0.00 | K9: ='Cash flow'!K20-'Balance sheet'!K8 -> 0.00 | L9: ='Cash flow'!L20-'Balance sheet'!L8 -> 0.00 | M9: ='Cash flow'!M20-'Balance sheet'!M8 -> 0.00 | N9: ='Cash flow'!N20-'Balance sheet'!N8 -> 0.00 | O9: ='Cash flow'!O20-'Balance sheet'!O8 -> 0.00 | P9: ='Cash flow'!P20-'Balance sheet'!P8 -> 0.00
C10: Receivables roll forward | E10: ='Working capital'!E14+'Working capital'!E12-'Working capital'!E20-'Working capital'!E19 -> 0.00 | F10: ='Working capital'!F14+'Working capital'!F12-'Working capital'!F20-'Working capital'!F19 -> 0.00 | G10: ='Working capital'!G14+'Working capital'!G12-'Working capital'!G20-'Working capital'!G19 -> 0.00 | H10: ='Working capital'!H14+'Working capital'!H12-'Working capital'!H20-'Working capital'!H19 -> 0.00 | I10: ='Working capital'!I14+'Working capital'!I12-'Working capital'!I20-'Working capital'!I19 -> 0.00 | J10: ='Working capital'!J14+'Working capital'!J12-'Working capital'!J20-'Working capital'!J19 -> 0.00 | K10: ='Working capital'!K14+'Working capital'!K12-'Working capital'!K20-'Working capital'!K19 -> 0.00 | L10: ='Working capital'!L14+'Working capital'!L12-'Working capital'!L20-'Working capital'!L19 -> 0.00 | M10: ='Working capital'!M14+'Working capital'!M12-'Working capital'!M20-'Working capital'!M19 -> 0.00 | N10: ='Working capital'!N14+'Working capital'!N12-'Working capital'!N20-'Working capital'!N19 -> 0.00 | O10: ='Working capital'!O14+'Working capital'!O12-'Working capital'!O20-'Working capital'!O19 -> 0.00 | P10: ='Working capital'!P14+'Working capital'!P12-'Working capital'!P20-'Working capital'!P19 -> 0.00
C11: Payables roll forward | E11: ='Working capital'!E22+'Working capital'!E23-'Working capital'!E27-'Working capital'!E26 -> 0.00 | F11: ='Working capital'!F22+'Working capital'!F23-'Working capital'!F27-'Working capital'!F26 -> 0.00 | G11: ='Working capital'!G22+'Working capital'!G23-'Working capital'!G27-'Working capital'!G26 -> 0.00 | H11: ='Working capital'!H22+'Working capital'!H23-'Working capital'!H27-'Working capital'!H26 -> 0.00 | I11: ='Working capital'!I22+'Working capital'!I23-'Working capital'!I27-'Working capital'!I26 -> 0.00 | J11: ='Working capital'!J22+'Working capital'!J23-'Working capital'!J27-'Working capital'!J26 -> 0.00 | K11: ='Working capital'!K22+'Working capital'!K23-'Working capital'!K27-'Working capital'!K26 -> 0.00 | L11: ='Working capital'!L22+'Working capital'!L23-'Working capital'!L27-'Working capital'!L26 -> 0.00 | M11: ='Working capital'!M22+'Working capital'!M23-'Working capital'!M27-'Working capital'!M26 -> 0.00 | N11: ='Working capital'!N22+'Working capital'!N23-'Working capital'!N27-'Working capital'!N26 -> 0.00 | O11: ='Working capital'!O22+'Working capital'!O23-'Working capital'!O27-'Working capital'!O26 -> 0.00 | P11: ='Working capital'!P22+'Working capital'!P23-'Working capital'!P27-'Working capital'!P26 -> 0.00
C12: Opening AR records tie to August | E12: =SUM('AR and AP'!F9:F16)-'Balance sheet'!L9 -> 0.00 | F12: =SUM('AR and AP'!F9:F16)-'Balance sheet'!L9 -> 0.00 | G12: =SUM('AR and AP'!F9:F16)-'Balance sheet'!L9 -> 0.00 | H12: =SUM('AR and AP'!F9:F16)-'Balance sheet'!L9 -> 0.00 | I12: =SUM('AR and AP'!F9:F16)-'Balance sheet'!L9 -> 0.00 | J12: =SUM('AR and AP'!F9:F16)-'Balance sheet'!L9 -> 0.00 | K12: =SUM('AR and AP'!F9:F16)-'Balance sheet'!L9 -> 0.00 | L12: =SUM('AR and AP'!F9:F16)-'Balance sheet'!L9 -> 0.00 | M12: =SUM('AR and AP'!F9:F16)-'Balance sheet'!L9 -> 0.00 | N12: =SUM('AR and AP'!F9:F16)-'Balance sheet'!L9 -> 0.00 | O12: =SUM('AR and AP'!F9:F16)-'Balance sheet'!L9 -> 0.00 | P12: =SUM('AR and AP'!F9:F16)-'Balance sheet'!L9 -> 0.00
C13: Opening AP records tie to August | E13: =SUM('AR and AP'!H24:H31)-'Balance sheet'!L14 -> 0.00 | F13: =SUM('AR and AP'!H24:H31)-'Balance sheet'!L14 -> 0.00 | G13: =SUM('AR and AP'!H24:H31)-'Balance sheet'!L14 -> 0.00 | H13: =SUM('AR and AP'!H24:H31)-'Balance sheet'!L14 -> 0.00 | I13: =SUM('AR and AP'!H24:H31)-'Balance sheet'!L14 -> 0.00 | J13: =SUM('AR and AP'!H24:H31)-'Balance sheet'!L14 -> 0.00 | K13: =SUM('AR and AP'!H24:H31)-'Balance sheet'!L14 -> 0.00 | L13: =SUM('AR and AP'!H24:H31)-'Balance sheet'!L14 -> 0.00 | M13: =SUM('AR and AP'!H24:H31)-'Balance sheet'!L14 -> 0.00 | N13: =SUM('AR and AP'!H24:H31)-'Balance sheet'!L14 -> 0.00 | O13: =SUM('AR and AP'!H24:H31)-'Balance sheet'!L14 -> 0.00 | P13: =SUM('AR and AP'!H24:H31)-'Balance sheet'!L14 -> 0.00
C14: Dated events tie to monthly cash flow | E14: =0 -> 0.00 | F14: =0 -> 0.00 | G14: =0 -> 0.00 | H14: =0 -> 0.00 | I14: =0 -> 0.00 | J14: =0 -> 0.00 | K14: =0 -> 0.00 | L14: =0 -> 0.00 | M14: =SUMIFS('13 week cash'!$F$40:$F$103,'13 week cash'!$D$40:$D$103,">="&M$7,'13 week cash'!$D$40:$D$103,"<"&EDATE(M$7,1))-'Cash flow'!M18 -> (0.00) | N14: =SUMIFS('13 week cash'!$F$40:$F$103,'13 week cash'!$D$40:$D$103,">="&N$7,'13 week cash'!$D$40:$D$103,"<"&EDATE(N$7,1))-'Cash flow'!N18 -> 0.00 | O14: =SUMIFS('13 week cash'!$F$40:$F$103,'13 week cash'!$D$40:$D$103,">="&O$7,'13 week cash'!$D$40:$D$103,"<"&EDATE(O$7,1))-'Cash flow'!O18 -> 0.00 | P14: =SUMIFS('13 week cash'!$F$40:$F$103,'13 week cash'!$D$40:$D$103,">="&P$7,'13 week cash'!$D$40:$D$103,"<"&EDATE(P$7,1))-'Cash flow'!P18 -> 0.00
C15: Contribution ties to August gross profit | E15: =SUM('Operating model'!J53:J57)-'Operating model'!L21 -> 0.00 | F15: =SUM('Operating model'!J53:J57)-'Operating model'!L21 -> 0.00 | G15: =SUM('Operating model'!J53:J57)-'Operating model'!L21 -> 0.00 | H15: =SUM('Operating model'!J53:J57)-'Operating model'!L21 -> 0.00 | I15: =SUM('Operating model'!J53:J57)-'Operating model'!L21 -> 0.00 | J15: =SUM('Operating model'!J53:J57)-'Operating model'!L21 -> 0.00 | K15: =SUM('Operating model'!J53:J57)-'Operating model'!L21 -> 0.00 | L15: =SUM('Operating model'!J53:J57)-'Operating model'!L21 -> 0.00 | M15: =SUM('Operating model'!J53:J57)-'Operating model'!L21 -> 0.00 | N15: =SUM('Operating model'!J53:J57)-'Operating model'!L21 -> 0.00 | O15: =SUM('Operating model'!J53:J57)-'Operating model'!L21 -> 0.00 | P15: =SUM('Operating model'!J53:J57)-'Operating model'!L21 -> 0.00
C16: Media receipts equal media payments | E16: ='Assumptions'!E23+-'Assumptions'!E23 -> 0.00 | F16: ='Assumptions'!F23+-'Assumptions'!F23 -> 0.00 | G16: ='Assumptions'!G23+-'Assumptions'!G23 -> 0.00 | H16: ='Assumptions'!H23+-'Assumptions'!H23 -> 0.00 | I16: ='Assumptions'!I23+-'Assumptions'!I23 -> 0.00 | J16: ='Assumptions'!J23+-'Assumptions'!J23 -> 0.00 | K16: ='Assumptions'!K23+-'Assumptions'!K23 -> 0.00 | L16: ='Assumptions'!L23+-'Assumptions'!L23 -> 0.00 | M16: ='Assumptions'!M23+-'Assumptions'!M23 -> 0.00 | N16: ='Assumptions'!N23+-'Assumptions'!N23 -> 0.00 | O16: ='Assumptions'!O23+-'Assumptions'!O23 -> 0.00 | P16: ='Assumptions'!P23+-'Assumptions'!P23 -> 0.00
C20: Differences should be zero within €0.01. No forecast depends on checks.

Sheet Guide
C2: Guide
C4: Selected case | E4: ='Assumptions'!$G$4 -> Base | H4: EUR. Entirely fictional.
C8: Retainers earned monthly; project fees recognised for delivered hours. Agency acts as agent for client media: prefunded media receipts and payments are excluded from net fee revenue. Media is settled within each month, with no month-end client-fund balance.
C11: One editable selector on Assumptions E4: 1 Base, 2 Downside. Active forecast inputs update the same operating and accounting build.
C14: Jan–Aug actuals are entirely invented. Original budget has separate dated inputs and never changes with the selected case.
C17: Working capital distinguishes unbilled work, invoices, collections, advance billings and supplier settlement. Known opening invoice dates constrain forecast collections.
C20: Client and supplier records are fictional. Approval, review completion and hold release are independent prerequisites to scheduling a payable.
C23: Amounts are EUR units. Costs are positive in the P&L; cash outflows are negative. No VAT, deferred tax, foreign exchange or jurisdiction tax rules are modelled.
C26: The 13-week forecast starts 1 September after 31 August close, ends 29 November and includes 30 November separately for month-end reconciliation.
C29: Bank cash is reduced by client media funds to show available cash. Negative available cash is an unfunded need, not an approved facility. Weekly closing cash can hide earlier daily lows.
C32: Known invoices are scheduled first. Residual new monthly receipts and supplier payments settle 45% on day 15 and 55% on day 28. No double counting.
C35: Agency media is client-prefunded on day 5 and paid on day 10. These funds are reserved for that purpose. IT managed services and licences are billed monthly.
C38: Available delivery hours are 160 per paid FTE per month. Payroll is fully loaded. New assets depreciate over 36 months from the purchase month; opening depreciation is €1,800 monthly.
C41: This is a public demonstration of financial methods and deliverables, not an achieved client result.
